Workbook

Sheet Electrolyzer Data
B3: IEA Efficiency
C4: Electrolyzer | F4: Today | G4: 2030 | H4: Long-term
D5: USD/kW | F5: 900 | G5: 700 | H5: 450
D6: Efficiency | F6: 0.64 | G6: 0.69 | H6: 0.74
D7: kW/kg | F7: 33.33 | G7: 33.33 | H7: 33.33
D8: kWh/kg | F8: =F7/F6 -> 52.078125 | G8: =G7/G6 -> 48.30434783 | H8: 45.04054054 | J8: =F5 -> 900 | K8: =F8 -> 52.078125 | L8: =J8*K8 -> 46870.3125
D9: Cost per kgh | F9: =F5*F8 -> 46870.3125 | G9: =G5*G8 -> 33813.04348 | H9: 20268.24324 | J9: USD/kw | K9: x kw/kg | L9: = USD/kg
D11: kgd | E11: kgd | F11: 500000 | G11: 500000 | H11: 500000
D12: kgh | E12: kgh | F12: =F11/24 -> 20833.33333 | G12: =G11/24 -> 20833.33333 | H12: 20833.33333 | J12: kgh | K12: x kw/kg | L12: =kw
D13: Total kW output h | E13: kW | F13: =F12*F8 -> 1084960.937 | G13: =G12*G8 -> 1006340.58 | H13: =H12*H8 -> 938344.5946
D15: Total Cost | E15: USD | F15: =F12*F9 -> 976464843.7 | G15: =G12*G9 -> 704438405.8 | H15: =H12*H9 -> 422255067.6
D17: Total kW input | E17: kW | F17: =F13/F6 -> 1695251.465 | G17: =G13/G6 -> 1458464.608 | H17: =H13/H6 -> 1268033.236
D18: Cost per kW | E18: USD/kW | F18: =F15/F13 -> 900 | G18: =G15/G13 -> 700 | H18: =H15/H13 -> 450
D19: Cost per kgd | E19: USD/kgd | F19: =F15/F11 -> 1952.929687 | G19: =G15/G11 -> 1408.876812 | H19: 844.5101351
D21: Operating Expense % of Cap Exp | E21: % | F21: 0.015 | G21: 0.015 | H21: 0.015
D22: Stack Lifetime | E22: Hours | F22: 95000 | G22: 95000 | H22: 100000
B25: Norgweian Study - Electrolyzer
F26: Electrolysis
D27: Total Cost Euro MM | F27: 429.3
D28: Total Cost USD MM | F28: =F27*1.3 -> 558.09
D30: Total kgd | F30: 500000
D31: Total kg | F31: =F30/24 -> 20833.33333
D32: Total Cost USD | F32: =F28*1000000 -> 558090000
D34: Efficiency | F34: 0.62
D35: kWh/kg | F35: =F7/F34 -> 53.75806452
D36: Total kW | F36: =F31*F35 -> 1119959.677
D38: Cost per kgh | F38: =F32/F31 -> 26788.32
D39: Cost per kgd | F39: =F32/F30 -> 1116.18
D40: Cost per KW | F40: =F32/F36 -> 498.3125833
D42: Total Operating Cost Euro MM | F42: ='Norway Operating Cost'!E18 -> 53.4
D43: Total Operating Cost USD MM | F43: =F42*1.3 -> 69.42
D45: Percent | F45: =F43/F28 -> 0.1243885395
B47: Middle East
C49: Size | F49: ALK | G49: ALK | H49: Best | I49: Worst
D50: Nm3 H2 | F50: 0.25 | G50: 760
D51: kW | F51: 1.8 | G51: 5300
D52: Stack Hours | F52: 85000 | G52: 85000 | H52: =F52 -> 85000 | I52: =G52 -> 85000
D53: System Life | F53: 20 | G53: 20 | H53: =F53 -> 20 | I53: =G53 -> 20
D54: Cap Exp per kW | F54: 650 | G54: 650 | H54: =F54 -> 650 | I54: =H54 -> 650
D55: Stack Repalcement per kW | F55: 300 | G55: 300
D56: Stack Percent | F56: =F55/F54 -> 0.4615384615 | G56: =G55/G54 -> 0.4615384615 | H56: =F56 -> 0.4615384615 | I56: =H56 -> 0.4615384615
D57: Op Exp | F57: 0.02 | G57: 0.02 | H57: =F57 -> 0.02 | I57: =G57 -> 0.02
D58: Efficiency | F58: 0.55 | G58: 0.7 | H58: =G58 -> 0.7 | I58: =F58 -> 0.55
D59: kWh/kW | F59: =33.33/F58 -> 60.6 | G59: =33.33/G58 -> 47.61428571 | H59: =G59 -> 47.61428571 | I59: =F59 -> 60.6
D60: Operating Pressure | F60: 30 | G60: 30
B78: Actual Case
D79: kW
D80: USD/kW | F80: 1404
D81: Efficiency | F81: =33.33/F82 -> 0.5746551724
D82: kW/kg | F82: 58
D83: Cost per kg | F83: =F89/F86 -> 81432
D85: kgd | F85: =F86*24 -> 4137.931034
D86: kgh | F86: =F87/F82 -> 172.4137931 | J86: kgh = | K86: kw/(kw/kg)
D87: Total kW output h | F87: 10000 | J87: kgh | K87: x kw/kg | L87: =kw
D89: Total Cost | F89: =F87*F80 -> 14040000
D90: Cost with Total | F90: 26263260
D91: Cost/kW | F91: =F90/F87 -> 2626.326
D93: Stack Life | F93: 68000
D94: Stack Percent | F94: 0.4
D96: Operating Expense % of Cap Exp | F96: 0.03
B99: Australia Study 2020
C100: Capacity | E100: kW | F100: 50000
C101: Hydrogen Output | E101: kgh | F101: 1000
C102: Hydrogen Output | E102: kgd | F102: =F101*24 -> 24000
C103: Efficiency | E103: kWh/kg | F103: =F100/F101 -> 50
C104: Efficiency | E104: % | F104: =33.33/F103 -> 0.6666
C106: Capital Cost | E106: Eur m | F106: 3.75
C107: Capital Cost | E107: USD | F107: =F106*10000000*1 -> 37500000
C108: Cost per kW | E108: USD/kW | F108: =F107/F100 -> 750
C109: Cost per kg | E109: USD/kg | F109: =F107/F101 -> 37500
C111: O&M Cost | E111: USD | F111: 0.2
C112: O&M percent | E112: % | F112: =F111/F106 -> 0.05333333333
C114: Project Life | E114: Years | F114: 10
B129: Lazard Study
F130: Small | G130: Medium | H130: Large
C131: Lazard Study - Alk
C132: Capacity (kW) | F132: 1000 | G132: 20000 | H132: 100000
C133: Cost/kW | F133: 1460 | G133: 860 | H133: 630
C134: Stack | F134: 480 | G134: 345 | H134: 295
C135: Stack Percent | F135: =F134/F133 -> 0.3287671233 | G135: =G134/G133 -> 0.4011627907 | H135: 0.4682539683
C136: Plant Life | F136: 15 | G136: 15 | H136: 15
C137: Stack Life | F137: 67500 | G137: 67500 | H137: 67500
C139: O&M Cost | F139: 0.015 | G139: 0.015 | H139: 0.015
C140: Efficiency | F140: 0.67 | G140: 0.67 | H140: 0.67
C141: Efficiency | F141: =33.33/F140 -> 49.74626866 | G141: =33.33/G140 -> 49.74626866 | H141: 49.74626866
C143: Lazard Study - PEM
C144: Capacity (kW) | F144: 1000 | G144: 20000 | H144: 100000
C145: Cost/kW | F145: 1760 | G145: 1100 | H145: 840
C146: Stack | F146: 480 | G146: 345 | H146: 295
C147: Plant Life | F147: 15 | G147: 15 | H147: 15
C148: Stack Life | F148: 60000 | G148: 60000 | H148: 60000
C150: O&M Cost | F150: 0.015 | G150: 0.015 | H150: 0.015
C151: Efficiency | F151: 0.56 | G151: 0.56 | H151: 0.56
C153: Capacity kgh | F153: =F132/F141 -> 20.1020102 | G153: =G132/G141 -> 402.040204 | H153: 2010.20102
C154: Capacity kgd | F154: =F153*24 -> 482.4482448 | G154: =G153*24 -> 9648.964896 | H154: 48244.82448
B165: IRENA Study
F166: 2020 Best | G166: 2020 Worst | H166: 2050
C167: Cost per kW | E167: USD/kw | F167: 500 | G167: 1000 | H167: 200
C168: Stack Portion | E168: USD/kw | F168: 270 | G168: 270 | H168: 100
C169: Stack Percent | E169: % | F169: =F168/F167 -> 0.54 | G169: =G168/G167 -> 0.27 | H169: 0.5
C171: Stack Life | E171: Hours | F171: 60000 | G171: 60000 | H171: 100000
C173: Effiency | E173: kWh/kg | F173: 50 | G173: 78 | H173: 45
C174: Effiency | E174: % | F174: =33.333/F173 -> 0.66666 | G174: =33.333/G173 -> 0.4273461538 | H174: 0.7407333333
C176: Size | E176: MW | F176: 10000 | G176: 10000 | H176: 10000
C177: Size | E177: kgh | F177: =F176/F173 -> 200 | G177: =G176/G173 -> 128.2051282 | H177: 222.2222222
C178: Size | E178: kgd | F178: =F177*24 -> 4800 | G178: =G177*24 -> 3076.923077 | H178: 5333.333333
B205: NREL 2014 Study | F205: NREL Forecort | G205: NREL Forecort | H205: NREL Central | I205: NREL Central
F206: Current | G206: Future | H206: Current | I206: Future
B209: Availability | E209: % | F209: 0.97 | G209: 0.97 | H209: 0.97 | I209: 0.97
B210: Capacity | E210: H2/day | F210: 1500 | G210: 1500 | H210: 50000 | I210: 50000
B211: Single Unit Size | E211: kg/day | F211: 500 | G211: 750 | H211: 500 | I211: 750
B212: H2 Output | E212: psi | F212: 450 | G212: 1000 | H212: 450 | I212: 1000
B213: Energy Input | E213: kW | F213: 3413 | G213: 3144 | H213: 113125 | I213: 104583
B215: Base Year for Cost | E215: Year | F215: 2012 | G215: 2012 | H215: 2012 | I215: 2012
B217: Cost/kW | E217: USD/kW | F217: 940 | G217: 450 | H217: 900 | I217: 400
B218: Total Cost Before Adders | F218: =F217*F213 -> 3208220 | G218: =G217*G213 -> 1414800 | H218: 101812500 | I218: 41833200
B220: H2 per Hour | E220: kgh | F220: =F210/25 -> 60 | G220: =G210/25 -> 60 | H220: 2000 | I220: 2000
B221: Efficiency | E221: kwh/kg | F221: =F213/F220 -> 56.88333333 | G221: =G213/G220 -> 52.4 | H221: 56.5625 | I221: 52.2915
B222: Efficiency | E222: % | F222: =33.33/F221 -> 0.5859361266 | G222: =33.33/G221 -> 0.6360687023 | H222: 0.5892596685 | I222: 0.6373884857
B224: Indirect Adder | E224: Factor | F224: 1.12 | G224: 1.1 | H224: 1.12 | I224: 1.1
B226: Site Preparation | E226: % | F226: 0.1885 | G226: 0.1885 | H226: 0.02 | I226: 0.02
B227: Endineering | E227: Amount/Percent | F227: 50000 | G227: 50000 | H227: 0.08 | I227: 0.08
B228: Permitting | E228: Amount/Percent | F228: 30000 | G228: 30000 | H228: 0.15 | I228: 0.15
B230: With Indirect Adder | E230: USD | F230: =F224*F218 -> 3593206.4 | G230: =G224*G218 -> 1556280 | H230: 114030000 | I230: 46016520
B231: Site Preparation | E231: USD | F231: =F218*F226 -> 604749.47 | G231: =G218*G226 -> 266689.8 | H231: 2036250 | I231: 836664
B232: Endineering | E232: USD | F232: =F227 -> 50000 | G232: =G227 -> 50000 | H232: =H227*H218 -> 8145000 | I232: =I227*I218 -> 3346656
B233: Permitting | E233: USD | F233: =F228 -> 30000 | G233: =G228 -> 30000 | H233: =H228*H218 -> 15271875 | I233: =I228*I218 -> 6274980
B234: Total with Adders | E234: USD | F234: =SUM(F230:F233) -> 4277955.87 | G234: =SUM(G230:G233) -> 1902969.8 | H234: 139483125 | I234: 56474820
B236: Final Cost/kW | E236: USD/kW | F236: =F234/F213 -> 1253.429789 | G236: =G234/G213 -> 605.2702926 | H236: 1233 | I236: 540
B238: O&M Percent | E238: % | F238: 0.032 | G238: 0.028 | H238: 0.03 | I238: 0.03
B240: Stack Percent | F240: 0.41 | G240: 0.38 | H240: 0.47 | I240: 0.37

Sheet Electrolyzer Inputs
F2: IEA | G2: IEA | H2: IEA | I2: Norway | J2: Middle East | K2: Middle East | L2: Actual Case | M2: Australia | N2: Lazard | O2: Lazard | P2: Lazard | Q2: IRENA | R2: IRENA | S2: IRENA | T2: ='Electrolyzer Data'!F205 -> NREL Forecort | U2: ='Electrolyzer Data'!G205 -> NREL Forecort | V2: ='Electrolyzer Data'!H205 -> NREL Central | W2: ='Electrolyzer Data'!I205 -> NREL Central
F3: Today | G3: 2030 | H3: Long-term | I3: Electrolyzer | J3: Best | K3: Worst | N3: Small | O3: Medium | P3: Large | Q3: Current Best | R3: Current Worst | S3: Future | T3: ='Electrolyzer Data'!F206 -> Current | U3: ='Electrolyzer Data'!G206 -> Future | V3: ='Electrolyzer Data'!H206 -> Current | W3: ='Electrolyzer Data'!I206 -> Future
B5: Sensitivity Variables
C6: Natural Gas Price | E6: USD/MMBTU | F6: 5
C7: Heat Rate | E7: MMBTU/MWH | F7: 6.5
C8: Implied Electricity Price | E8: USD/MWH | F8: =F6*F7 -> 32.5
C10: Electricity Price | E10: USD/MWH | F10: =G10 -> 15 | G10: 15
C11: Capacity Factor | E11: % | F11: =G11/100 -> 0.26 | G11: 26
C12: Emissions Cost | E12: USD/Ton | F12: 10
C13: Inflation Rate | E13: % p.a. | F13: 0.03
C14: Cost of Equity | E14: % p.a. | F14: 0.1 | I14: USD/kw | J14: x kw/kg | K14: =USD/kg
C15: Cost of Debt | E15: % p.a. | F15: 0.06 | I15: kgh | J15: x kw/kg | K15: =kw
C16: Income Tax Rate | E16: % | F16: 0.3
C17: Debt to Capital | E17: % | F17: 0.6
C18: Converstion | E18: kWh/kg | F18: 33.3333
C19: System Life | E19: Years | F19: 25
C20: Tax Life | E20: Years | F20: 5
C21: Degradation | E21: % | F21: 0.005
C23: Annual Production
D24: Capacity | E24: kgd | F24: 500000 | G24: =F24 -> 500000 | H24: =G24 -> 500000 | I24: 500000 | J24: 500000 | K24: 500000 | L24: ='Electrolyzer Data'!F85 -> 4137.931034 | M24: ='Electrolyzer Data'!F102 -> 24000 | N24: ='Electrolyzer Data'!F154 -> 482.4482448 | O24: ='Electrolyzer Data'!G154 -> 9648.964896 | P24: ='Electrolyzer Data'!H154 -> 48244.82448 | Q24: ='Electrolyzer Data'!F178 -> 4800 | R24: ='Electrolyzer Data'!G178 -> 3076.923077 | S24: ='Electrolyzer Data'!H178 -> 5333.333333 | T24: ='Electrolyzer Data'!F210 -> 1500 | U24: ='Electrolyzer Data'!G210 -> 1500 | V24: ='Electrolyzer Data'!H210 -> 50000 | W24: ='Electrolyzer Data'!I210 -> 50000
D25: Capacity Factor | E25: % | F25: =F11 -> 0.26 | G25: =F25 -> 0.26 | H25: =G25 -> 0.26 | I25: 0.26 | J25: 0.26 | K25: 0.26 | L25: =K25 -> 0.26 | M25: 0.26 | N25: 0.26 | O25: =N25 -> 0.26 | P25: 0.26 | Q25: 0.26 | R25: 0.26 | S25: =R25 -> 0.26 | T25: 0.26 | U25: 0.26 | V25: 0.26 | W25: 0.26
D26: Annual Production to Levelised Cost Calculator | E26: kgy | F26: =F24*F25*365.25 -> 47482500 | G26: =G24*G25*365.25 -> 47482500 | H26: 47482500 | I26: 47482500 | J26: 47482500 | K26: 47482500 | L26: =L24*L25*365.25 -> 392958.6207 | M26: =M24*M25*365.25 -> 2279160 | N26: =N24*N25*365.25 -> 45815.69757 | O26: =O24*O25*365.25 -> 916313.9514 | P26: =P24*P25*365.25 -> 4581569.757 | Q26: =Q24*Q25*365.25 -> 455832 | R26: =R24*R25*365.25 -> 292200 | S26: 506480 | T26: =T24*T25*365.25 -> 142447.5 | U26: =U24*U25*365.25 -> 142447.5 | V26: =V24*V25*365.25 -> 4748250 | W26: =W24*W25*365.25 -> 4748250
D28: Efficiency | E28: % | F28: ='Electrolyzer Data'!F6 -> 0.64 | G28: ='Electrolyzer Data'!G6 -> 0.69 | H28: ='Electrolyzer Data'!H6 -> 0.74 | I28: ='Electrolyzer Data'!F34 -> 0.62 | J28: ='Electrolyzer Data'!H58 -> 0.7 | K28: ='Electrolyzer Data'!I58 -> 0.55 | L28: ='Electrolyzer Data'!F81 -> 0.5746551724 | M28: ='Electrolyzer Data'!F104 -> 0.6666 | N28: ='Electrolyzer Data'!F140 -> 0.67 | O28: ='Electrolyzer Data'!G140 -> 0.67 | P28: ='Electrolyzer Data'!H140 -> 0.67 | Q28: ='Electrolyzer Data'!F174 -> 0.66666 | R28: ='Electrolyzer Data'!G174 -> 0.4273461538 | S28: ='Electrolyzer Data'!H174 -> 0.7407333333 | T28: ='Electrolyzer Data'!F222 -> 0.5859361266 | U28: ='Electrolyzer Data'!G222 -> 0.6360687023 | V28: ='Electrolyzer Data'!H222 -> 0.5892596685 | W28: ='Electrolyzer Data'!I222 -> 0.6373884857
D29: kWh Output/kg | E29: kwh/kg | F29: =$F$18/F28 -> 52.08328125 | G29: =$F$18/G28 -> 48.30913043 | H29: 45.045 | I29: 53.7633871 | J29: 47.619 | K29: 60.606 | L29: =$F$18/L28 -> 58.00574257 | M29: =$F$18/M28 -> 50.0049505 | N29: =$F$18/N28 -> 49.75119403 | O29: =$F$18/O28 -> 49.75119403 | P29: =$F$18/P28 -> 49.75119403 | Q29: =$F$18/Q28 -> 50.00045 | R29: =$F$18/R28 -> 78.00070201 | S29: 45.000405 | T29: =$F$18/T28 -> 56.88896535 | U29: =$F$18/U28 -> 52.40518812 | V29: =$F$18/V28 -> 56.56810025 | W29: =$F$18/W28 -> 52.29667738
D30: Capacity | E30: kgh | F30: =F24/24 -> 20833.33333 | G30: =G24/24 -> 20833.33333 | H30: 20833.33333 | I30: 20833.33333 | J30: 20833.33333 | K30: 20833.33333 | L30: =L24/24 -> 172.4137931 | M30: 1000 | N30: 20.1020102 | O30: =O24/24 -> 402.040204 | P30: 2010.20102 | Q30: 200 | R30: 128.2051282 | S30: =S24/24 -> 222.2222222 | T30: 62.5 | U30: 62.5 | V30: 2083.333333 | W30: 2083.333333
D31: Capacity | E31: kW | F31: =F30*F29 -> 1085068.359 | G31: =G30*G29 -> 1006440.217 | H31: 938437.5 | I31: 1120070.565 | J31: 992062.5 | K31: 1262625 | L31: =L30*L29 -> 10000.9901 | M31: =M30*M29 -> 50004.9505 | N31: =N30*N29 -> 1000.09901 | O31: =O30*O29 -> 20001.9802 | P31: =P30*P29 -> 100009.901 | Q31: =Q30*Q29 -> 10000.09 | R31: =R30*R29 -> 10000.09 | S31: 10000.09 | T31: =T30*T29 -> 3555.560334 | U31: =U30*U29 -> 3275.324257 | V31: =V30*V29 -> 117850.2088 | W31: =W30*W29 -> 108951.4112
C33: Capital Cost
D34: Cost/kW | E34: USD/kW | F34: ='Electrolyzer Data'!F5 -> 900 | G34: ='Electrolyzer Data'!G5 -> 700 | H34: ='Electrolyzer Data'!H5 -> 450 | I34: ='Electrolyzer Data'!F40 -> 498.3125833 | J34: ='Electrolyzer Data'!H54 -> 650 | K34: ='Electrolyzer Data'!I54 -> 650 | L34: ='Electrolyzer Data'!F80 -> 1404 | M34: ='Electrolyzer Data'!F108 -> 750 | N34: ='Electrolyzer Data'!F133 -> 1460 | O34: ='Electrolyzer Data'!G133 -> 860 | P34: ='Electrolyzer Data'!H133 -> 630 | Q34: ='Electrolyzer Data'!F167 -> 500 | R34: ='Electrolyzer Data'!G167 -> 1000 | S34: ='Electrolyzer Data'!H167 -> 200 | T34: ='Electrolyzer Data'!F236 -> 1253.429789 | U34: ='Electrolyzer Data'!G236 -> 605.2702926 | V34: ='Electrolyzer Data'!H236 -> 1233 | W34: ='Electrolyzer Data'!I236 -> 540
D35: Total Capital cost to Levelised Cost Calculator | E35: USD | F35: =F34*F31 -> 976561523.4 | G35: 704508152.2 | H35: 422296875 | I35: 558145256.4 | J35: 644840625 | K35: 820706250 | L35: 14041390.1 | M35: 37503712.87 | N35: 1460144.554 | O35: 17201702.97 | P35: 63006237.62 | Q35: 5000045 | R35: 10000090 | S35: 2000018 | T35: 4456645.24 | U35: 1982456.472 | V35: 145309307.5 | W35: 58833762.05
D36: Cost/kgd | E36: USD/kgd | F36: ='Electrolyzer Data'!F19 -> 1952.929687 | G36: ='Electrolyzer Data'!G19 -> 1408.876812 | H36: ='Electrolyzer Data'!H19 -> 844.5101351 | I36: ='Electrolyzer Data'!F39 -> 1116.18 | J36: =J35/J30/24 -> 1289.68125 | K36: 1641.4125 | L36: 3393.335941 | M36: 1562.654703 | N36: 3026.53097 | O36: 1782.751119 | P36: 1305.968843 | Q36: 1041.676042 | R36: 3250.02925 | S36: 375.003375 | T36: 2971.096826 | U36: 1321.637648 | V36: 2906.18615 | W36: 1176.675241
D38: Stack Percent | E38: % | F38: 0.45 | G38: 0.45 | H38: 0.45 | I38: 0.45 | J38: ='Electrolyzer Data'!F56 -> 0.4615384615 | K38: ='Electrolyzer Data'!G56 -> 0.4615384615 | L38: ='Electrolyzer Data'!F94 -> 0.4 | M38: 0.45 | N38: ='Electrolyzer Data'!F135 -> 0.3287671233 | O38: ='Electrolyzer Data'!G135 -> 0.4011627907 | P38: ='Electrolyzer Data'!H135 -> 0.4682539683 | Q38: ='Electrolyzer Data'!F169 -> 0.54 | R38: ='Electrolyzer Data'!G169 -> 0.27 | S38: ='Electrolyzer Data'!H169 -> 0.5 | T38: ='Electrolyzer Data'!F240 -> 0.41 | U38: ='Electrolyzer Data'!G240 -> 0.38 | V38: ='Electrolyzer Data'!H240 -> 0.47 | W38: ='Electrolyzer Data'!I240 -> 0.37
D39: Stack Cost | E39: USD | F39: =F38*F35 -> 439452685.5 | G39: 317028668.5 | H39: 190033593.8 | I39: 251165365.4 | J39: 297618750 | K39: 378787500 | L39: 5616556.04 | M39: 16876670.79 | N39: 480047.5248 | O39: 6900683.168 | P39: 29502920.79 | Q39: 2700024.3 | R39: 2700024.3 | S39: 1000009 | T39: 1827224.548 | U39: 753333.4593 | V39: 68295374.53 | W39: 21768491.96
D41: Project Life to Calculator | E41: Years | F41: =MAX($F$19,F46) -> 42 | G41: =MAX($F$19,G46) -> 42 | H41: 44 | I41: 38 | J41: 38 | K41: 38 | L41: 30 | M41: 38 | N41: 30 | O41: 30 | P41: 30 | Q41: 27 | R41: 27 | S41: 44 | T41: =MAX($F$19,T46) -> 31 | U41: =MAX($F$19,U46) -> 31 | V41: 31 | W41: 31
D42: Tax Life to Calculator | E42: Years | F42: =F20 -> 5 | G42: =F42 -> 5 | H42: =G42 -> 5 | I42: =H42 -> 5 | J42: 5 | K42: 5 | L42: =K42 -> 5 | M42: 5 | N42: 5 | O42: =N42 -> 5 | P42: 5 | Q42: 5 | R42: 5 | S42: =R42 -> 5 | T42: 5 | U42: =T42 -> 5 | V42: 5 | W42: 5
D43: Hours of Operation | E43: Hours | F43: =F25*8766 -> 2279.16 | G43: 2279.16 | H43: 2279.16 | I43: 2279.16 | J43: 2279.16 | K43: 2279.16 | L43: 2279.16 | M43: 2279.16 | N43: 2279.16 | O43: 2279.16 | P43: 2279.16 | Q43: 2279.16 | R43: 2279.16 | S43: 2279.16 | T43: 2279.16 | U43: 2279.16 | V43: 2279.16 | W43: 2279.16
D44: Stack Life | E44: Hours | F44: ='Electrolyzer Data'!F22 -> 95000 | G44: ='Electrolyzer Data'!G22 -> 95000 | H44: ='Electrolyzer Data'!H22 -> 100000 | I44: 85000 | J44: ='Electrolyzer Data'!F52 -> 85000 | K44: =J44 -> 85000 | L44: ='Electrolyzer Data'!F93 -> 68000 | M44: 85000 | N44: ='Electrolyzer Data'!F137 -> 67500 | O44: ='Electrolyzer Data'!G137 -> 67500 | P44: ='Electrolyzer Data'!H137 -> 67500 | Q44: ='Electrolyzer Data'!F171 -> 60000 | R44: ='Electrolyzer Data'!G171 -> 60000 | S44: ='Electrolyzer Data'!H171 -> 100000 | T44: 70000 | U44: 70000 | V44: 70000 | W44: 70000
D45: Stack Life | E45: Years | F45: =F44/F43 -> 41.6820232 | G45: =G44/G43 -> 41.6820232 | H45: 43.8758139 | I45: 37.29444181 | J45: 37.29444181 | K45: 37.29444181 | L45: 29.83555345 | M45: 37.29444181 | N45: 29.61617438 | O45: 29.61617438 | P45: 29.61617438 | Q45: 26.32548834 | R45: 26.32548834 | S45: 43.8758139 | T45: =T44/T43 -> 30.71306973 | U45: =U44/U43 -> 30.71306973 | V45: =V44/V43 -> 30.71306973 | W45: =W44/W43 -> 30.71306973
D46: Stack Life Applied | E46: Years | F46: =ROUNDUP(F45,0) -> 42 | G46: =ROUNDUP(G45,0) -> 42 | H46: 44 | I46: 38 | J46: 38 | K46: 38 | L46: 30 | M46: 38 | N46: 30 | O46: 30 | P46: 30 | Q46: 27 | R46: 27 | S46: 44 | T46: =ROUNDUP(T45,0) -> 31 | U46: =ROUNDUP(U45,0) -> 31 | V46: =ROUNDUP(V45,0) -> 31 | W46: =ROUNDUP(W45,0) -> 31
C48: O&M Costs
D49: Efficiency | E49: MWH/kg | F49: =F29/1000 -> 0.05208328125 | G49: 0.04830913043 | H49: 0.045045 | I49: 0.0537633871 | J49: 0.047619 | K49: 0.060606 | L49: 0.05800574257 | M49: 0.0500049505 | N49: 0.04975119403 | O49: 0.04975119403 | P49: 0.04975119403 | Q49: 0.05000045 | R49: 0.07800070201 | S49: 0.045000405 | T49: 0.05688896535 | U49: 0.05240518812 | V49: 0.05656810025 | W49: 0.05229667738
D50: Electricity Cost at Plant | E50: USD/MMBTU | F50: =$F$10 -> 15 | G50: =$F$10 -> 15 | H50: 15 | I50: 15 | J50: 15 | K50: 15 | L50: 15 | M50: 15 | N50: 15 | O50: 15 | P50: 15 | Q50: 15 | R50: 15 | S50: 15 | T50: 15 | U50: 15 | V50: 15 | W50: 15
D51: Cost per kg | E51: USD/kg | F51: =F49*F50 -> 0.7812492187 | G51: =G49*G50 -> 0.7246369565 | H51: 0.675675 | I51: 0.8064508065 | J51: 0.714285 | K51: 0.90909 | L51: =L49*L50 -> 0.8700861386 | M51: =M49*M50 -> 0.7500742574 | N51: =N49*N50 -> 0.7462679104 | O51: =O49*O50 -> 0.7462679104 | P51: =P49*P50 -> 0.7462679104 | Q51: =Q49*Q50 -> 0.7500067501 | R51: =R49*R50 -> 1.17001053 | S51: 0.6750060751 | T51: =T49*T50 -> 0.8533344802 | U51: =U49*U50 -> 0.7860778218 | V51: =V49*V50 -> 0.8485215037 | W51: =W49*W50 -> 0.7844501606
D53: Total Production | E53: kg | F53: =F26 -> 47482500 | G53: 47482500 | H53: 47482500 | I53: 47482500 | J53: 47482500 | K53: 47482500 | L53: 392958.6207 | M53: 2279160 | N53: 45815.69757 | O53: 916313.9514 | P53: 4581569.757 | Q53: 455832 | R53: 292200 | S53: 506480 | T53: 142447.5 | U53: 142447.5 | V53: 4748250 | W53: 4748250
D54: Electricity Cost | E54: USD | F54: =F53*F51 -> 37095666.03 | G54: =G53*G51 -> 34407574.29 | H54: 32082738.19 | I54: 38292300.42 | J54: 33916037.51 | K54: 43165865.92 | L54: =L53*L51 -> 341907.8489 | M54: =M53*M51 -> 1709539.245 | N54: =N53*N51 -> 34190.78489 | O54: =O53*O51 -> 683815.6978 | P54: =P53*P51 -> 3419078.489 | Q54: =Q53*Q51 -> 341877.0769 | R54: =R53*R51 -> 341877.0769 | S54: 341877.0769 | T54: =T53*T51 -> 121555.3634 | U54: =U53*U51 -> 111974.8205 | V54: =V53*V51 -> 4028992.23 | W54: =W53*W51 -> 3724765.475
D56: O&M as Percent of Capital Cost | E56: % of Capital | F56: ='Electrolyzer Data'!F21 -> 0.015 | G56: ='Electrolyzer Data'!G21 -> 0.015 | H56: ='Electrolyzer Data'!H21 -> 0.015 | I56: ='Electrolyzer Data'!F45 -> 0.1243885395 | J56: ='Electrolyzer Data'!H57 -> 0.02 | K56: ='Electrolyzer Data'!I57 -> 0.02 | L56: ='Electrolyzer Data'!F96 -> 0.03 | M56: ='Electrolyzer Data'!F112 -> 0.05333333333 | N56: ='Electrolyzer Data'!F150 -> 0.015 | O56: ='Electrolyzer Data'!G150 -> 0.015 | P56: ='Electrolyzer Data'!H150 -> 0.015 | Q56: =F56 -> 0.015 | R56: =G56 -> 0.015 | S56: 0.015 | T56: =S56 -> 0.015 | U56: =J56 -> 0.02 | V56: =K56 -> 0.02 | W56: =L56 -> 0.03
D57: Annual O&M Cost | E57: USD | F57: =F56*F35 -> 14648422.85 | G57: 10567622.28 | H57: 6334453.125 | I57: 69426873.27 | J57: 12896812.5 | K57: 16414125 | L57: 421241.703 | M57: 2000198.02 | N57: 21902.16832 | O57: 258025.5446 | P57: 945093.5644 | Q57: 75000.67501 | R57: 150001.35 | S57: 30000.27 | T57: 66849.67859 | U57: 39649.12943 | V57: 2906186.15 | W57: 1765012.861
D59: Total O&M Cost to Calculator | E59: USD | F59: =F57+F54 -> 51744088.88 | G59: =G57+G54 -> 44975196.57 | H59: 38417191.31 | I59: 107719173.7 | J59: 46812850.01 | K59: 59579990.92 | L59: 763149.5519 | M59: 3709737.264 | N59: 56092.95321 | O59: 941841.2424 | P59: 4364172.053 | Q59: 416877.7519 | R59: 491878.4269 | S59: 371877.3469 | T59: =T57+T54 -> 188405.042 | U59: 151623.95 | V59: =V57+V54 -> 6935178.38 | W59: 5489778.337
F64: =F2&" "&F3 -> IEA Today | G64: IEA 2030 | H64: IEA Long-term | I64: Norway Electrolyzer | J64: Middle East Best | K64: Middle East Worst | L64: Actual Case | M64: Australia | N64: Lazard Small | O64: Lazard Medium | P64: Lazard Large | Q64: IRENA Current Best | R64: IRENA Current Worst | S64: IRENA Future | T64: NREL Forecort Current | U64: NREL Forecort Future
D65: Efficiency - kWh Input/kg Output | F65: =F29 -> 52.08328125 | G65: 48.30913043 | H65: 45.045 | I65: 53.7633871 | J65: 47.619 | K65: 60.606 | L65: 58.00574257 | M65: 50.0049505 | N65: 49.75119403 | O65: 49.75119403 | P65: 49.75119403 | Q65: 50.00045 | R65: 78.00070201 | S65: 45.000405 | T65: 56.88896535 | U65: 52.40518812
F67: =F64 -> IEA Today | G67: =G64 -> IEA 2030 | H67: IEA Long-term | I67: Norway Electrolyzer | J67: Middle East Best | K67: Middle East Worst | L67: Actual Case | M67: Australia | N67: Lazard Small | O67: Lazard Medium | P67: Lazard Large | Q67: IRENA Current Best | R67: IRENA Current Worst | S67: IRENA Future | T67: NREL Forecort Current | U67: NREL Forecort Future
D68: Capital Cost/kgd | F68: =F36 -> 1952.929687 | G68: =G36 -> 1408.876812 | H68: 844.5101351 | I68: 1116.18 | J68: 1289.68125 | K68: 1641.4125 | L68: 3393.335941 | M68: 1562.654703 | N68: 3026.53097 | O68: 1782.751119 | P68: 1305.968843 | Q68: 1041.676042 | R68: 3250.02925 | S68: 375.003375 | T68: 2971.096826 | U68: 1321.637648
F70: =F67 -> IEA Today | G70: =G67 -> IEA 2030 | H70: IEA Long-term | I70: Norway Electrolyzer | J70: Middle East Best | K70: Middle East Worst | L70: Actual Case | M70: Australia | N70: Lazard Small | O70: Lazard Medium | P70: Lazard Large | Q70: IRENA Current Best | R70: IRENA Current Worst | S70: IRENA Future | T70: NREL Forecort Current | U70: NREL Forecort Future
D71: Stack Percent | F71: =F38 -> 0.45 | G71: =G38 -> 0.45 | H71: 0.45 | I71: 0.45 | J71: 0.4615384615 | K71: 0.4615384615 | L71: 0.4 | M71: 0.45 | N71: 0.3287671233 | O71: 0.4011627907 | P71: 0.4682539683 | Q71: 0.54 | R71: 0.27 | S71: 0.5 | T71: 0.41 | U71: 0.38
F73: =F70 -> IEA Today | G73: =G70 -> IEA 2030 | H73: IEA Long-term | I73: Norway Electrolyzer | J73: Middle East Best | K73: Middle East Worst | L73: Actual Case | M73: Australia | N73: Lazard Small | O73: Lazard Medium | P73: Lazard Large | Q73: IRENA Current Best | R73: IRENA Current Worst | S73: IRENA Future | T73: NREL Forecort Current | U73: NREL Forecort Future
D74: Stack Life in Hours | F74: =F44 -> 95000 | G74: =G44 -> 95000 | H74: 100000 | I74: 85000 | J74: 85000 | K74: 85000 | L74: 68000 | M74: 85000 | N74: 67500 | O74: 67500 | P74: 67500 | Q74: 60000 | R74: 60000 | S74: 100000 | T74: 70000 | U74: 70000
F76: =F73 -> IEA Today | G76: =G73 -> IEA 2030 | H76: IEA Long-term | I76: Norway Electrolyzer | J76: Middle East Best | K76: Middle East Worst | L76: Actual Case | M76: Australia | N76: Lazard Small | O76: Lazard Medium | P76: Lazard Large | Q76: IRENA Current Best | R76: IRENA Current Worst | S76: IRENA Future | T76: NREL Forecort Current | U76: NREL Forecort Future
D77: O&M Percent | F77: =F56 -> 0.015 | G77: =G56 -> 0.015 | H77: 0.015 | I77: 0.1243885395 | J77: 0.02 | K77: 0.02 | L77: 0.03 | M77: 0.05333333333 | N77: 0.015 | O77: 0.015 | P77: 0.015 | Q77: 0.015 | R77: 0.015 | S77: 0.015 | T77: 0.015 | U77: 0.02

Sheet Electrolyzer Inputs (2)
F1: IEA | G1: Stack | H1: Non-Stack | I1: IEA | J1: Stack | K1: Non-Stack | L1: IEA | M1: Stack | N1: Non-Stack | O1: Norway | P1: Stack | Q1: Non-Stack | R1: Middle East | S1: Stack | T1: Non-Stack | U1: Middle East | V1: Stack | W1: Non-Stack | X1: Actual Case | Y1: Stack | Z1: Non-Stack | AA1: Australia | AB1: Stack | AC1: Non-Stack | AD1: Lazard | AE1: Stack | AF1: Non-Stack | AG1: Lazard | AH1: Stack | AI1: Non-Stack | AJ1: Lazard | AK1: Stack | AL1: Non-Stack | AM1: IRENA | AN1: Stack | AO1: Non-Stack | AP1: IRENA | AQ1: Stack | AR1: Non-Stack | AS1: IRENA | AT1: Stack | AU1: Non-Stack | AV1: ='Electrolyzer Data'!F205 -> NREL Forecort | AW1: Stack | AX1: Non-Stack | AY1: ='Electrolyzer Data'!G205 -> NREL Forecort | AZ1: Stack | BA1: Non-Stack | BB1: ='Electrolyzer Data'!H205 -> NREL Central | BC1: Stack | BD1: Non-Stack | BE1: ='Electrolyzer Data'!I205 -> NREL Central | BF1: Stack | BG1: Non-Stack | BH1: Applied Case | BI1: Stack | BJ1: Non-Stack | BK1: Best Future | BL1: Stack | BM1: Non-Stack
F2: Today | G2: Portion | H2: Portion | I2: 2030 | J2: Portion | K2: Portion | L2: Long-term | M2: Portion | N2: Portion | O2: Electrolyzer | P2: Portion | Q2: Portion | R2: Best | S2: Portion | T2: Portion | U2: Worst | V2: Portion | W2: Portion | Y2: Portion | Z2: Portion | AB2: Portion | AC2: Portion | AD2: Small | AE2: Portion | AF2: Portion | AG2: Medium | AH2: Portion | AI2: Portion | AJ2: Large | AK2: Portion | AL2: Portion | AM2: Current Best | AN2: Portion | AO2: Portion | AP2: Current Worst | AQ2: Portion | AR2: Portion | AS2: Future | AT2: Portion | AU2: Portion | AV2: ='Electrolyzer Data'!F206 -> Current | AW2: Portion | AX2: Portion | AY2: ='Electrolyzer Data'!G206 -> Future | AZ2: Portion | BA2: Portion | BB2: ='Electrolyzer Data'!H206 -> Current | BC2: Portion | BD2: Portion | BE2: ='Electrolyzer Data'!I206 -> Future | BF2: Portion | BG2: Portion | BH2: Current | BI2: Portion | BJ2: Portion | BK2: Case | BL2: Portion | BM2: Portion
B4: Sensitivity Variables
C5: Natural Gas Price | E5: USD/MMBTU | F5: ='Electrolyzer Inputs'!F6 -> 5
C6: Heat Rate | E6: MMBTU/MWH | F6: ='Electrolyzer Inputs'!F7 -> 6.5
C7: Implied Electricity Price | E7: USD/MWH | F7: ='Electrolyzer Inputs'!F8 -> 32.5
C9: Electricity Price | E9: USD/MWH | F9: ='Electrolyzer Inputs'!F10 -> 15
C10: Capacity Factor | E10: % | F10: ='Electrolyzer Inputs'!F11 -> 0.26
C11: Emissions Cost | E11: USD/Ton | F11: ='Electrolyzer Inputs'!F12 -> 10
C12: Inflation Rate | E12: % p.a. | F12: ='Electrolyzer Inputs'!F13 -> 0.03
C13: Cost of Equity | E13: % p.a. | F13: 0.08
C14: Cost of Debt | E14: % p.a. | F14: 0.05
C15: Income Tax Rate | E15: % | F15: ='Electrolyzer Inputs'!F16 -> 0.3
C16: Debt to Capital | E16: % | F16: 0.9
C17: Converstion | E17: kWh/kg | F17: ='Electrolyzer Inputs'!F18 -> 33.3333
C18: System Life | E18: Years | F18: ='Electrolyzer Inputs'!F19 -> 25
C19: Tax Life | E19: Years | F19: ='Electrolyzer Inputs'!F20 -> 5
C20: Degradation | E20: % | F20: ='Electrolyzer Inputs'!F21 -> 0.005
C22: Annual Production
D23: Capacity | E23: kgd | F23: 500000 | I23: =F23 -> 500000 | L23: =I23 -> 500000 | O23: =L23 -> 500000 | R23: =O23 -> 500000 | U23: =R23 -> 500000 | X23: ='Electrolyzer Data'!F85 -> 4137.931034 | AA23: ='Electrolyzer Data'!F102 -> 24000 | AD23: ='Electrolyzer Data'!F154 -> 482.4482448 | AG23: ='Electrolyzer Data'!G154 -> 9648.964896 | AJ23: ='Electrolyzer Data'!H154 -> 48244.82448 | AM23: ='Electrolyzer Data'!F178 -> 4800 | AP23: ='Electrolyzer Data'!G178 -> 3076.923077 | AS23: ='Electrolyzer Data'!H178 -> 5333.333333 | AV23: ='Electrolyzer Data'!F210 -> 1500 | AY23: ='Electrolyzer Data'!G210 -> 1500 | BB23: ='Electrolyzer Data'!H210 -> 50000 | BE23: ='Electrolyzer Data'!I210 -> 50000 | BH23: =BE23 -> 50000 | BK23: =BH23 -> 50000
D24: Capacity Factor | E24: % | F24: =F10 -> 0.26 | I24: =F24 -> 0.26 | L24: =I24 -> 0.26 | O24: =L24 -> 0.26 | R24: =O24 -> 0.26 | U24: =R24 -> 0.26 | X24: =U24 -> 0.26 | AA24: =X24 -> 0.26 | AD24: =AA24 -> 0.26 | AG24: =AD24 -> 0.26 | AJ24: =AG24 -> 0.26 | AM24: =AJ24 -> 0.26 | AP24: =AM24 -> 0.26 | AS24: =AP24 -> 0.26 | AV24: =AS24 -> 0.26 | AY24: =AV24 -> 0.26 | BB24: =AY24 -> 0.26 | BE24: =BB24 -> 0.26 | BH24: =BE24 -> 0.26 | BK24: =BH24 -> 0.26
D25: Annual Production to Levelised Cost Calculator | E25: kgy | F25: =F23*F24*365.25 -> 47482500 | G25: =F25 -> 47482500 | H25: =G25 -> 47482500 | I25: =I23*I24*365.25 -> 47482500 | J25: =I25 -> 47482500 | K25: =J25 -> 47482500 | L25: 47482500 | M25: =L25 -> 47482500 | N25: =L25 -> 47482500 | O25: 47482500 | P25: =O25 -> 47482500 | Q25: =O25 -> 47482500 | R25: 47482500 | S25: =R25 -> 47482500 | T25: =R25 -> 47482500 | U25: 47482500 | V25: =U25 -> 47482500 | W25: =U25 -> 47482500 | X25: 392958.6207 | Y25: =X25 -> 392958.6207 | Z25: =X25 -> 392958.6207 | AA25: 2279160 | AB25: =AA25 -> 2279160 | AC25: =AA25 -> 2279160 | AD25: 45815.69757 | AE25: =AD25 -> 45815.69757 | AF25: =AD25 -> 45815.69757 | AG25: 916313.9514 | AH25: =AG25 -> 916313.9514 | AI25: =AG25 -> 916313.9514 | AJ25: 4581569.757 | AK25: =AJ25 -> 4581569.757 | AL25: =AJ25 -> 4581569.757 | AM25: 455832 | AN25: =AM25 -> 455832 | AO25: =AM25 -> 455832 | AP25: 292200 | AQ25: =AP25 -> 292200 | AR25: =AP25 -> 292200 | AS25: 506480 | AT25: =AS25 -> 506480 | AU25: =AS25 -> 506480 | AV25: 142447.5 | AW25: =AV25 -> 142447.5 | AX25: =AV25 -> 142447.5 | AY25: 142447.5 | AZ25: =AY25 -> 142447.5 | BA25: =AY25 -> 142447.5 | BB25: 4748250 | BC25: =BB25 -> 4748250 | BD25: =BB25 -> 4748250 | BE25: 4748250 | BF25: =BE25 -> 4748250 | BG25: =BE25 -> 4748250 | BH25: =BH23*BH24*365.25 -> 4748250 | BI25: =BH25 -> 4748250 | BJ25: =BH25 -> 4748250 | BK25: =BK23*BK24*365.25 -> 4748250 | BL25: =BK25 -> 4748250 | BM25: =BK25 -> 4748250
D27: Efficiency | E27: % | F27: ='Electrolyzer Data'!F6 -> 0.64 | I27: ='Electrolyzer Data'!G6 -> 0.69 | L27: ='Electrolyzer Data'!H6 -> 0.74 | O27: ='Electrolyzer Data'!F34 -> 0.62 | R27: ='Electrolyzer Data'!H58 -> 0.7 | U27: ='Electrolyzer Data'!I58 -> 0.55 | X27: ='Electrolyzer Data'!F81 -> 0.5746551724 | AA27: ='Electrolyzer Data'!F104 -> 0.6666 | AD27: ='Electrolyzer Data'!F140 -> 0.67 | AG27: ='Electrolyzer Data'!G140 -> 0.67 | AJ27: ='Electrolyzer Data'!H140 -> 0.67 | AM27: ='Electrolyzer Data'!F174 -> 0.66666 | AP27: ='Electrolyzer Data'!G174 -> 0.4273461538 | AS27: ='Electrolyzer Data'!H174 -> 0.7407333333 | AV27: ='Electrolyzer Data'!F222 -> 0.5859361266 | AY27: ='Electrolyzer Data'!G222 -> 0.6360687023 | BB27: ='Electrolyzer Data'!H222 -> 0.5892596685 | BE27: ='Electrolyzer Data'!I222 -> 0.6373884857 | BH27: =F27 -> 0.64 | BK27: =AS27 -> 0.7407333333
D28: kWh Output/kg | E28: kwh/kg | F28: =$F$17/F27 -> 52.08328125 | I28: =$F$17/I27 -> 48.30913043 | L28: 45.045 | O28: 53.7633871 | R28: 47.619 | U28: 60.606 | X28: 58.00574257 | AA28: 50.0049505 | AD28: 49.75119403 | AG28: 49.75119403 | AJ28: 49.75119403 | AM28: 50.00045 | AP28: 78.00070201 | AS28: 45.000405 | AV28: 56.88896535 | AY28: 52.40518812 | BB28: 56.56810025 | BE28: 52.29667738 | BH28: =$F$17/BH27 -> 52.08328125 | BK28: =$F$17/BK27 -> 45.000405
D29: Capacity | E29: kgh | F29: =F23/24 -> 20833.33333 | I29: =I23/24 -> 20833.33333 | L29: 20833.33333 | O29: 20833.33333 | R29: 20833.33333 | U29: 20833.33333 | X29: 172.4137931 | AA29: 1000 | AD29: 20.1020102 | AG29: 402.040204 | AJ29: 2010.20102 | AM29: 200 | AP29: 128.2051282 | AS29: 222.2222222 | AV29: 62.5 | AY29: 62.5 | BB29: 2083.333333 | BE29: 2083.333333 | BH29: =BH23/24 -> 2083.333333 | BK29: =BK23/24 -> 2083.333333
D30: Capacity | E30: kW | F30: =F29*F28 -> 1085068.359 | I30: =I29*I28 -> 1006440.217 | L30: 938437.5 | O30: 1120070.565 | R30: 992062.5 | U30: 1262625 | X30: 10000.9901 | AA30: 50004.9505 | AD30: 1000.09901 | AG30: 20001.9802 | AJ30: 100009.901 | AM30: 10000.09 | AP30: 10000.09 | AS30: 10000.09 | AV30: 3555.560334 | AY30: 3275.324257 | BB30: 117850.2088 | BE30: 108951.4112 | BH30: =BH29*BH28 -> 108506.8359 | BK30: =BK29*BK28 -> 93750.84376
C32: Capital Cost
D33: Cost/kW | E33: USD/kW | F33: ='Electrolyzer Data'!F5 -> 900 | I33: ='Electrolyzer Data'!G5 -> 700 | L33: ='Electrolyzer Data'!H5 -> 450 | O33: ='Electrolyzer Data'!F40 -> 498.3125833 | R33: ='Electrolyzer Data'!H54 -> 650 | U33: ='Electrolyzer Data'!I54 -> 650 | X33: ='Electrolyzer Data'!F80 -> 1404 | AA33: ='Electrolyzer Data'!F108 -> 750 | AD33: ='Electrolyzer Data'!F133 -> 1460 | AG33: ='Electrolyzer Data'!G133 -> 860 | AJ33: ='Electrolyzer Data'!H133 -> 630 | AM33: ='Electrolyzer Data'!F167 -> 500 | AP33: ='Electrolyzer Data'!G167 -> 1000 | AS33: ='Electrolyzer Data'!H167 -> 200 | AV33: ='Electrolyzer Data'!F236 -> 1253.429789 | AY33: ='Electrolyzer Data'!G236 -> 605.2702926 | BB33: ='Electrolyzer Data'!H236 -> 1233 | BE33: ='Electrolyzer Data'!I236 -> 540 | BH33: =R33 -> 650 | BK33: =AS33 -> 200
D34: Total Capital cost to Levelised Cost Calculator | E34: USD | F34: =F33*F30 -> 976561523.4 | G34: =F38 -> 439452685.5 | H34: =F34-G34 -> 537108837.9 | I34: =I33*I30 -> 704508152.2 | J34: =I34*I37 -> 317028668.5 | K34: =I34-J34 -> 387479483.7 | L34: 422296875 | M34: =L34*L37 -> 190033593.8 | N34: =L34-M34 -> 232263281.2 | O34: 558145256.4 | P34: =O34*O37 -> 251165365.4 | Q34: =O34-P34 -> 306979891 | R34: 644840625 | S34: =R34*R37 -> 297618750 | T34: =R34-S34 -> 347221875 | U34: 820706250 | V34: =U34*U37 -> 378787500 | W34: =U34-V34 -> 441918750 | X34: 14041390.1 | Y34: =X34*X37 -> 5616556.04 | Z34: =X34-Y34 -> 8424834.059 | AA34: 37503712.87 | AB34: =AA34*AA37 -> 16876670.79 | AC34: =AA34-AB34 -> 20627042.08 | AD34: 1460144.554 | AE34: =AD34*AD37 -> 480047.5248 | AF34: =AD34-AE34 -> 980097.0297 | AG34: 17201702.97 | AH34: =AG34*AG37 -> 6900683.168 | AI34: =AG34-AH34 -> 10301019.8 | AJ34: 63006237.62 | AK34: =AJ34*AJ37 -> 29502920.79 | AL34: =AJ34-AK34 -> 33503316.83 | AM34: 5000045 | AN34: =AM34*AM37 -> 2700024.3 | AO34: =AM34-AN34 -> 2300020.7 | AP34: 10000090 | AQ34: =AP34*AP37 -> 2700024.3 | AR34: =AP34-AQ34 -> 7300065.701 | AS34: 2000018 | AT34: =AS34*AS37 -> 1000009 | AU34: =AS34-AT34 -> 1000009 | AV34: 4456645.24 | AW34: =AV34*AV37 -> 1827224.548 | AX34: =AV34-AW34 -> 2629420.691 | AY34: 1982456.472 | AZ34: =AY34*AY37 -> 753333.4593 | BA34: =AY34-AZ34 -> 1229123.012 | BB34: 145309307.5 | BC34: =BB34*BB37 -> 68295374.53 | BD34: =BB34-BC34 -> 77013932.98 | BE34: 58833762.05 | BF34: =BE34*BE37 -> 21768491.96 | BG34: =BE34-BF34 -> 37065270.09 | BH34: =BH33*BH30 -> 70529443.36 | BI34: =BH34*BH37 -> 31738249.51 | BJ34: =BH34-BI34 -> 38791193.85 | BK34: =BK33*BK30 -> 18750168.75 | BL34: =BK34*BK37 -> 9375084.376 | BM34: =BK34-BL34 -> 9375084.376
D35: Cost/kgd | E35: USD/kgd | F35: ='Electrolyzer Data'!F19 -> 1952.929687 | I35: ='Electrolyzer Data'!G19 -> 1408.876812 | L35: ='Electrolyzer Data'!H19 -> 844.5101351 | O35: ='Electrolyzer Data'!F39 -> 1116.18 | R35: =R34/R29/24 -> 1289.68125 | U35: =U34/U29/24 -> 1641.4125 | X35: 3393.335941 | AA35: 1562.654703 | AD35: 3026.53097 | AG35: 1782.751119 | AJ35: 1305.968843 | AM35: 1041.676042 | AP35: 3250.02925 | AS35: 375.003375 | AV35: 2971.096826 | AY35: 1321.637648 | BB35: 2906.18615 | BE35: 1176.675241 | BH35: =BH34/BH29/24 -> 1410.588867 | BK35: =BK34/BK29/24 -> 375.003375
D37: Stack Percent | E37: % | F37: 0.45 | I37: 0.45 | L37: 0.45 | O37: 0.45 | R37: ='Electrolyzer Data'!F56 -> 0.4615384615 | U37: ='Electrolyzer Data'!G56 -> 0.4615384615 | X37: ='Electrolyzer Data'!F94 -> 0.4 | AA37: 0.45 | AD37: ='Electrolyzer Data'!F135 -> 0.3287671233 | AG37: ='Electrolyzer Data'!G135 -> 0.4011627907 | AJ37: ='Electrolyzer Data'!H135 -> 0.4682539683 | AM37: ='Electrolyzer Data'!F169 -> 0.54 | AP37: ='Electrolyzer Data'!G169 -> 0.27 | AS37: ='Electrolyzer Data'!H169 -> 0.5 | AV37: ='Electrolyzer Data'!F240 -> 0.41 | AY37: ='Electrolyzer Data'!G240 -> 0.38 | BB37: ='Electrolyzer Data'!H240 -> 0.47 | BE37: ='Electrolyzer Data'!I240 -> 0.37 | BH37: =AA37 -> 0.45 | BK37: =AS37 -> 0.5
D38: Stack Cost | E38: USD | F38: =F37*F34 -> 439452685.5 | I38: =I37*I34 -> 317028668.5 | L38: 190033593.8 | O38: 251165365.4 | R38: 297618750 | U38: 378787500 | X38: 5616556.04 | AA38: 16876670.79 | AD38: 480047.5248 | AG38: 6900683.168 | AJ38: 29502920.79 | AM38: 2700024.3 | AP38: 2700024.3 | AS38: 1000009 | AV38: 1827224.548 | AY38: 753333.4593 | BB38: 68295374.53 | BE38: 21768491.96 | BH38: =BH37*BH34 -> 31738249.51 | BK38: =BK37*BK34 -> 9375084.376
D40: Project Life to Calculator | E40: Years | F40: =MAX($F$18,F45) -> 42 | G40: =F45 -> 42 | H40: =F40 -> 42 | I40: =MAX($F$18,I45) -> 42 | J40: =I45 -> 42 | K40: =I40 -> 42 | L40: 44 | M40: =L45 -> 44 | N40: =L40 -> 44 | O40: 38 | P40: =O45 -> 38 | Q40: =O40 -> 38 | R40: 38 | S40: =R45 -> 38 | T40: =R40 -> 38 | U40: 38 | V40: =U45 -> 38 | W40: =U40 -> 38 | X40: 30 | Y40: =X45 -> 30 | Z40: =X40 -> 30 | AA40: 38 | AB40: =AA45 -> 38 | AC40: =AA40 -> 38 | AD40: 30 | AE40: =AD45 -> 30 | AF40: =AD40 -> 30 | AG40: 30 | AH40: =AG45 -> 30 | AI40: =AG40 -> 30 | AJ40: 30 | AK40: =AJ45 -> 30 | AL40: =AJ40 -> 30 | AM40: 27 | AN40: =AM45 -> 27 | AO40: =AM40 -> 27 | AP40: 27 | AQ40: =AP45 -> 27 | AR40: =AP40 -> 27 | AS40: 44 | AT40: =AS45 -> 44 | AU40: =AS40 -> 44 | AV40: 31 | AW40: =AV45 -> 31 | AX40: =AV40 -> 31 | AY40: 31 | AZ40: =AY45 -> 31 | BA40: =AY40 -> 31 | BB40: 31 | BC40: =BB45 -> 31 | BD40: =BB40 -> 31 | BE40: 31 | BF40: =BE45 -> 31 | BG40: =BE40 -> 31 | BH40: =MAX($F$18,BH45) -> 31 | BI40: =BH45 -> 31 | BJ40: =BH40 -> 31 | BK40: =MAX($F$18,BK45) -> 31 | BL40: =BK45 -> 31 | BM40: =BK40 -> 31
D41: Tax Life to Calculator | E41: Years | F41: =F19 -> 5 | I41: =F41 -> 5 | L41: =I41 -> 5 | O41: =L41 -> 5 | R41: =O41 -> 5 | U41: =R41 -> 5 | X41: =U41 -> 5 | AA41: =X41 -> 5 | AD41: =AA41 -> 5 | AG41: =AD41 -> 5 | AJ41: =AG41 -> 5 | AM41: =AJ41 -> 5 | AP41: =AM41 -> 5 | AS41: =AP41 -> 5 | AV41: =AS41 -> 5 | AY41: =AV41 -> 5 | BB41: =AY41 -> 5 | BE41: =BB41 -> 5 | BH41: =BE41 -> 5 | BK41: =BH41 -> 5
D42: Hours of Operation | E42: Hours | F42: =F24*8766 -> 2279.16 | I42: =I24*8766 -> 2279.16 | L42: 2279.16 | O42: 2279.16 | R42: 2279.16 | U42: 2279.16 | X42: 2279.16 | AA42: 2279.16 | AD42: 2279.16 | AG42: 2279.16 | AJ42: 2279.16 | AM42: 2279.16 | AP42: 2279.16 | AS42: 2279.16 | AV42: 2279.16 | AY42: 2279.16 | BB42: 2279.16 | BE42: 2279.16 | BH42: =BH24*8766 -> 2279.16 | BK42: =BK24*8766 -> 2279.16
D43: Stack Life | E43: Hours | F43: ='Electrolyzer Data'!F22 -> 95000 | I43: ='Electrolyzer Data'!G22 -> 95000 | L43: ='Electrolyzer Data'!H22 -> 100000 | O43: 85000 | R43: ='Electrolyzer Data'!F52 -> 85000 | U43: =R43 -> 85000 | X43: ='Electrolyzer Data'!F93 -> 68000 | AA43: 85000 | AD43: ='Electrolyzer Data'!F137 -> 67500 | AG43: ='Electrolyzer Data'!G137 -> 67500 | AJ43: ='Electrolyzer Data'!H137 -> 67500 | AM43: ='Electrolyzer Data'!F171 -> 60000 | AP43: ='Electrolyzer Data'!G171 -> 60000 | AS43: ='Electrolyzer Data'!H171 -> 100000 | AV43: 70000 | AY43: 70000 | BB43: 70000 | BE43: 70000 | BH43: =BB43 -> 70000 | BK43: =BE43 -> 70000
D44: Stack Life | E44: Years | F44: =F43/F42 -> 41.6820232 | I44: =I43/I42 -> 41.6820232 | L44: 43.8758139 | O44: 37.29444181 | R44: 37.29444181 | U44: 37.29444181 | X44: 29.83555345 | AA44: 37.29444181 | AD44: 29.61617438 | AG44: 29.61617438 | AJ44: 29.61617438 | AM44: 26.32548834 | AP44: 26.32548834 | AS44: 43.8758139 | AV44: 30.71306973 | AY44: 30.71306973 | BB44: 30.71306973 | BE44: 30.71306973 | BH44: =BH43/BH42 -> 30.71306973 | BK44: =BK43/BK42 -> 30.71306973
D45: Stack Life Applied | E45: Years | F45: =ROUNDUP(F44,0) -> 42 | I45: =ROUNDUP(I44,0) -> 42 | L45: 44 | O45: 38 | R45: 38 | U45: 38 | X45: 30 | AA45: 38 | AD45: 30 | AG45: 30 | AJ45: 30 | AM45: 27 | AP45: 27 | AS45: 44 | AV45: 31 | AY45: 31 | BB45: 31 | BE45: 31 | BH45: =ROUNDUP(BH44,0) -> 31 | BK45: =ROUNDUP(BK44,0) -> 31
C47: O&M Costs
D48: Efficiency | E48: MWH/kg | F48: =F28/1000 -> 0.05208328125 | I48: =I28/1000 -> 0.04830913043 | L48: 0.045045 | O48: 0.0537633871 | R48: 0.047619 | U48: 0.060606 | X48: 0.05800574257 | AA48: 0.0500049505 | AD48: 0.04975119403 | AG48: 0.04975119403 | AJ48: 0.04975119403 | AM48: 0.05000045 | AP48: 0.07800070201 | AS48: 0.045000405 | AV48: 0.05688896535 | AY48: 0.05240518812 | BB48: 0.05656810025 | BE48: 0.05229667738 | BH48: =BH28/1000 -> 0.05208328125 | BK48: =BK28/1000 -> 0.045000405
D49: Electricity Cost at Plant | E49: USD/MMBTU | F49: =$F$9 -> 15 | I49: =$F$9 -> 15 | L49: 15 | O49: 15 | R49: 15 | U49: 15 | X49: 15 | AA49: 15 | AD49: 15 | AG49: 15 | AJ49: 15 | AM49: 15 | AP49: 15 | AS49: 15 | AV49: 15 | AY49: 15 | BB49: 15 | BE49: 15 | BH49: =$F$9 -> 15 | BK49: =$F$9 -> 15
D50: Cost per kg | E50: USD/kg | F50: =F48*F49 -> 0.7812492187 | I50: =I48*I49 -> 0.7246369565 | L50: 0.675675 | O50: 0.8064508065 | R50: 0.714285 | U50: 0.90909 | X50: 0.8700861386 | AA50: 0.7500742574 | AD50: 0.7462679104 | AG50: 0.7462679104 | AJ50: 0.7462679104 | AM50: 0.7500067501 | AP50: 1.17001053 | AS50: 0.6750060751 | AV50: 0.8533344802 | AY50: 0.7860778218 | BB50: 0.8485215037 | BE50: 0.7844501606 | BH50: =BH48*BH49 -> 0.7812492187 | BK50: =BK48*BK49 -> 0.6750060751
D52: Total Production | E52: kg | F52: =F25 -> 47482500 | I52: =I25 -> 47482500 | L52: =L25 -> 47482500 | O52: =O25 -> 47482500 | R52: =R25 -> 47482500 | U52: =U25 -> 47482500 | X52: =X25 -> 392958.6207 | AA52: 2279160 | AD52: 45815.69757 | AG52: 916313.9514 | AJ52: 4581569.757 | AM52: 455832 | AP52: 292200 | AS52: 506480 | AV52: 142447.5 | AY52: 142447.5 | BB52: 4748250 | BE52: 4748250 | BH52: =BH25 -> 4748250 | BK52: =BK25 -> 4748250
D53: Electricity Cost | E53: USD | F53: =F52*F50 -> 37095666.03 | I53: =I52*I50 -> 34407574.29 | L53: 32082738.19 | O53: 38292300.42 | R53: 33916037.51 | U53: 43165865.92 | X53: 341907.8489 | AA53: 1709539.245 | AD53: 34190.78489 | AG53: 683815.6978 | AJ53: 3419078.489 | AM53: 341877.0769 | AP53: 341877.0769 | AS53: 341877.0769 | AV53: 121555.3634 | AY53: 111974.8205 | BB53: 4028992.23 | BE53: 3724765.475 | BH53: =BH52*BH50 -> 3709566.603 | BK53: =BK52*BK50 -> 3205097.596
D55: O&M as Percent of Capital Cost | E55: % of Capital | F55: ='Electrolyzer Data'!F21 -> 0.015 | I55: ='Electrolyzer Data'!G21 -> 0.015 | L55: ='Electrolyzer Data'!H21 -> 0.015 | O55: ='Electrolyzer Data'!F45 -> 0.1243885395 | R55: ='Electrolyzer Data'!H57 -> 0.02 | U55: ='Electrolyzer Data'!I57 -> 0.02 | X55: ='Electrolyzer Data'!F96 -> 0.03 | AA55: ='Electrolyzer Data'!F112 -> 0.05333333333 | AD55: ='Electrolyzer Data'!F150 -> 0.015 | AG55: ='Electrolyzer Data'!G150 -> 0.015 | AJ55: ='Electrolyzer Data'!H150 -> 0.015 | AM55: =F55 -> 0.015 | AP55: =I55 -> 0.015 | AS55: =L55 -> 0.015 | AV55: =X55 -> 0.03 | AY55: =R55 -> 0.02 | BB55: =U55 -> 0.02 | BE55: =X55 -> 0.03 | BH55: =BB55 -> 0.02 | BK55: =BE55 -> 0.03
D56: Annual O&M Cost | E56: USD | F56: =F55*F34 -> 14648422.85 | G56: =F53 -> 37095666.03 | H56: =F56 -> 14648422.85 | I56: =I55*I34 -> 10567622.28 | J56: =I53 -> 34407574.29 | K56: =I56 -> 10567622.28 | L56: 6334453.125 | M56: =L53 -> 32082738.19 | N56: =L56 -> 6334453.125 | O56: 69426873.27 | P56: =O53 -> 38292300.42 | Q56: =O56 -> 69426873.27 | R56: 12896812.5 | S56: =R53 -> 33916037.51 | T56: =R56 -> 12896812.5 | U56: 16414125 | V56: =U53 -> 43165865.92 | W56: =U56 -> 16414125 | X56: 421241.703 | Y56: =X53 -> 341907.8489 | Z56: =X56 -> 421241.703 | AA56: 2000198.02 | AB56: =AA53 -> 1709539.245 | AC56: =AA56 -> 2000198.02 | AD56: 21902.16832 | AE56: =AD53 -> 34190.78489 | AF56: =AD56 -> 21902.16832 | AG56: 258025.5446 | AH56: =AG53 -> 683815.6978 | AI56: =AG56 -> 258025.5446 | AJ56: 945093.5644 | AK56: =AJ53 -> 3419078.489 | AL56: =AJ56 -> 945093.5644 | AM56: 75000.67501 | AN56: =AM53 -> 341877.0769 | AO56: =AM56 -> 75000.67501 | AP56: 150001.35 | AQ56: =AP53 -> 341877.0769 | AR56: =AP56 -> 150001.35 | AS56: 30000.27 | AT56: =AS53 -> 341877.0769 | AU56: =AS56 -> 30000.27 | AV56: 133699.3572 | AW56: =AV53 -> 121555.3634 | AX56: =AV56 -> 133699.3572 | AY56: 39649.12943 | AZ56: =AY53 -> 111974.8205 | BA56: =AY56 -> 39649.12943 | BB56: 2906186.15 | BC56: =BB53 -> 4028992.23 | BD56: =BB56 -> 2906186.15 | BE56: 1765012.861 | BF56: =BE53 -> 3724765.475 | BG56: =BE56 -> 1765012.861 | BH56: =BH55*BH34 -> 1410588.867 | BI56: =BH53 -> 3709566.603 | BJ56: =BH56 -> 1410588.867 | BK56: =BK55*BK34 -> 562505.0626 | BL56: =BK53 -> 3205097.596 | BM56: =BK56 -> 562505.0626
D58: Total O&M Cost to Calculator | E58: USD | F58: =F56+F53 -> 51744088.88 | I58: =I56+I53 -> 44975196.57 | L58: 38417191.31 | O58: 107719173.7 | R58: 46812850.01 | U58: 59579990.92 | X58: 763149.5519 | AA58: 3709737.264 | AD58: 56092.95321 | AG58: 941841.2424 | AJ58: 4364172.053 | AM58: 416877.7519 | AP58: 491878.4269 | AS58: 371877.3469 | AV58: 255254.7206 | AY58: 151623.95 | BB58: 6935178.38 | BE58: 5489778.337 | BH58: =BH56+BH53 -> 5120155.47 | BK58: =BK56+BK53 -> 3767602.658

Sheet Electrolyzer LCOH
I1: ='Electrolyzer Inputs (2)'!F1 -> IEA | J1: ='Electrolyzer Inputs (2)'!G1 -> Stack | K1: ='Electrolyzer Inputs (2)'!H1 -> Non-Stack | L1: ='Electrolyzer Inputs (2)'!I1 -> IEA | M1: ='Electrolyzer Inputs (2)'!J1 -> Stack | N1: ='Electrolyzer Inputs (2)'!K1 -> Non-Stack | O1: ='Electrolyzer Inputs (2)'!L1 -> IEA | P1: ='Electrolyzer Inputs (2)'!M1 -> Stack | Q1: ='Electrolyzer Inputs (2)'!N1 -> Non-Stack | R1: ='Electrolyzer Inputs (2)'!O1 -> Norway | S1: ='Electrolyzer Inputs (2)'!P1 -> Stack | T1: ='Electrolyzer Inputs (2)'!Q1 -> Non-Stack | U1: ='Electrolyzer Inputs (2)'!R1 -> Middle East | V1: ='Electrolyzer Inputs (2)'!S1 -> Stack | W1: ='Electrolyzer Inputs (2)'!T1 -> Non-Stack | X1: ='Electrolyzer Inputs (2)'!U1 -> Middle East | Y1: ='Electrolyzer Inputs (2)'!V1 -> Stack | Z1: ='Electrolyzer Inputs (2)'!W1 -> Non-Stack | AA1: ='Electrolyzer Inputs (2)'!X1 -> Actual Case | AB1: ='Electrolyzer Inputs (2)'!Y1 -> Stack | AC1: ='Electrolyzer Inputs (2)'!Z1 -> Non-Stack | AD1: ='Electrolyzer Inputs (2)'!AA1 -> Australia | AE1: ='Electrolyzer Inputs (2)'!AB1 -> Stack | AF1: ='Electrolyzer Inputs (2)'!AC1 -> Non-Stack | AG1: ='Electrolyzer Inputs (2)'!AD1 -> Lazard | AH1: ='Electrolyzer Inputs (2)'!AE1 -> Stack | AI1: ='Electrolyzer Inputs (2)'!AF1 -> Non-Stack | AJ1: ='Electrolyzer Inputs (2)'!AG1 -> Lazard | AK1: ='Electrolyzer Inputs (2)'!AH1 -> Stack | AL1: ='Electrolyzer Inputs (2)'!AI1 -> Non-Stack | AM1: ='Electrolyzer Inputs (2)'!AJ1 -> Lazard | AN1: ='Electrolyzer Inputs (2)'!AK1 -> Stack | AO1: ='Electrolyzer Inputs (2)'!AL1 -> Non-Stack | AP1: ='Electrolyzer Inputs (2)'!AM1 -> IRENA | AQ1: ='Electrolyzer Inputs (2)'!AN1 -> Stack | AR1: ='Electrolyzer Inputs (2)'!AO1 -> Non-Stack | AS1: ='Electrolyzer Inputs (2)'!AP1 -> IRENA | AT1: ='Electrolyzer Inputs (2)'!AQ1 -> Stack | AU1: ='Electrolyzer Inputs (2)'!AR1 -> Non-Stack | AV1: ='Electrolyzer Inputs (2)'!AS1 -> IRENA | AW1: ='Electrolyzer Inputs (2)'!AT1 -> Stack | AX1: ='Electrolyzer Inputs (2)'!AU1 -> Non-Stack | AY1: ='Electrolyzer Inputs (2)'!AV1 -> NREL Forecort | AZ1: ='Electrolyzer Inputs (2)'!AW1 -> Stack | BA1: ='Electrolyzer Inputs (2)'!AX1 -> Non-Stack | BB1: ='Electrolyzer Inputs (2)'!AY1 -> NREL Forecort | BC1: ='Electrolyzer Inputs (2)'!AZ1 -> Stack | BD1: ='Electrolyzer Inputs (2)'!BA1 -> Non-Stack | BE1: ='Electrolyzer Inputs (2)'!BB1 -> NREL Central | BF1: ='Electrolyzer Inputs (2)'!BC1 -> Stack | BG1: ='Electrolyzer Inputs (2)'!BD1 -> Non-Stack | BH1: ='Electrolyzer Inputs (2)'!BE1 -> NREL Central | BI1: ='Electrolyzer Inputs (2)'!BF1 -> Stack | BJ1: ='Electrolyzer Inputs (2)'!BG1 -> Non-Stack | BK1: ='Electrolyzer Inputs (2)'!BH1 -> Applied Case | BL1: ='Electrolyzer Inputs (2)'!BI1 -> Stack | BM1: ='Electrolyzer Inputs (2)'!BJ1 -> Non-Stack | BN1: ='Electrolyzer Inputs (2)'!BK1 -> Best Future | BO1: ='Electrolyzer Inputs (2)'!BL1 -> Stack | BP1: ='Electrolyzer Inputs (2)'!BM1 -> Non-Stack | BQ1: ='Electrolyzer Inputs (2)'!BN1 -> 0
B2: Technology | E2: 1 | I2: ='Electrolyzer Inputs (2)'!F2 -> Today | J2: ='Electrolyzer Inputs (2)'!G2 -> Portion | K2: ='Electrolyzer Inputs (2)'!H2 -> Portion | L2: ='Electrolyzer Inputs (2)'!I2 -> 2030 | M2: ='Electrolyzer Inputs (2)'!J2 -> Portion | N2: ='Electrolyzer Inputs (2)'!K2 -> Portion | O2: ='Electrolyzer Inputs (2)'!L2 -> Long-term | P2: ='Electrolyzer Inputs (2)'!M2 -> Portion | Q2: ='Electrolyzer Inputs (2)'!N2 -> Portion | R2: ='Electrolyzer Inputs (2)'!O2 -> Electrolyzer | S2: ='Electrolyzer Inputs (2)'!P2 -> Portion | T2: ='Electrolyzer Inputs (2)'!Q2 -> Portion | U2: ='Electrolyzer Inputs (2)'!R2 -> Best | V2: ='Electrolyzer Inputs (2)'!S2 -> Portion | W2: ='Electrolyzer Inputs (2)'!T2 -> Portion | X2: ='Electrolyzer Inputs (2)'!U2 -> Worst | Y2: ='Electrolyzer Inputs (2)'!V2 -> Portion | Z2: ='Electrolyzer Inputs (2)'!W2 -> Portion | AA2: ='Electrolyzer Inputs (2)'!X2 -> 0 | AB2: ='Electrolyzer Inputs (2)'!Y2 -> Portion | AC2: ='Electrolyzer Inputs (2)'!Z2 -> Portion | AD2: ='Electrolyzer Inputs (2)'!AA2 -> 0 | AE2: ='Electrolyzer Inputs (2)'!AB2 -> Portion | AF2: ='Electrolyzer Inputs (2)'!AC2 -> Portion | AG2: ='Electrolyzer Inputs (2)'!AD2 -> Small | AH2: ='Electrolyzer Inputs (2)'!AE2 -> Portion | AI2: ='Electrolyzer Inputs (2)'!AF2 -> Portion | AJ2: ='Electrolyzer Inputs (2)'!AG2 -> Medium | AK2: ='Electrolyzer Inputs (2)'!AH2 -> Portion | AL2: ='Electrolyzer Inputs (2)'!AI2 -> Portion | AM2: ='Electrolyzer Inputs (2)'!AJ2 -> Large | AN2: ='Electrolyzer Inputs (2)'!AK2 -> Portion | AO2: ='Electrolyzer Inputs (2)'!AL2 -> Portion | AP2: ='Electrolyzer Inputs (2)'!AM2 -> Current Best | AQ2: ='Electrolyzer Inputs (2)'!AN2 -> Portion | AR2: ='Electrolyzer Inputs (2)'!AO2 -> Portion | AS2: ='Electrolyzer Inputs (2)'!AP2 -> Current Worst | AT2: ='Electrolyzer Inputs (2)'!AQ2 -> Portion | AU2: ='Electrolyzer Inputs (2)'!AR2 -> Portion | AV2: ='Electrolyzer Inputs (2)'!AS2 -> Future | AW2: ='Electrolyzer Inputs (2)'!AT2 -> Portion | AX2: ='Electrolyzer Inputs (2)'!AU2 -> Portion | AY2: ='Electrolyzer Inputs (2)'!AV2 -> Current | AZ2: ='Electrolyzer Inputs (2)'!AW2 -> Portion | BA2: ='Electrolyzer Inputs (2)'!AX2 -> Portion | BB2: ='Electrolyzer Inputs (2)'!AY2 -> Future | BC2: ='Electrolyzer Inputs (2)'!AZ2 -> Portion | BD2: ='Electrolyzer Inputs (2)'!BA2 -> Portion | BE2: ='Electrolyzer Inputs (2)'!BB2 -> Current | BF2: ='Electrolyzer Inputs (2)'!BC2 -> Portion | BG2: ='Electrolyzer Inputs (2)'!BD2 -> Portion | BH2: ='Electrolyzer Inputs (2)'!BE2 -> Future | BI2: ='Electrolyzer Inputs (2)'!BF2 -> Portion | BJ2: ='Electrolyzer Inputs (2)'!BG2 -> Portion | BK2: ='Electrolyzer Inputs (2)'!BH2 -> Current | BL2: ='Electrolyzer Inputs (2)'!BI2 -> Portion | BM2: ='Electrolyzer Inputs (2)'!BJ2 -> Portion | BN2: ='Electrolyzer Inputs (2)'!BK2 -> Case | BO2: ='Electrolyzer Inputs (2)'!BL2 -> Portion | BP2: ='Electrolyzer Inputs (2)'!BM2 -> Portion | BQ2: ='Electrolyzer Inputs (2)'!BN2 -> 0
B4: Real LCOE | I4: =J4+K4 -> 2.171069293 | J4: =J83 -> 1.303116939 | K4: =K83 -> 0.8679523536 | L4: =M4+N4 -> 1.740496377 | M4: 1.114340734 | N4: 0.6261556432 | O4: =P4+Q4 -> 1.297093164 | P4: 0.9267283797 | Q4: 0.3703647844 | R4: =S4+T4 -> 2.940116047 | S4: 1.142656324 | T4: 1.797459723 | U4: =V4+W4 -> 1.745028671 | V4: 1.094159298 | W4: 0.6508693722 | X4: =Y4+Z4 -> 2.177724109 | Y4: 1.322825414 | Z4: 0.8548986953 | AA4: =AB4+AC4 -> 4.046270126 | AB4: 1.71176985 | AC4: 2.334500276 | AD4: =AE4+AF4 -> 2.538634102 | AE4: 1.191652893 | AF4: 1.346981208 | AG4: =AH4+AI4 -> 3.149305438 | AH4: 1.411517463 | AI4: 1.737787975 | AJ4: =AK4+AL4 -> 2.181578272 | AK4: 1.237982051 | AL4: 0.9435962205 | AM4: =AN4+AO4 -> 1.810616191 | AN4: 1.173709677 | AO4: 0.6369065147 | AP4: =AQ4+AR4 -> 1.647131452 | AQ4: 1.166177845 | AR4: 0.4809536076 | AS4: =AT4+AU4 -> 3.929881998 | AT4: 1.819237438 | AU4: 2.11064456 | AV4: =AW4+AX4 -> 0.9826526384 | AW4: 0.8277736412 | AX4: 0.1548789972 | AY4: =AZ4+BA4 -> 3.656498974 | AZ4: =AZ83 -> 1.651163054 | BA4: 2.005335919 | BB4: =BC4+BD4 -> 1.920770269 | BC4: 1.143776262 | BD4: 0.7769940076 | BE4: =BF4+BG4 -> 3.28533329 | BF4: 1.735948664 | BG4: 1.549384625 | BH4: =BI4+BJ4 -> 1.92419504 | BI4: 1.101357974 | BJ4: 0.8228370657 | BK4: =BL4+BM4 -> 1.988486186 | BL4: 1.219286117 | BM4: 0.769200069 | BN4: =BO4+BP4 -> 1.066393851 | BO4: 0.8338246788 | BP4: 0.2325691719 | BQ4: FALSE
C6: Annual Production | E6: Quantity | I6: ='Electrolyzer Inputs'!F26 -> 47482500 | J6: ='Electrolyzer Inputs (2)'!G25 -> 47482500 | K6: ='Electrolyzer Inputs (2)'!H25 -> 47482500 | L6: ='Electrolyzer Inputs (2)'!I25 -> 47482500 | M6: ='Electrolyzer Inputs (2)'!J25 -> 47482500 | N6: ='Electrolyzer Inputs (2)'!K25 -> 47482500 | O6: ='Electrolyzer Inputs (2)'!L25 -> 47482500 | P6: ='Electrolyzer Inputs (2)'!M25 -> 47482500 | Q6: ='Electrolyzer Inputs (2)'!N25 -> 47482500 | R6: ='Electrolyzer Inputs (2)'!O25 -> 47482500 | S6: ='Electrolyzer Inputs (2)'!P25 -> 47482500 | T6: ='Electrolyzer Inputs (2)'!Q25 -> 47482500 | U6: ='Electrolyzer Inputs (2)'!R25 -> 47482500 | V6: ='Electrolyzer Inputs (2)'!S25 -> 47482500 | W6: ='Electrolyzer Inputs (2)'!T25 -> 47482500 | X6: ='Electrolyzer Inputs (2)'!U25 -> 47482500 | Y6: ='Electrolyzer Inputs (2)'!V25 -> 47482500 | Z6: ='Electrolyzer Inputs (2)'!W25 -> 47482500 | AA6: ='Electrolyzer Inputs (2)'!X25 -> 392958.6207 | AB6: ='Electrolyzer Inputs (2)'!Y25 -> 392958.6207 | AC6: ='Electrolyzer Inputs (2)'!Z25 -> 392958.6207 | AD6: ='Electrolyzer Inputs (2)'!AA25 -> 2279160 | AE6: ='Electrolyzer Inputs (2)'!AB25 -> 2279160 | AF6: ='Electrolyzer Inputs (2)'!AC25 -> 2279160 | AG6: ='Electrolyzer Inputs (2)'!AD25 -> 45815.69757 | AH6: ='Electrolyzer Inputs (2)'!AE25 -> 45815.69757 | AI6: ='Electrolyzer Inputs (2)'!AF25 -> 45815.69757 | AJ6: ='Electrolyzer Inputs (2)'!AG25 -> 916313.9514 | AK6: ='Electrolyzer Inputs (2)'!AH25 -> 916313.9514 | AL6: ='Electrolyzer Inputs (2)'!AI25 -> 916313.9514 | AM6: ='Electrolyzer Inputs (2)'!AJ25 -> 4581569.757 | AN6: ='Electrolyzer Inputs (2)'!AK25 -> 4581569.757 | AO6: ='Electrolyzer Inputs (2)'!AL25 -> 4581569.757 | AP6: ='Electrolyzer Inputs (2)'!AM25 -> 455832 | AQ6: ='Electrolyzer Inputs (2)'!AN25 -> 455832 | AR6: ='Electrolyzer Inputs (2)'!AO25 -> 455832 | AS6: ='Electrolyzer Inputs (2)'!AP25 -> 292200 | AT6: ='Electrolyzer Inputs (2)'!AQ25 -> 292200 | AU6: ='Electrolyzer Inputs (2)'!AR25 -> 292200 | AV6: ='Electrolyzer Inputs (2)'!AS25 -> 506480 | AW6: ='Electrolyzer Inputs (2)'!AT25 -> 506480 | AX6: ='Electrolyzer Inputs (2)'!AU25 -> 506480 | AY6: ='Electrolyzer Inputs (2)'!AV25 -> 142447.5 | AZ6: ='Electrolyzer Inputs (2)'!AW25 -> 142447.5 | BA6: ='Electrolyzer Inputs (2)'!AX25 -> 142447.5 | BB6: ='Electrolyzer Inputs (2)'!AY25 -> 142447.5 | BC6: ='Electrolyzer Inputs (2)'!AZ25 -> 142447.5 | BD6: ='Electrolyzer Inputs (2)'!BA25 -> 142447.5 | BE6: ='Electrolyzer Inputs (2)'!BB25 -> 4748250 | BF6: ='Electrolyzer Inputs (2)'!BC25 -> 4748250 | BG6: ='Electrolyzer Inputs (2)'!BD25 -> 4748250 | BH6: ='Electrolyzer Inputs (2)'!BE25 -> 4748250 | BI6: ='Electrolyzer Inputs (2)'!BF25 -> 4748250 | BJ6: ='Electrolyzer Inputs (2)'!BG25 -> 4748250 | BK6: ='Electrolyzer Inputs (2)'!BH25 -> 4748250 | BL6: ='Electrolyzer Inputs (2)'!BI25 -> 4748250 | BM6: ='Electrolyzer Inputs (2)'!BJ25 -> 4748250 | BN6: ='Electrolyzer Inputs (2)'!BK25 -> 4748250 | BO6: ='Electrolyzer Inputs (2)'!BL25 -> 4748250 | BP6: ='Electrolyzer Inputs (2)'!BM25 -> 4748250 | BQ6: ='Electrolyzer Inputs (2)'!BN25 -> 0
C7: Total Capital Cost | E7: USD | I7: ='Electrolyzer Inputs (2)'!F34 -> 976561523.4 | J7: ='Electrolyzer Inputs (2)'!G34 -> 439452685.5 | K7: ='Electrolyzer Inputs (2)'!H34 -> 537108837.9 | L7: ='Electrolyzer Inputs (2)'!I34 -> 704508152.2 | M7: ='Electrolyzer Inputs (2)'!J34 -> 317028668.5 | N7: ='Electrolyzer Inputs (2)'!K34 -> 387479483.7 | O7: ='Electrolyzer Inputs (2)'!L34 -> 422296875 | P7: ='Electrolyzer Inputs (2)'!M34 -> 190033593.8 | Q7: ='Electrolyzer Inputs (2)'!N34 -> 232263281.2 | R7: ='Electrolyzer Inputs (2)'!O34 -> 558145256.4 | S7: ='Electrolyzer Inputs (2)'!P34 -> 251165365.4 | T7: ='Electrolyzer Inputs (2)'!Q34 -> 306979891 | U7: ='Electrolyzer Inputs (2)'!R34 -> 644840625 | V7: ='Electrolyzer Inputs (2)'!S34 -> 297618750 | W7: ='Electrolyzer Inputs (2)'!T34 -> 347221875 | X7: ='Electrolyzer Inputs (2)'!U34 -> 820706250 | Y7: ='Electrolyzer Inputs (2)'!V34 -> 378787500 | Z7: ='Electrolyzer Inputs (2)'!W34 -> 441918750 | AA7: ='Electrolyzer Inputs (2)'!X34 -> 14041390.1 | AB7: ='Electrolyzer Inputs (2)'!Y34 -> 5616556.04 | AC7: ='Electrolyzer Inputs (2)'!Z34 -> 8424834.059 | AD7: ='Electrolyzer Inputs (2)'!AA34 -> 37503712.87 | AE7: ='Electrolyzer Inputs (2)'!AB34 -> 16876670.79 | AF7: ='Electrolyzer Inputs (2)'!AC34 -> 20627042.08 | AG7: ='Electrolyzer Inputs (2)'!AD34 -> 1460144.554 | AH7: ='Electrolyzer Inputs (2)'!AE34 -> 480047.5248 | AI7: ='Electrolyzer Inputs (2)'!AF34 -> 980097.0297 | AJ7: ='Electrolyzer Inputs (2)'!AG34 -> 17201702.97 | AK7: ='Electrolyzer Inputs (2)'!AH34 -> 6900683.168 | AL7: ='Electrolyzer Inputs (2)'!AI34 -> 10301019.8 | AM7: ='Electrolyzer Inputs (2)'!AJ34 -> 63006237.62 | AN7: ='Electrolyzer Inputs (2)'!AK34 -> 29502920.79 | AO7: ='Electrolyzer Inputs (2)'!AL34 -> 33503316.83 | AP7: ='Electrolyzer Inputs (2)'!AM34 -> 5000045 | AQ7: ='Electrolyzer Inputs (2)'!AN34 -> 2700024.3 | AR7: ='Electrolyzer Inputs (2)'!AO34 -> 2300020.7 | AS7: ='Electrolyzer Inputs (2)'!AP34 -> 10000090 | AT7: ='Electrolyzer Inputs (2)'!AQ34 -> 2700024.3 | AU7: ='Electrolyzer Inputs (2)'!AR34 -> 7300065.701 | AV7: ='Electrolyzer Inputs (2)'!AS34 -> 2000018 | AW7: ='Electrolyzer Inputs (2)'!AT34 -> 1000009 | AX7: ='Electrolyzer Inputs (2)'!AU34 -> 1000009 | AY7: ='Electrolyzer Inputs (2)'!AV34 -> 4456645.24 | AZ7: ='Electrolyzer Inputs (2)'!AW34 -> 1827224.548 | BA7: ='Electrolyzer Inputs (2)'!AX34 -> 2629420.691 | BB7: ='Electrolyzer Inputs (2)'!AY34 -> 1982456.472 | BC7: ='Electrolyzer Inputs (2)'!AZ34 -> 753333.4593 | BD7: ='Electrolyzer Inputs (2)'!BA34 -> 1229123.012 | BE7: ='Electrolyzer Inputs (2)'!BB34 -> 145309307.5 | BF7: ='Electrolyzer Inputs (2)'!BC34 -> 68295374.53 | BG7: ='Electrolyzer Inputs (2)'!BD34 -> 77013932.98 | BH7: ='Electrolyzer Inputs (2)'!BE34 -> 58833762.05 | BI7: ='Electrolyzer Inputs (2)'!BF34 -> 21768491.96 | BJ7: ='Electrolyzer Inputs (2)'!BG34 -> 37065270.09 | BK7: ='Electrolyzer Inputs (2)'!BH34 -> 70529443.36 | BL7: ='Electrolyzer Inputs (2)'!BI34 -> 31738249.51 | BM7: ='Electrolyzer Inputs (2)'!BJ34 -> 38791193.85 | BN7: ='Electrolyzer Inputs (2)'!BK34 -> 18750168.75 | BO7: ='Electrolyzer Inputs (2)'!BL34 -> 9375084.376 | BP7: ='Electrolyzer Inputs (2)'!BM34 -> 9375084.376 | BQ7: ='Electrolyzer Inputs (2)'!BN34 -> 0
B9: Carrying Charge Analysis
C10: Project Life | E10: Yr | I10: ='Electrolyzer Inputs'!F41 -> 42 | J10: ='Electrolyzer Inputs (2)'!G40 -> 42 | K10: ='Electrolyzer Inputs (2)'!H40 -> 42 | L10: ='Electrolyzer Inputs (2)'!I40 -> 42 | M10: ='Electrolyzer Inputs (2)'!J40 -> 42 | N10: ='Electrolyzer Inputs (2)'!K40 -> 42 | O10: ='Electrolyzer Inputs (2)'!L40 -> 44 | P10: ='Electrolyzer Inputs (2)'!M40 -> 44 | Q10: ='Electrolyzer Inputs (2)'!N40 -> 44 | R10: ='Electrolyzer Inputs (2)'!O40 -> 38 | S10: ='Electrolyzer Inputs (2)'!P40 -> 38 | T10: ='Electrolyzer Inputs (2)'!Q40 -> 38 | U10: ='Electrolyzer Inputs (2)'!R40 -> 38 | V10: ='Electrolyzer Inputs (2)'!S40 -> 38 | W10: ='Electrolyzer Inputs (2)'!T40 -> 38 | X10: ='Electrolyzer Inputs (2)'!U40 -> 38 | Y10: ='Electrolyzer Inputs (2)'!V40 -> 38 | Z10: ='Electrolyzer Inputs (2)'!W40 -> 38 | AA10: ='Electrolyzer Inputs (2)'!X40 -> 30 | AB10: ='Electrolyzer Inputs (2)'!Y40 -> 30 | AC10: ='Electrolyzer Inputs (2)'!Z40 -> 30 | AD10: ='Electrolyzer Inputs (2)'!AA40 -> 38 | AE10: ='Electrolyzer Inputs (2)'!AB40 -> 38 | AF10: ='Electrolyzer Inputs (2)'!AC40 -> 38 | AG10: ='Electrolyzer Inputs (2)'!AD40 -> 30 | AH10: ='Electrolyzer Inputs (2)'!AE40 -> 30 | AI10: ='Electrolyzer Inputs (2)'!AF40 -> 30 | AJ10: ='Electrolyzer Inputs (2)'!AG40 -> 30 | AK10: ='Electrolyzer Inputs (2)'!AH40 -> 30 | AL10: ='Electrolyzer Inputs (2)'!AI40 -> 30 | AM10: ='Electrolyzer Inputs (2)'!AJ40 -> 30 | AN10: ='Electrolyzer Inputs (2)'!AK40 -> 30 | AO10: ='Electrolyzer Inputs (2)'!AL40 -> 30 | AP10: ='Electrolyzer Inputs (2)'!AM40 -> 27 | AQ10: ='Electrolyzer Inputs (2)'!AN40 -> 27 | AR10: ='Electrolyzer Inputs (2)'!AO40 -> 27 | AS10: ='Electrolyzer Inputs (2)'!AP40 -> 27 | AT10: ='Electrolyzer Inputs (2)'!AQ40 -> 27 | AU10: ='Electrolyzer Inputs (2)'!AR40 -> 27 | AV10: ='Electrolyzer Inputs (2)'!AS40 -> 44 | AW10: ='Electrolyzer Inputs (2)'!AT40 -> 44 | AX10: ='Electrolyzer Inputs (2)'!AU40 -> 44 | AY10: ='Electrolyzer Inputs (2)'!AV40 -> 31 | AZ10: ='Electrolyzer Inputs (2)'!AW40 -> 31 | BA10: ='Electrolyzer Inputs (2)'!AX40 -> 31 | BB10: ='Electrolyzer Inputs (2)'!AY40 -> 31 | BC10: ='Electrolyzer Inputs (2)'!AZ40 -> 31 | BD10: ='Electrolyzer Inputs (2)'!BA40 -> 31 | BE10: ='Electrolyzer Inputs (2)'!BB40 -> 31 | BF10: ='Electrolyzer Inputs (2)'!BC40 -> 31 | BG10: ='Electrolyzer Inputs (2)'!BD40 -> 31 | BH10: ='Electrolyzer Inputs (2)'!BE40 -> 31 | BI10: ='Electrolyzer Inputs (2)'!BF40 -> 31 | BJ10: ='Electrolyzer Inputs (2)'!BG40 -> 31 | BK10: ='Electrolyzer Inputs (2)'!BH40 -> 31 | BL10: ='Electrolyzer Inputs (2)'!BI40 -> 31 | BM10: ='Electrolyzer Inputs (2)'!BJ40 -> 31 | BN10: ='Electrolyzer Inputs (2)'!BK40 -> 31 | BO10: ='Electrolyzer Inputs (2)'!BL40 -> 31 | BP10: ='Electrolyzer Inputs (2)'!BM40 -> 31 | BQ10: ='Electrolyzer Inputs (2)'!BN40 -> 0
C11: Tax Life | E11: Yr | I11: ='Electrolyzer Inputs'!$F$42 -> 5 | J11: ='Electrolyzer Inputs'!$F$42 -> 5 | K11: ='Electrolyzer Inputs'!$F$42 -> 5 | L11: ='Electrolyzer Inputs'!$F$42 -> 5 | M11: ='Electrolyzer Inputs'!$F$42 -> 5 | N11: ='Electrolyzer Inputs'!$F$42 -> 5 | O11: ='Electrolyzer Inputs'!$F$42 -> 5 | P11: ='Electrolyzer Inputs'!$F$42 -> 5 | Q11: ='Electrolyzer Inputs'!$F$42 -> 5 | R11: ='Electrolyzer Inputs'!$F$42 -> 5 | S11: ='Electrolyzer Inputs'!$F$42 -> 5 | T11: ='Electrolyzer Inputs'!$F$42 -> 5 | U11: ='Electrolyzer Inputs'!$F$42 -> 5 | V11: ='Electrolyzer Inputs'!$F$42 -> 5 | W11: ='Electrolyzer Inputs'!$F$42 -> 5 | X11: ='Electrolyzer Inputs'!$F$42 -> 5 | Y11: ='Electrolyzer Inputs'!$F$42 -> 5 | Z11: ='Electrolyzer Inputs'!$F$42 -> 5 | AA11: ='Electrolyzer Inputs'!$F$42 -> 5 | AB11: ='Electrolyzer Inputs'!$F$42 -> 5 | AC11: ='Electrolyzer Inputs'!$F$42 -> 5 | AD11: ='Electrolyzer Inputs'!$F$42 -> 5 | AE11: ='Electrolyzer Inputs'!$F$42 -> 5 | AF11: ='Electrolyzer Inputs'!$F$42 -> 5 | AG11: ='Electrolyzer Inputs'!$F$42 -> 5 | AH11: ='Electrolyzer Inputs'!$F$42 -> 5 | AI11: ='Electrolyzer Inputs'!$F$42 -> 5 | AJ11: ='Electrolyzer Inputs'!$F$42 -> 5 | AK11: ='Electrolyzer Inputs'!$F$42 -> 5 | AL11: ='Electrolyzer Inputs'!$F$42 -> 5 | AM11: ='Electrolyzer Inputs'!$F$42 -> 5 | AN11: ='Electrolyzer Inputs'!$F$42 -> 5 | AO11: ='Electrolyzer Inputs'!$F$42 -> 5 | AP11: ='Electrolyzer Inputs'!$F$42 -> 5 | AQ11: ='Electrolyzer Inputs'!$F$42 -> 5 | AR11: ='Electrolyzer Inputs'!$F$42 -> 5 | AS11: ='Electrolyzer Inputs'!$F$42 -> 5 | AT11: ='Electrolyzer Inputs'!$F$42 -> 5 | AU11: ='Electrolyzer Inputs'!$F$42 -> 5 | AV11: ='Electrolyzer Inputs'!$F$42 -> 5 | AW11: ='Electrolyzer Inputs'!$F$42 -> 5 | AX11: ='Electrolyzer Inputs'!$F$42 -> 5 | AY11: ='Electrolyzer Inputs'!$F$42 -> 5 | AZ11: ='Electrolyzer Inputs'!$F$42 -> 5 | BA11: ='Electrolyzer Inputs'!$F$42 -> 5 | BB11: ='Electrolyzer Inputs'!$F$42 -> 5 | BC11: ='Electrolyzer Inputs'!$F$42 -> 5 | BD11: ='Electrolyzer Inputs'!$F$42 -> 5 | BE11: ='Electrolyzer Inputs'!$F$42 -> 5 | BF11: ='Electrolyzer Inputs'!$F$42 -> 5 | BG11: ='Electrolyzer Inputs'!$F$42 -> 5 | BH11: ='Electrolyzer Inputs'!$F$42 -> 5 | BI11: ='Electrolyzer Inputs'!$F$42 -> 5 | BJ11: ='Electrolyzer Inputs'!$F$42 -> 5 | BK11: ='Electrolyzer Inputs'!$F$42 -> 5 | BL11: ='Electrolyzer Inputs'!$F$42 -> 5 | BM11: ='Electrolyzer Inputs'!$F$42 -> 5 | BN11: ='Electrolyzer Inputs'!$F$42 -> 5 | BO11: ='Electrolyzer Inputs'!$F$42 -> 5 | BP11: ='Electrolyzer Inputs'!$F$42 -> 5 | BQ11: ='Electrolyzer Inputs'!$F$42 -> 5
C12: Income Tax Rate | E12: % | I12: ='Electrolyzer Inputs'!$F$16 -> 0.3 | J12: ='Electrolyzer Inputs'!$F$16 -> 0.3 | K12: ='Electrolyzer Inputs'!$F$16 -> 0.3 | L12: ='Electrolyzer Inputs'!$F$16 -> 0.3 | M12: ='Electrolyzer Inputs'!$F$16 -> 0.3 | N12: ='Electrolyzer Inputs'!$F$16 -> 0.3 | O12: ='Electrolyzer Inputs'!$F$16 -> 0.3 | P12: ='Electrolyzer Inputs'!$F$16 -> 0.3 | Q12: ='Electrolyzer Inputs'!$F$16 -> 0.3 | R12: ='Electrolyzer Inputs'!$F$16 -> 0.3 | S12: ='Electrolyzer Inputs'!$F$16 -> 0.3 | T12: ='Electrolyzer Inputs'!$F$16 -> 0.3 | U12: ='Electrolyzer Inputs'!$F$16 -> 0.3 | V12: ='Electrolyzer Inputs'!$F$16 -> 0.3 | W12: ='Electrolyzer Inputs'!$F$16 -> 0.3 | X12: ='Electrolyzer Inputs'!$F$16 -> 0.3 | Y12: ='Electrolyzer Inputs'!$F$16 -> 0.3 | Z12: ='Electrolyzer Inputs'!$F$16 -> 0.3 | AA12: ='Electrolyzer Inputs'!$F$16 -> 0.3 | AB12: ='Electrolyzer Inputs'!$F$16 -> 0.3 | AC12: ='Electrolyzer Inputs'!$F$16 -> 0.3 | AD12: ='Electrolyzer Inputs'!$F$16 -> 0.3 | AE12: ='Electrolyzer Inputs'!$F$16 -> 0.3 | AF12: ='Electrolyzer Inputs'!$F$16 -> 0.3 | AG12: ='Electrolyzer Inputs'!$F$16 -> 0.3 | AH12: ='Electrolyzer Inputs'!$F$16 -> 0.3 | AI12: ='Electrolyzer Inputs'!$F$16 -> 0.3 | AJ12: ='Electrolyzer Inputs'!$F$16 -> 0.3 | AK12: ='Electrolyzer Inputs'!$F$16 -> 0.3 | AL12: ='Electrolyzer Inputs'!$F$16 -> 0.3 | AM12: ='Electrolyzer Inputs'!$F$16 -> 0.3 | AN12: ='Electrolyzer Inputs'!$F$16 -> 0.3 | AO12: ='Electrolyzer Inputs'!$F$16 -> 0.3 | AP12: ='Electrolyzer Inputs'!$F$16 -> 0.3 | AQ12: ='Electrolyzer Inputs'!$F$16 -> 0.3 | AR12: ='Electrolyzer Inputs'!$F$16 -> 0.3 | AS12: ='Electrolyzer Inputs'!$F$16 -> 0.3 | AT12: ='Electrolyzer Inputs'!$F$16 -> 0.3 | AU12: ='Electrolyzer Inputs'!$F$16 -> 0.3 | AV12: ='Electrolyzer Inputs'!$F$16 -> 0.3 | AW12: ='Electrolyzer Inputs'!$F$16 -> 0.3 | AX12: ='Electrolyzer Inputs'!$F$16 -> 0.3 | AY12: ='Electrolyzer Inputs'!$F$16 -> 0.3 | AZ12: ='Electrolyzer Inputs'!$F$16 -> 0.3 | BA12: ='Electrolyzer Inputs'!$F$16 -> 0.3 | BB12: ='Electrolyzer Inputs'!$F$16 -> 0.3 | BC12: ='Electrolyzer Inputs'!$F$16 -> 0.3 | BD12: ='Electrolyzer Inputs'!$F$16 -> 0.3 | BE12: ='Electrolyzer Inputs'!$F$16 -> 0.3 | BF12: ='Electrolyzer Inputs'!$F$16 -> 0.3 | BG12: ='Electrolyzer Inputs'!$F$16 -> 0.3 | BH12: ='Electrolyzer Inputs'!$F$16 -> 0.3 | BI12: ='Electrolyzer Inputs'!$F$16 -> 0.3 | BJ12: ='Electrolyzer Inputs'!$F$16 -> 0.3 | BK12: ='Electrolyzer Inputs'!$F$16 -> 0.3 | BL12: ='Electrolyzer Inputs'!$F$16 -> 0.3 | BM12: ='Electrolyzer Inputs'!$F$16 -> 0.3 | BN12: ='Electrolyzer Inputs'!$F$16 -> 0.3 | BO12: ='Electrolyzer Inputs'!$F$16 -> 0.3 | BP12: ='Electrolyzer Inputs'!$F$16 -> 0.3 | BQ12: ='Electrolyzer Inputs'!$F$16 -> 0.3
C13: Variable Declining Balance Factor (1-St Line) | E13: Factor | I13: 1 | J13: 1 | K13: 1 | L13: 1 | M13: 1 | N13: 1 | O13: 1 | P13: 1 | Q13: 1 | R13: 1 | S13: 1 | T13: 1 | U13: 1 | V13: 1 | W13: 1 | X13: 1 | Y13: 1 | Z13: 1 | AA13: 1 | AB13: 1 | AC13: 1 | AD13: 1 | AE13: 1 | AF13: 1 | AG13: 1 | AH13: 1 | AI13: 1 | AJ13: 1 | AK13: 1 | AL13: 1 | AM13: 1 | AN13: 1 | AO13: 1 | AP13: 1 | AQ13: 1 | AR13: 1 | AS13: 1 | AT13: 1 | AU13: 1 | AV13: 1 | AW13: 1 | AX13: 1 | AY13: 1 | AZ13: 1 | BA13: 1 | BB13: 1 | BC13: 1 | BD13: 1 | BE13: 1 | BF13: 1 | BG13: 1 | BH13: 1 | BI13: 1 | BJ13: 1 | BK13: 1 | BL13: 1 | BM13: 1 | BN13: 1 | BO13: 1 | BP13: 1 | BQ13: 1
C14: Debt to Captial | E14: % | I14: ='Electrolyzer Inputs'!$F$17 -> 0.6 | J14: ='Electrolyzer Inputs'!$F$17 -> 0.6 | K14: ='Electrolyzer Inputs'!$F$17 -> 0.6 | L14: ='Electrolyzer Inputs'!$F$17 -> 0.6 | M14: ='Electrolyzer Inputs'!$F$17 -> 0.6 | N14: ='Electrolyzer Inputs'!$F$17 -> 0.6 | O14: ='Electrolyzer Inputs'!$F$17 -> 0.6 | P14: ='Electrolyzer Inputs'!$F$17 -> 0.6 | Q14: ='Electrolyzer Inputs'!$F$17 -> 0.6 | R14: ='Electrolyzer Inputs'!$F$17 -> 0.6 | S14: ='Electrolyzer Inputs'!$F$17 -> 0.6 | T14: ='Electrolyzer Inputs'!$F$17 -> 0.6 | U14: ='Electrolyzer Inputs'!$F$17 -> 0.6 | V14: ='Electrolyzer Inputs'!$F$17 -> 0.6 | W14: ='Electrolyzer Inputs'!$F$17 -> 0.6 | X14: ='Electrolyzer Inputs'!$F$17 -> 0.6 | Y14: ='Electrolyzer Inputs'!$F$17 -> 0.6 | Z14: ='Electrolyzer Inputs'!$F$17 -> 0.6 | AA14: ='Electrolyzer Inputs'!$F$17 -> 0.6 | AB14: ='Electrolyzer Inputs'!$F$17 -> 0.6 | AC14: ='Electrolyzer Inputs'!$F$17 -> 0.6 | AD14: ='Electrolyzer Inputs'!$F$17 -> 0.6 | AE14: ='Electrolyzer Inputs'!$F$17 -> 0.6 | AF14: ='Electrolyzer Inputs'!$F$17 -> 0.6 | AG14: ='Electrolyzer Inputs'!$F$17 -> 0.6 | AH14: ='Electrolyzer Inputs'!$F$17 -> 0.6 | AI14: ='Electrolyzer Inputs'!$F$17 -> 0.6 | AJ14: ='Electrolyzer Inputs'!$F$17 -> 0.6 | AK14: ='Electrolyzer Inputs'!$F$17 -> 0.6 | AL14: ='Electrolyzer Inputs'!$F$17 -> 0.6 | AM14: ='Electrolyzer Inputs'!$F$17 -> 0.6 | AN14: ='Electrolyzer Inputs'!$F$17 -> 0.6 | AO14: ='Electrolyzer Inputs'!$F$17 -> 0.6 | AP14: ='Electrolyzer Inputs'!$F$17 -> 0.6 | AQ14: ='Electrolyzer Inputs'!$F$17 -> 0.6 | AR14: ='Electrolyzer Inputs'!$F$17 -> 0.6 | AS14: ='Electrolyzer Inputs'!$F$17 -> 0.6 | AT14: ='Electrolyzer Inputs'!$F$17 -> 0.6 | AU14: ='Electrolyzer Inputs'!$F$17 -> 0.6 | AV14: ='Electrolyzer Inputs'!$F$17 -> 0.6 | AW14: ='Electrolyzer Inputs'!$F$17 -> 0.6 | AX14: ='Electrolyzer Inputs'!$F$17 -> 0.6 | AY14: ='Electrolyzer Inputs'!$F$17 -> 0.6 | AZ14: ='Electrolyzer Inputs'!$F$17 -> 0.6 | BA14: ='Electrolyzer Inputs'!$F$17 -> 0.6 | BB14: ='Electrolyzer Inputs'!$F$17 -> 0.6 | BC14: ='Electrolyzer Inputs'!$F$17 -> 0.6 | BD14: ='Electrolyzer Inputs'!$F$17 -> 0.6 | BE14: ='Electrolyzer Inputs'!$F$17 -> 0.6 | BF14: ='Electrolyzer Inputs'!$F$17 -> 0.6 | BG14: ='Electrolyzer Inputs'!$F$17 -> 0.6 | BH14: ='Electrolyzer Inputs'!$F$17 -> 0.6 | BI14: ='Electrolyzer Inputs'!$F$17 -> 0.6 | BJ14: ='Electrolyzer Inputs'!$F$17 -> 0.6 | BK14: ='Electrolyzer Inputs'!$F$17 -> 0.6 | BL14: ='Electrolyzer Inputs'!$F$17 -> 0.6 | BM14: ='Electrolyzer Inputs'!$F$17 -> 0.6 | BN14: ='Electrolyzer Inputs'!$F$17 -> 0.6 | BO14: ='Electrolyzer Inputs'!$F$17 -> 0.6 | BP14: ='Electrolyzer Inputs'!$F$17 -> 0.6 | BQ14: ='Electrolyzer Inputs'!$F$17 -> 0.6
C15: Target Equity IRR | E15: % | I15: ='Electrolyzer Inputs'!$F$14 -> 0.1 | J15: ='Electrolyzer Inputs'!$F$14 -> 0.1 | K15: ='Electrolyzer Inputs'!$F$14 -> 0.1 | L15: ='Electrolyzer Inputs'!$F$14 -> 0.1 | M15: ='Electrolyzer Inputs'!$F$14 -> 0.1 | N15: ='Electrolyzer Inputs'!$F$14 -> 0.1 | O15: ='Electrolyzer Inputs'!$F$14 -> 0.1 | P15: ='Electrolyzer Inputs'!$F$14 -> 0.1 | Q15: ='Electrolyzer Inputs'!$F$14 -> 0.1 | R15: ='Electrolyzer Inputs'!$F$14 -> 0.1 | S15: ='Electrolyzer Inputs'!$F$14 -> 0.1 | T15: ='Electrolyzer Inputs'!$F$14 -> 0.1 | U15: ='Electrolyzer Inputs'!$F$14 -> 0.1 | V15: ='Electrolyzer Inputs'!$F$14 -> 0.1 | W15: ='Electrolyzer Inputs'!$F$14 -> 0.1 | X15: ='Electrolyzer Inputs'!$F$14 -> 0.1 | Y15: ='Electrolyzer Inputs'!$F$14 -> 0.1 | Z15: ='Electrolyzer Inputs'!$F$14 -> 0.1 | AA15: ='Electrolyzer Inputs'!$F$14 -> 0.1 | AB15: ='Electrolyzer Inputs'!$F$14 -> 0.1 | AC15: ='Electrolyzer Inputs'!$F$14 -> 0.1 | AD15: ='Electrolyzer Inputs'!$F$14 -> 0.1 | AE15: ='Electrolyzer Inputs'!$F$14 -> 0.1 | AF15: ='Electrolyzer Inputs'!$F$14 -> 0.1 | AG15: ='Electrolyzer Inputs'!$F$14 -> 0.1 | AH15: ='Electrolyzer Inputs'!$F$14 -> 0.1 | AI15: ='Electrolyzer Inputs'!$F$14 -> 0.1 | AJ15: ='Electrolyzer Inputs'!$F$14 -> 0.1 | AK15: ='Electrolyzer Inputs'!$F$14 -> 0.1 | AL15: ='Electrolyzer Inputs'!$F$14 -> 0.1 | AM15: ='Electrolyzer Inputs'!$F$14 -> 0.1 | AN15: ='Electrolyzer Inputs'!$F$14 -> 0.1 | AO15: ='Electrolyzer Inputs'!$F$14 -> 0.1 | AP15: ='Electrolyzer Inputs'!$F$14 -> 0.1 | AQ15: ='Electrolyzer Inputs'!$F$14 -> 0.1 | AR15: ='Electrolyzer Inputs'!$F$14 -> 0.1 | AS15: ='Electrolyzer Inputs'!$F$14 -> 0.1 | AT15: ='Electrolyzer Inputs'!$F$14 -> 0.1 | AU15: ='Electrolyzer Inputs'!$F$14 -> 0.1 | AV15: ='Electrolyzer Inputs'!$F$14 -> 0.1 | AW15: ='Electrolyzer Inputs'!$F$14 -> 0.1 | AX15: ='Electrolyzer Inputs'!$F$14 -> 0.1 | AY15: ='Electrolyzer Inputs'!$F$14 -> 0.1 | AZ15: ='Electrolyzer Inputs'!$F$14 -> 0.1 | BA15: ='Electrolyzer Inputs'!$F$14 -> 0.1 | BB15: ='Electrolyzer Inputs'!$F$14 -> 0.1 | BC15: ='Electrolyzer Inputs'!$F$14 -> 0.1 | BD15: ='Electrolyzer Inputs'!$F$14 -> 0.1 | BE15: ='Electrolyzer Inputs'!$F$14 -> 0.1 | BF15: ='Electrolyzer Inputs'!$F$14 -> 0.1 | BG15: ='Electrolyzer Inputs'!$F$14 -> 0.1 | BH15: ='Electrolyzer Inputs'!$F$14 -> 0.1 | BI15: ='Electrolyzer Inputs'!$F$14 -> 0.1 | BJ15: ='Electrolyzer Inputs'!$F$14 -> 0.1 | BK15: ='Electrolyzer Inputs'!$F$14 -> 0.1 | BL15: ='Electrolyzer Inputs'!$F$14 -> 0.1 | BM15: ='Electrolyzer Inputs'!$F$14 -> 0.1 | BN15: ='Electrolyzer Inputs'!$F$14 -> 0.1 | BO15: ='Electrolyzer Inputs'!$F$14 -> 0.1 | BP15: ='Electrolyzer Inputs'!$F$14 -> 0.1 | BQ15: ='Electrolyzer Inputs'!$F$14 -> 0.1
C16: Cost of Debt | E16: % | I16: ='Electrolyzer Inputs'!$F$15 -> 0.06 | J16: ='Electrolyzer Inputs'!$F$15 -> 0.06 | K16: ='Electrolyzer Inputs'!$F$15 -> 0.06 | L16: ='Electrolyzer Inputs'!$F$15 -> 0.06 | M16: ='Electrolyzer Inputs'!$F$15 -> 0.06 | N16: ='Electrolyzer Inputs'!$F$15 -> 0.06 | O16: ='Electrolyzer Inputs'!$F$15 -> 0.06 | P16: ='Electrolyzer Inputs'!$F$15 -> 0.06 | Q16: ='Electrolyzer Inputs'!$F$15 -> 0.06 | R16: ='Electrolyzer Inputs'!$F$15 -> 0.06 | S16: ='Electrolyzer Inputs'!$F$15 -> 0.06 | T16: ='Electrolyzer Inputs'!$F$15 -> 0.06 | U16: ='Electrolyzer Inputs'!$F$15 -> 0.06 | V16: ='Electrolyzer Inputs'!$F$15 -> 0.06 | W16: ='Electrolyzer Inputs'!$F$15 -> 0.06 | X16: ='Electrolyzer Inputs'!$F$15 -> 0.06 | Y16: ='Electrolyzer Inputs'!$F$15 -> 0.06 | Z16: ='Electrolyzer Inputs'!$F$15 -> 0.06 | AA16: ='Electrolyzer Inputs'!$F$15 -> 0.06 | AB16: ='Electrolyzer Inputs'!$F$15 -> 0.06 | AC16: ='Electrolyzer Inputs'!$F$15 -> 0.06 | AD16: ='Electrolyzer Inputs'!$F$15 -> 0.06 | AE16: ='Electrolyzer Inputs'!$F$15 -> 0.06 | AF16: ='Electrolyzer Inputs'!$F$15 -> 0.06 | AG16: ='Electrolyzer Inputs'!$F$15 -> 0.06 | AH16: ='Electrolyzer Inputs'!$F$15 -> 0.06 | AI16: ='Electrolyzer Inputs'!$F$15 -> 0.06 | AJ16: ='Electrolyzer Inputs'!$F$15 -> 0.06 | AK16: ='Electrolyzer Inputs'!$F$15 -> 0.06 | AL16: ='Electrolyzer Inputs'!$F$15 -> 0.06 | AM16: ='Electrolyzer Inputs'!$F$15 -> 0.06 | AN16: ='Electrolyzer Inputs'!$F$15 -> 0.06 | AO16: ='Electrolyzer Inputs'!$F$15 -> 0.06 | AP16: ='Electrolyzer Inputs'!$F$15 -> 0.06 | AQ16: ='Electrolyzer Inputs'!$F$15 -> 0.06 | AR16: ='Electrolyzer Inputs'!$F$15 -> 0.06 | AS16: ='Electrolyzer Inputs'!$F$15 -> 0.06 | AT16: ='Electrolyzer Inputs'!$F$15 -> 0.06 | AU16: ='Electrolyzer Inputs'!$F$15 -> 0.06 | AV16: ='Electrolyzer Inputs'!$F$15 -> 0.06 | AW16: ='Electrolyzer Inputs'!$F$15 -> 0.06 | AX16: ='Electrolyzer Inputs'!$F$15 -> 0.06 | AY16: ='Electrolyzer Inputs'!$F$15 -> 0.06 | AZ16: ='Electrolyzer Inputs'!$F$15 -> 0.06 | BA16: ='Electrolyzer Inputs'!$F$15 -> 0.06 | BB16: ='Electrolyzer Inputs'!$F$15 -> 0.06 | BC16: ='Electrolyzer Inputs'!$F$15 -> 0.06 | BD16: ='Electrolyzer Inputs'!$F$15 -> 0.06 | BE16: ='Electrolyzer Inputs'!$F$15 -> 0.06 | BF16: ='Electrolyzer Inputs'!$F$15 -> 0.06 | BG16: ='Electrolyzer Inputs'!$F$15 -> 0.06 | BH16: ='Electrolyzer Inputs'!$F$15 -> 0.06 | BI16: ='Electrolyzer Inputs'!$F$15 -> 0.06 | BJ16: ='Electrolyzer Inputs'!$F$15 -> 0.06 | BK16: ='Electrolyzer Inputs'!$F$15 -> 0.06 | BL16: ='Electrolyzer Inputs'!$F$15 -> 0.06 | BM16: ='Electrolyzer Inputs'!$F$15 -> 0.06 | BN16: ='Electrolyzer Inputs'!$F$15 -> 0.06 | BO16: ='Electrolyzer Inputs'!$F$15 -> 0.06 | BP16: ='Electrolyzer Inputs'!$F$15 -> 0.06 | BQ16: ='Electrolyzer Inputs'!$F$15 -> 0.06
C17: After Cost of Debt | E17: % | I17: =I16*(1-I12) -> 0.042 | J17: =J16*(1-J12) -> 0.042 | K17: =K16*(1-K12) -> 0.042 | L17: 0.042 | M17: 0.042 | N17: 0.042 | O17: 0.042 | P17: 0.042 | Q17: 0.042 | R17: 0.042 | S17: 0.042 | T17: 0.042 | U17: 0.042 | V17: 0.042 | W17: 0.042 | X17: 0.042 | Y17: 0.042 | Z17: 0.042 | AA17: 0.042 | AB17: 0.042 | AC17: 0.042 | AD17: 0.042 | AE17: 0.042 | AF17: 0.042 | AG17: 0.042 | AH17: 0.042 | AI17: 0.042 | AJ17: 0.042 | AK17: 0.042 | AL17: 0.042 | AM17: 0.042 | AN17: 0.042 | AO17: 0.042 | AP17: 0.042 | AQ17: 0.042 | AR17: 0.042 | AS17: 0.042 | AT17: 0.042 | AU17: 0.042 | AV17: 0.042 | AW17: 0.042 | AX17: 0.042 | AY17: =AY16*(1-AY12) -> 0.042 | AZ17: =AZ16*(1-AZ12) -> 0.042 | BA17: =BA16*(1-BA12) -> 0.042 | BB17: =BB16*(1-BB12) -> 0.042 | BC17: =BC16*(1-BC12) -> 0.042 | BD17: =BD16*(1-BD12) -> 0.042 | BE17: =BE16*(1-BE12) -> 0.042 | BF17: =BF16*(1-BF12) -> 0.042 | BG17: =BG16*(1-BG12) -> 0.042 | BH17: =BH16*(1-BH12) -> 0.042 | BI17: =BI16*(1-BI12) -> 0.042 | BJ17: =BJ16*(1-BJ12) -> 0.042 | BK17: =BK16*(1-BK12) -> 0.042 | BL17: =BL16*(1-BL12) -> 0.042 | BM17: =BM16*(1-BM12) -> 0.042 | BN17: =BN16*(1-BN12) -> 0.042 | BO17: =BO16*(1-BO12) -> 0.042 | BP17: =BP16*(1-BP12) -> 0.042 | BQ17: =BQ16*(1-BQ12) -> 0.042
C18: WACC | E18: % | I18: =I17*I14+I15*(1-I14) -> 0.0652 | J18: =J17*J14+J15*(1-J14) -> 0.0652 | K18: =K17*K14+K15*(1-K14) -> 0.0652 | L18: 0.0652 | M18: 0.0652 | N18: 0.0652 | O18: 0.0652 | P18: 0.0652 | Q18: 0.0652 | R18: 0.0652 | S18: 0.0652 | T18: 0.0652 | U18: 0.0652 | V18: 0.0652 | W18: 0.0652 | X18: 0.0652 | Y18: 0.0652 | Z18: 0.0652 | AA18: 0.0652 | AB18: 0.0652 | AC18: 0.0652 | AD18: 0.0652 | AE18: 0.0652 | AF18: 0.0652 | AG18: 0.0652 | AH18: 0.0652 | AI18: 0.0652 | AJ18: 0.0652 | AK18: 0.0652 | AL18: 0.0652 | AM18: 0.0652 | AN18: 0.0652 | AO18: 0.0652 | AP18: 0.0652 | AQ18: 0.0652 | AR18: 0.0652 | AS18: 0.0652 | AT18: 0.0652 | AU18: 0.0652 | AV18: 0.0652 | AW18: 0.0652 | AX18: 0.0652 | AY18: =AY17*AY14+AY15*(1-AY14) -> 0.0652 | AZ18: =AZ17*AZ14+AZ15*(1-AZ14) -> 0.0652 | BA18: =BA17*BA14+BA15*(1-BA14) -> 0.0652 | BB18: =BB17*BB14+BB15*(1-BB14) -> 0.0652 | BC18: =BC17*BC14+BC15*(1-BC14) -> 0.0652 | BD18: =BD17*BD14+BD15*(1-BD14) -> 0.0652 | BE18: =BE17*BE14+BE15*(1-BE14) -> 0.0652 | BF18: =BF17*BF14+BF15*(1-BF14) -> 0.0652 | BG18: =BG17*BG14+BG15*(1-BG14) -> 0.0652 | BH18: =BH17*BH14+BH15*(1-BH14) -> 0.0652 | BI18: =BI17*BI14+BI15*(1-BI14) -> 0.0652 | BJ18: =BJ17*BJ14+BJ15*(1-BJ14) -> 0.0652 | BK18: =BK17*BK14+BK15*(1-BK14) -> 0.0652 | BL18: =BL17*BL14+BL15*(1-BL14) -> 0.0652 | BM18: =BM17*BM14+BM15*(1-BM14) -> 0.0652 | BN18: =BN17*BN14+BN15*(1-BN14) -> 0.0652 | BO18: =BO17*BO14+BO15*(1-BO14) -> 0.0652 | BP18: =BP17*BP14+BP15*(1-BP14) -> 0.0652 | BQ18: =BQ17*BQ14+BQ15*(1-BQ14) -> 0.0652
C20: Required Nominal Project IRR | E20: % p.a. | I20: =I18 -> 0.0652 | J20: =J18 -> 0.0652 | K20: =K18 -> 0.0652 | L20: 0.0652 | M20: 0.0652 | N20: 0.0652 | O20: 0.0652 | P20: 0.0652 | Q20: 0.0652 | R20: 0.0652 | S20: 0.0652 | T20: 0.0652 | U20: 0.0652 | V20: 0.0652 | W20: 0.0652 | X20: 0.0652 | Y20: 0.0652 | Z20: 0.0652 | AA20: 0.0652 | AB20: 0.0652 | AC20: 0.0652 | AD20: 0.0652 | AE20: 0.0652 | AF20: 0.0652 | AG20: 0.0652 | AH20: 0.0652 | AI20: 0.0652 | AJ20: 0.0652 | AK20: 0.0652 | AL20: 0.0652 | AM20: 0.0652 | AN20: 0.0652 | AO20: 0.0652 | AP20: 0.0652 | AQ20: 0.0652 | AR20: 0.0652 | AS20: 0.0652 | AT20: 0.0652 | AU20: 0.0652 | AV20: 0.0652 | AW20: 0.0652 | AX20: 0.0652 | AY20: =AY18 -> 0.0652 | AZ20: 0.0652 | BA20: 0.0652 | BB20: 0.0652 | BC20: 0.0652 | BD20: 0.0652 | BE20: 0.0652 | BF20: 0.0652 | BG20: 0.0652 | BH20: 0.0652 | BI20: 0.0652 | BJ20: 0.0652 | BK20: 0.0652 | BL20: 0.0652 | BM20: 0.0652 | BN20: 0.0652 | BO20: 0.0652 | BP20: 0.0652 | BQ20: 0.0652
C22: Inflation | E22: % p.a. | I22: ='Electrolyzer Inputs'!$F$13 -> 0.03 | J22: ='Electrolyzer Inputs'!$F$13 -> 0.03 | K22: ='Electrolyzer Inputs'!$F$13 -> 0.03 | L22: ='Electrolyzer Inputs'!$F$13 -> 0.03 | M22: ='Electrolyzer Inputs'!$F$13 -> 0.03 | N22: ='Electrolyzer Inputs'!$F$13 -> 0.03 | O22: ='Electrolyzer Inputs'!$F$13 -> 0.03 | P22: ='Electrolyzer Inputs'!$F$13 -> 0.03 | Q22: ='Electrolyzer Inputs'!$F$13 -> 0.03 | R22: ='Electrolyzer Inputs'!$F$13 -> 0.03 | S22: ='Electrolyzer Inputs'!$F$13 -> 0.03 | T22: ='Electrolyzer Inputs'!$F$13 -> 0.03 | U22: ='Electrolyzer Inputs'!$F$13 -> 0.03 | V22: ='Electrolyzer Inputs'!$F$13 -> 0.03 | W22: ='Electrolyzer Inputs'!$F$13 -> 0.03 | X22: ='Electrolyzer Inputs'!$F$13 -> 0.03 | Y22: ='Electrolyzer Inputs'!$F$13 -> 0.03 | Z22: ='Electrolyzer Inputs'!$F$13 -> 0.03 | AA22: ='Electrolyzer Inputs'!$F$13 -> 0.03 | AB22: ='Electrolyzer Inputs'!$F$13 -> 0.03 | AC22: ='Electrolyzer Inputs'!$F$13 -> 0.03 | AD22: ='Electrolyzer Inputs'!$F$13 -> 0.03 | AE22: ='Electrolyzer Inputs'!$F$13 -> 0.03 | AF22: ='Electrolyzer Inputs'!$F$13 -> 0.03 | AG22: ='Electrolyzer Inputs'!$F$13 -> 0.03 | AH22: ='Electrolyzer Inputs'!$F$13 -> 0.03 | AI22: ='Electrolyzer Inputs'!$F$13 -> 0.03 | AJ22: ='Electrolyzer Inputs'!$F$13 -> 0.03 | AK22: ='Electrolyzer Inputs'!$F$13 -> 0.03 | AL22: ='Electrolyzer Inputs'!$F$13 -> 0.03 | AM22: ='Electrolyzer Inputs'!$F$13 -> 0.03 | AN22: ='Electrolyzer Inputs'!$F$13 -> 0.03 | AO22: ='Electrolyzer Inputs'!$F$13 -> 0.03 | AP22: ='Electrolyzer Inputs'!$F$13 -> 0.03 | AQ22: ='Electrolyzer Inputs'!$F$13 -> 0.03 | AR22: ='Electrolyzer Inputs'!$F$13 -> 0.03 | AS22: ='Electrolyzer Inputs'!$F$13 -> 0.03 | AT22: ='Electrolyzer Inputs'!$F$13 -> 0.03 | AU22: ='Electrolyzer Inputs'!$F$13 -> 0.03 | AV22: ='Electrolyzer Inputs'!$F$13 -> 0.03 | AW22: ='Electrolyzer Inputs'!$F$13 -> 0.03 | AX22: ='Electrolyzer Inputs'!$F$13 -> 0.03 | AY22: ='Electrolyzer Inputs'!$F$13 -> 0.03 | AZ22: ='Electrolyzer Inputs'!$F$13 -> 0.03 | BA22: ='Electrolyzer Inputs'!$F$13 -> 0.03 | BB22: ='Electrolyzer Inputs'!$F$13 -> 0.03 | BC22: ='Electrolyzer Inputs'!$F$13 -> 0.03 | BD22: ='Electrolyzer Inputs'!$F$13 -> 0.03 | BE22: ='Electrolyzer Inputs'!$F$13 -> 0.03 | BF22: ='Electrolyzer Inputs'!$F$13 -> 0.03 | BG22: ='Electrolyzer Inputs'!$F$13 -> 0.03 | BH22: ='Electrolyzer Inputs'!$F$13 -> 0.03 | BI22: ='Electrolyzer Inputs'!$F$13 -> 0.03 | BJ22: ='Electrolyzer Inputs'!$F$13 -> 0.03 | BK22: ='Electrolyzer Inputs'!$F$13 -> 0.03 | BL22: ='Electrolyzer Inputs'!$F$13 -> 0.03 | BM22: ='Electrolyzer Inputs'!$F$13 -> 0.03 | BN22: ='Electrolyzer Inputs'!$F$13 -> 0.03 | BO22: ='Electrolyzer Inputs'!$F$13 -> 0.03 | BP22: ='Electrolyzer Inputs'!$F$13 -> 0.03 | BQ22: ='Electrolyzer Inputs'!$F$13 -> 0.03
C23: Degradation in Equipment | E23: % p.a. | I23: 0 | J23: 0 | K23: 0 | L23: 0 | M23: 0 | N23: 0 | O23: 0 | P23: 0 | Q23: 0 | R23: 0 | S23: 0 | T23: 0 | U23: 0 | V23: 0 | W23: 0 | X23: 0 | Y23: 0 | Z23: 0 | AA23: 0 | AB23: 0 | AC23: 0 | AD23: 0 | AE23: 0 | AF23: 0 | AG23: 0 | AH23: 0 | AI23: 0 | AJ23: 0 | AK23: 0 | AL23: 0 | AM23: 0 | AN23: 0 | AO23: 0 | AP23: 0 | AQ23: 0 | AR23: 0 | AS23: 0 | AT23: 0 | AU23: 0 | AV23: 0 | AW23: 0 | AX23: 0 | AY23: 0 | AZ23: 0 | BA23: 0 | BB23: 0 | BC23: 0 | BD23: 0 | BE23: 0 | BF23: 0 | BG23: 0 | BH23: 0 | BI23: 0 | BJ23: 0 | BK23: 0 | BL23: 0 | BM23: 0 | BN23: 0 | BO23: 0 | BP23: 0 | BQ23: 0
C24: Tax Shield Value (Function) | E24: % | I24: =tax_dep_shield(I11,I13,I20,I12) -> 0.2339525326 | J24: =tax_dep_shield(J11,J13,J20,J12) -> 0.2339525326 | K24: =tax_dep_shield(K11,K13,K20,K12) -> 0.2339525326 | L24: =tax_dep_shield(L11,L13,L20,L12) -> 0.2339525326 | M24: =tax_dep_shield(M11,M13,M20,M12) -> 0.2339525326 | N24: =tax_dep_shield(N11,N13,N20,N12) -> 0.2339525326 | O24: =tax_dep_shield(O11,O13,O20,O12) -> 0.2339525326 | P24: =tax_dep_shield(P11,P13,P20,P12) -> 0.2339525326 | Q24: =tax_dep_shield(Q11,Q13,Q20,Q12) -> 0.2339525326 | R24: =tax_dep_shield(R11,R13,R20,R12) -> 0.2339525326 | S24: =tax_dep_shield(S11,S13,S20,S12) -> 0.2339525326 | T24: =tax_dep_shield(T11,T13,T20,T12) -> 0.2339525326 | U24: =tax_dep_shield(U11,U13,U20,U12) -> 0.2339525326 | V24: =tax_dep_shield(V11,V13,V20,V12) -> 0.2339525326 | W24: =tax_dep_shield(W11,W13,W20,W12) -> 0.2339525326 | X24: =tax_dep_shield(X11,X13,X20,X12) -> 0.2339525326 | Y24: =tax_dep_shield(Y11,Y13,Y20,Y12) -> 0.2339525326 | Z24: =tax_dep_shield(Z11,Z13,Z20,Z12) -> 0.2339525326 | AA24: =tax_dep_shield(AA11,AA13,AA20,AA12) -> 0.2339525326 | AB24: =tax_dep_shield(AB11,AB13,AB20,AB12) -> 0.2339525326 | AC24: =tax_dep_shield(AC11,AC13,AC20,AC12) -> 0.2339525326 | AD24: =tax_dep_shield(AD11,AD13,AD20,AD12) -> 0.2339525326 | AE24: =tax_dep_shield(AE11,AE13,AE20,AE12) -> 0.2339525326 | AF24: =tax_dep_shield(AF11,AF13,AF20,AF12) -> 0.2339525326 | AG24: =tax_dep_shield(AG11,AG13,AG20,AG12) -> 0.2339525326 | AH24: =tax_dep_shield(AH11,AH13,AH20,AH12) -> 0.2339525326 | AI24: =tax_dep_shield(AI11,AI13,AI20,AI12) -> 0.2339525326 | AJ24: =tax_dep_shield(AJ11,AJ13,AJ20,AJ12) -> 0.2339525326 | AK24: =tax_dep_shield(AK11,AK13,AK20,AK12) -> 0.2339525326 | AL24: =tax_dep_shield(AL11,AL13,AL20,AL12) -> 0.2339525326 | AM24: =tax_dep_shield(AM11,AM13,AM20,AM12) -> 0.2339525326 | AN24: =tax_dep_shield(AN11,AN13,AN20,AN12) -> 0.2339525326 | AO24: =tax_dep_shield(AO11,AO13,AO20,AO12) -> 0.2339525326 | AP24: =tax_dep_shield(AP11,AP13,AP20,AP12) -> 0.2339525326 | AQ24: =tax_dep_shield(AQ11,AQ13,AQ20,AQ12) -> 0.2339525326 | AR24: =tax_dep_shield(AR11,AR13,AR20,AR12) -> 0.2339525326 | AS24: =tax_dep_shield(AS11,AS13,AS20,AS12) -> 0.2339525326 | AT24: =tax_dep_shield(AT11,AT13,AT20,AT12) -> 0.2339525326 | AU24: =tax_dep_shield(AU11,AU13,AU20,AU12) -> 0.2339525326 | AV24: =tax_dep_shield(AV11,AV13,AV20,AV12) -> 0.2339525326 | AW24: =tax_dep_shield(AW11,AW13,AW20,AW12) -> 0.2339525326 | AX24: =tax_dep_shield(AX11,AX13,AX20,AX12) -> 0.2339525326 | AY24: =tax_dep_shield(AY11,AY13,AY20,AY12) -> 0.2339525326 | AZ24: =tax_dep_shield(AZ11,AZ13,AZ20,AZ12) -> 0.2339525326 | BA24: =tax_dep_shield(BA11,BA13,BA20,BA12) -> 0.2339525326 | BB24: =tax_dep_shield(BB11,BB13,BB20,BB12) -> 0.2339525326 | BC24: =tax_dep_shield(BC11,BC13,BC20,BC12) -> 0.2339525326 | BD24: =tax_dep_shield(BD11,BD13,BD20,BD12) -> 0.2339525326 | BE24: =tax_dep_shield(BE11,BE13,BE20,BE12) -> 0.2339525326 | BF24: =tax_dep_shield(BF11,BF13,BF20,BF12) -> 0.2339525326 | BG24: =tax_dep_shield(BG11,BG13,BG20,BG12) -> 0.2339525326 | BH24: =tax_dep_shield(BH11,BH13,BH20,BH12) -> 0.2339525326 | BI24: =tax_dep_shield(BI11,BI13,BI20,BI12) -> 0.2339525326 | BJ24: =tax_dep_shield(BJ11,BJ13,BJ20,BJ12) -> 0.2339525326 | BK24: =tax_dep_shield(BK11,BK13,BK20,BK12) -> 0.2339525326 | BL24: =tax_dep_shield(BL11,BL13,BL20,BL12) -> 0.2339525326 | BM24: =tax_dep_shield(BM11,BM13,BM20,BM12) -> 0.2339525326 | BN24: =tax_dep_shield(BN11,BN13,BN20,BN12) -> 0.2339525326 | BO24: =tax_dep_shield(BO11,BO13,BO20,BO12) -> 0.2339525326 | BP24: =tax_dep_shield(BP11,BP13,BP20,BP12) -> 0.2339525326 | BQ24: =tax_dep_shield(BQ11,BQ13,BQ20,BQ12) -> 0.2339525326
C26: Levelizing Factor with PMT | E26: % | I26: =PMT(I20,I10,-1) -> 0.07014159331 | J26: =PMT(J20,J10,-1) -> 0.07014159331 | K26: =PMT(K20,K10,-1) -> 0.07014159331 | L26: 0.07014159331 | M26: 0.07014159331 | N26: 0.07014159331 | O26: 0.06951634328 | P26: 0.06951634328 | Q26: 0.06951634328 | R26: 0.07170365176 | S26: 0.07170365176 | T26: 0.07170365176 | U26: 0.07170365176 | V26: 0.07170365176 | W26: 0.07170365176 | X26: 0.07170365176 | Y26: 0.07170365176 | Z26: 0.07170365176 | AA26: 0.07673628689 | AB26: 0.07673628689 | AC26: 0.07673628689 | AD26: 0.07170365176 | AE26: 0.07170365176 | AF26: 0.07170365176 | AG26: 0.07673628689 | AH26: 0.07673628689 | AI26: 0.07673628689 | AJ26: 0.07673628689 | AK26: 0.07673628689 | AL26: 0.07673628689 | AM26: 0.07673628689 | AN26: 0.07673628689 | AO26: 0.07673628689 | AP26: 0.07967753527 | AQ26: 0.07967753527 | AR26: 0.07967753527 | AS26: 0.07967753527 | AT26: 0.07967753527 | AU26: 0.07967753527 | AV26: 0.06951634328 | AW26: 0.06951634328 | AX26: 0.06951634328 | AY26: =PMT(AY20,AY10,-1) -> 0.07591412474 | AZ26: 0.07591412474 | BA26: 0.07591412474 | BB26: 0.07591412474 | BC26: 0.07591412474 | BD26: 0.07591412474 | BE26: 0.07591412474 | BF26: 0.07591412474 | BG26: 0.07591412474 | BH26: 0.07591412474 | BI26: 0.07591412474 | BJ26: 0.07591412474 | BK26: 0.07591412474 | BL26: 0.07591412474 | BM26: 0.07591412474 | BN26: 0.07591412474 | BO26: 0.07591412474 | BP26: 0.07591412474
C27: Capital Recovery Pre-Tax | E27: USD/yr | I27: =I26*I7 -> 68497581.22 | J27: =J26*J7 -> 30823911.55 | K27: =K26*K7 -> 37673669.67 | L27: 49415324.3 | M27: 22236895.93 | N27: 27178428.36 | O27: 29356534.53 | P27: 13210440.54 | Q27: 16146093.99 | R27: 40021053.1 | S27: 18009473.9 | T27: 22011579.21 | U27: 46237427.62 | V27: 21340351.21 | W27: 24897076.41 | X27: 58847635.15 | Y27: 27160446.99 | Z27: 31687188.16 | AA27: 1077484.139 | AB27: 430993.6556 | AC27: 646490.4834 | AD27: 2689153.168 | AE27: 1210118.925 | AF27: 1479034.242 | AG27: 112046.0714 | AH27: 36837.06458 | AI27: 75209.00685 | AJ27: 1319994.814 | AK27: 529532.8033 | AL27: 790462.0108 | AM27: 4834864.726 | AN27: 2263944.594 | AO27: 2570920.132 | AP27: 398391.2619 | AQ27: 215131.2814 | AR27: 183259.9805 | AS27: 796782.5237 | AT27: 215131.2814 | AU27: 581651.2423 | AV27: 139033.9379 | AW27: 69516.96894 | AX27: 69516.96894 | AY27: =AY26*AY7 -> 338322.3226 | AZ27: =AZ26*AZ7 -> 138712.1523 | BA27: =BA26*BA7 -> 199610.1704 | BB27: =BB26*BB7 -> 150496.4479 | BC27: =BC26*BC7 -> 57188.6502 | BD27: =BD26*BD7 -> 93307.79769 | BE27: =BE26*BE7 -> 11031028.9 | BF27: =BF26*BF7 -> 5184583.581 | BG27: =BG26*BG7 -> 5846445.315 | BH27: =BH26*BH7 -> 4466313.551 | BI27: =BI26*BI7 -> 1652536.014 | BJ27: =BJ26*BJ7 -> 2813777.537 | BK27: =BK26*BK7 -> 5354180.961 | BL27: =BL26*BL7 -> 2409381.432 | BM27: =BM26*BM7 -> 2944799.529 | BN27: =BN26*BN7 -> 1423402.65 | BO27: =BO26*BO7 -> 711701.3248 | BP27: =BP26*BP7 -> 711701.3248 | BQ27: =BQ26*BQ7 -> 
C29: Capital Cost Recovery Base | E29: USD/yr | I29: =I26*I7 -> 68497581.22 | J29: =J26*J7 -> 30823911.55 | K29: =K26*K7 -> 37673669.67 | L29: 49415324.3 | M29: 22236895.93 | N29: 27178428.36 | O29: 29356534.53 | P29: 13210440.54 | Q29: 16146093.99 | R29: 40021053.1 | S29: 18009473.9 | T29: 22011579.21 | U29: 46237427.62 | V29: 21340351.21 | W29: 24897076.41 | X29: 58847635.15 | Y29: 27160446.99 | Z29: 31687188.16 | AA29: 1077484.139 | AB29: 430993.6556 | AC29: 646490.4834 | AD29: 2689153.168 | AE29: 1210118.925 | AF29: 1479034.242 | AG29: 112046.0714 | AH29: 36837.06458 | AI29: 75209.00685 | AJ29: 1319994.814 | AK29: 529532.8033 | AL29: 790462.0108 | AM29: 4834864.726 | AN29: 2263944.594 | AO29: 2570920.132 | AP29: 398391.2619 | AQ29: 215131.2814 | AR29: 183259.9805 | AS29: 796782.5237 | AT29: 215131.2814 | AU29: 581651.2423 | AV29: 139033.9379 | AW29: 69516.96894 | AX29: 69516.96894 | AY29: =AY26*AY7 -> 338322.3226 | AZ29: 138712.1523 | BA29: 199610.1704 | BB29: 150496.4479 | BC29: 57188.6502 | BD29: 93307.79769 | BE29: 11031028.9 | BF29: 5184583.581 | BG29: 5846445.315 | BH29: 4466313.551 | BI29: 1652536.014 | BJ29: 2813777.537 | BK29: 5354180.961 | BL29: 2409381.432 | BM29: 2944799.529 | BN29: 1423402.65 | BO29: 711701.3248 | BP29: 711701.3248
C30: IRR Adjusted for Degradation | E30: % p.a. | I30: =(1+I20)/(1-I23)-1 -> 0.0652 | J30: 0.0652 | K30: =(1+K20)/(1-K23)-1 -> 0.0652 | L30: 0.0652 | M30: 0.0652 | N30: 0.0652 | O30: 0.0652 | P30: 0.0652 | Q30: 0.0652 | R30: 0.0652 | S30: 0.0652 | T30: 0.0652 | U30: 0.0652 | V30: 0.0652 | W30: 0.0652 | X30: 0.0652 | Y30: 0.0652 | Z30: 0.0652 | AA30: 0.0652 | AB30: 0.0652 | AC30: 0.0652 | AD30: 0.0652 | AE30: 0.0652 | AF30: 0.0652 | AG30: 0.0652 | AH30: 0.0652 | AI30: 0.0652 | AJ30: 0.0652 | AK30: 0.0652 | AL30: 0.0652 | AM30: 0.0652 | AN30: 0.0652 | AO30: 0.0652 | AP30: 0.0652 | AQ30: 0.0652 | AR30: 0.0652 | AS30: 0.0652 | AT30: 0.0652 | AU30: 0.0652 | AV30: 0.0652 | AW30: 0.0652 | AX30: 0.0652 | AY30: =(1+AY20)/(1-AY23)-1 -> 0.0652 | AZ30: 0.0652 | BA30: 0.0652 | BB30: 0.0652 | BC30: 0.0652 | BD30: 0.0652 | BE30: 0.0652 | BF30: 0.0652 | BG30: 0.0652 | BH30: 0.0652 | BI30: 0.0652 | BJ30: 0.0652 | BK30: 0.0652 | BL30: 0.0652 | BM30: 0.0652 | BN30: 0.0652 | BO30: 0.0652 | BP30: 0.0652 | BQ30: 0.0652
C31: Nominal Levelizing Factor with Degradation | E31: % p.a. | I31: =PMT(I30,I10,-1) -> 0.07014159331 | J31: =PMT(J30,J10,-1) -> 0.07014159331 | K31: =PMT(K30,K10,-1) -> 0.07014159331 | L31: 0.07014159331 | M31: 0.07014159331 | N31: 0.07014159331 | O31: 0.06951634328 | P31: 0.06951634328 | Q31: 0.06951634328 | R31: 0.07170365176 | S31: 0.07170365176 | T31: 0.07170365176 | U31: 0.07170365176 | V31: 0.07170365176 | W31: 0.07170365176 | X31: 0.07170365176 | Y31: 0.07170365176 | Z31: 0.07170365176 | AA31: 0.07673628689 | AB31: 0.07673628689 | AC31: 0.07673628689 | AD31: 0.07170365176 | AE31: 0.07170365176 | AF31: 0.07170365176 | AG31: 0.07673628689 | AH31: 0.07673628689 | AI31: 0.07673628689 | AJ31: 0.07673628689 | AK31: 0.07673628689 | AL31: 0.07673628689 | AM31: 0.07673628689 | AN31: 0.07673628689 | AO31: 0.07673628689 | AP31: 0.07967753527 | AQ31: 0.07967753527 | AR31: 0.07967753527 | AS31: 0.07967753527 | AT31: 0.07967753527 | AU31: 0.07967753527 | AV31: 0.06951634328 | AW31: 0.06951634328 | AX31: 0.06951634328 | AY31: =PMT(AY30,AY10,-1) -> 0.07591412474 | AZ31: =PMT(AZ30,AZ10,-1) -> 0.07591412474 | BA31: =PMT(BA30,BA10,-1) -> 0.07591412474 | BB31: =PMT(BB30,BB10,-1) -> 0.07591412474 | BC31: =PMT(BC30,BC10,-1) -> 0.07591412474 | BD31: =PMT(BD30,BD10,-1) -> 0.07591412474 | BE31: =PMT(BE30,BE10,-1) -> 0.07591412474 | BF31: =PMT(BF30,BF10,-1) -> 0.07591412474 | BG31: =PMT(BG30,BG10,-1) -> 0.07591412474 | BH31: =PMT(BH30,BH10,-1) -> 0.07591412474 | BI31: =PMT(BI30,BI10,-1) -> 0.07591412474 | BJ31: =PMT(BJ30,BJ10,-1) -> 0.07591412474 | BK31: =PMT(BK30,BK10,-1) -> 0.07591412474 | BL31: =PMT(BL30,BL10,-1) -> 0.07591412474 | BM31: =PMT(BM30,BM10,-1) -> 0.07591412474 | BN31: =PMT(BN30,BN10,-1) -> 0.07591412474 | BO31: =PMT(BO30,BO10,-1) -> 0.07591412474 | BP31: =PMT(BP30,BP10,-1) -> 0.07591412474 | BQ31: =PMT(BQ30,BQ10,-1) -> 
C32: PMT Factor Adjusted for Paying Taxes | E32: % p.a. | I32: =I31/(1-I12) -> 0.1002022762 | J32: =J31/(1-J12) -> 0.1002022762 | K32: =K31/(1-K12) -> 0.1002022762 | L32: 0.1002022762 | M32: 0.1002022762 | N32: 0.1002022762 | O32: 0.09930906184 | P32: 0.09930906184 | Q32: 0.09930906184 | R32: 0.1024337882 | S32: 0.1024337882 | T32: 0.1024337882 | U32: 0.1024337882 | V32: 0.1024337882 | W32: 0.1024337882 | X32: 0.1024337882 | Y32: 0.1024337882 | Z32: 0.1024337882 | AA32: 0.109623267 | AB32: 0.109623267 | AC32: 0.109623267 | AD32: 0.1024337882 | AE32: 0.1024337882 | AF32: 0.1024337882 | AG32: 0.109623267 | AH32: 0.109623267 | AI32: 0.109623267 | AJ32: 0.109623267 | AK32: 0.109623267 | AL32: 0.109623267 | AM32: 0.109623267 | AN32: 0.109623267 | AO32: 0.109623267 | AP32: 0.1138250504 | AQ32: 0.1138250504 | AR32: 0.1138250504 | AS32: 0.1138250504 | AT32: 0.1138250504 | AU32: 0.1138250504 | AV32: 0.09930906184 | AW32: 0.09930906184 | AX32: 0.09930906184 | AY32: =AY31/(1-AY12) -> 0.1084487496 | AZ32: =AZ31/(1-AZ12) -> 0.1084487496 | BA32: =BA31/(1-BA12) -> 0.1084487496 | BB32: =BB31/(1-BB12) -> 0.1084487496 | BC32: =BC31/(1-BC12) -> 0.1084487496 | BD32: =BD31/(1-BD12) -> 0.1084487496 | BE32: =BE31/(1-BE12) -> 0.1084487496 | BF32: =BF31/(1-BF12) -> 0.1084487496 | BG32: =BG31/(1-BG12) -> 0.1084487496 | BH32: =BH31/(1-BH12) -> 0.1084487496 | BI32: =BI31/(1-BI12) -> 0.1084487496 | BJ32: =BJ31/(1-BJ12) -> 0.1084487496 | BK32: =BK31/(1-BK12) -> 0.1084487496 | BL32: =BL31/(1-BL12) -> 0.1084487496 | BM32: =BM31/(1-BM12) -> 0.1084487496 | BN32: =BN31/(1-BN12) -> 0.1084487496 | BO32: =BO31/(1-BO12) -> 0.1084487496 | BP32: =BP31/(1-BP12) -> 0.1084487496 | BQ32: =BQ31/(1-BQ12) -> 
C33: PMT Factor Adjust for Tax Depreciation Shield | E33: % p.a. | I33: =I32*(1-I24) -> 0.07675969988 | J33: =J32*(1-J24) -> 0.07675969988 | K33: =K32*(1-K24) -> 0.07675969988 | L33: 0.07675969988 | M33: 0.07675969988 | N33: 0.07675969988 | O33: 0.07607545531 | P33: 0.07607545531 | Q33: 0.07607545531 | R33: 0.07846914405 | S33: 0.07846914405 | T33: 0.07846914405 | U33: 0.07846914405 | V33: 0.07846914405 | W33: 0.07846914405 | X33: 0.07846914405 | Y33: 0.07846914405 | Z33: 0.07846914405 | AA33: 0.08397662604 | AB33: 0.08397662604 | AC33: 0.08397662604 | AD33: 0.07846914405 | AE33: 0.07846914405 | AF33: 0.07846914405 | AG33: 0.08397662604 | AH33: 0.08397662604 | AI33: 0.08397662604 | AJ33: 0.08397662604 | AK33: 0.08397662604 | AL33: 0.08397662604 | AM33: 0.08397662604 | AN33: 0.08397662604 | AO33: 0.08397662604 | AP33: 0.08719539157 | AQ33: 0.08719539157 | AR33: 0.08719539157 | AS33: 0.08719539157 | AT33: 0.08719539157 | AU33: 0.08719539157 | AV33: 0.07607545531 | AW33: 0.07607545531 | AX33: 0.07607545531 | AY33: =AY32*(1-AY24) -> 0.08307689 | AZ33: =AZ32*(1-AZ24) -> 0.08307689 | BA33: =BA32*(1-BA24) -> 0.08307689 | BB33: =BB32*(1-BB24) -> 0.08307689 | BC33: =BC32*(1-BC24) -> 0.08307689 | BD33: =BD32*(1-BD24) -> 0.08307689 | BE33: =BE32*(1-BE24) -> 0.08307689 | BF33: =BF32*(1-BF24) -> 0.08307689 | BG33: =BG32*(1-BG24) -> 0.08307689 | BH33: =BH32*(1-BH24) -> 0.08307689 | BI33: =BI32*(1-BI24) -> 0.08307689 | BJ33: =BJ32*(1-BJ24) -> 0.08307689 | BK33: =BK32*(1-BK24) -> 0.08307689 | BL33: =BL32*(1-BL24) -> 0.08307689 | BM33: =BM32*(1-BM24) -> 0.08307689 | BN33: =BN32*(1-BN24) -> 0.08307689 | BO33: =BO32*(1-BO24) -> 0.08307689 | BP33: =BP32*(1-BP24) -> 0.08307689 | BQ33: =BQ32*(1-BQ24) -> 
C35: Construction Timing | E35: Year | I35: 3 | J35: 3 | K35: 3 | L35: 3 | M35: 3 | N35: 3 | O35: 3 | P35: 3 | Q35: 3 | R35: 3 | S35: 3 | T35: 3 | U35: 3 | V35: 3 | W35: 3 | X35: 3 | Y35: 3 | Z35: 3 | AA35: 3 | AB35: 3 | AC35: 3 | AD35: 3 | AE35: 3 | AF35: 3 | AG35: 3 | AH35: 3 | AI35: 3 | AJ35: 3 | AK35: 3 | AL35: 3 | AM35: 3 | AN35: 3 | AO35: 3 | AP35: 3 | AQ35: 3 | AR35: 3 | AS35: 3 | AT35: 3 | AU35: 3 | AV35: 3 | AW35: 3 | AX35: 3 | AY35: 3 | AZ35: 3 | BA35: 3 | BB35: 3 | BC35: 3 | BD35: 3 | BE35: 3 | BF35: 3 | BG35: 3 | BH35: 3 | BI35: 3 | BJ35: 3 | BK35: 3 | BL35: 3 | BM35: 3 | BN35: 3 | BO35: 3 | BP35: 3 | BQ35: 3
C36: Construction Factor | E36: Factor | I36: =FV(I20,I35,-1/I35) -> 1.066617013 | J36: 1.066617013 | K36: =FV(K20,K35,-1/K35) -> 1.066617013 | L36: 1.066617013 | M36: 1.066617013 | N36: 1.066617013 | O36: 1.066617013 | P36: 1.066617013 | Q36: 1.066617013 | R36: 1.066617013 | S36: 1.066617013 | T36: 1.066617013 | U36: 1.066617013 | V36: 1.066617013 | W36: 1.066617013 | X36: 1.066617013 | Y36: 1.066617013 | Z36: 1.066617013 | AA36: 1.066617013 | AB36: 1.066617013 | AC36: 1.066617013 | AD36: 1.066617013 | AE36: 1.066617013 | AF36: 1.066617013 | AG36: 1.066617013 | AH36: 1.066617013 | AI36: 1.066617013 | AJ36: 1.066617013 | AK36: 1.066617013 | AL36: 1.066617013 | AM36: 1.066617013 | AN36: 1.066617013 | AO36: 1.066617013 | AP36: 1.066617013 | AQ36: 1.066617013 | AR36: 1.066617013 | AS36: 1.066617013 | AT36: 1.066617013 | AU36: 1.066617013 | AV36: 1.066617013 | AW36: 1.066617013 | AX36: 1.066617013 | AY36: =FV(AY20,AY35,-1/AY35) -> 1.066617013 | AZ36: 1.066617013 | BA36: 1.066617013 | BB36: 1.066617013 | BC36: 1.066617013 | BD36: 1.066617013 | BE36: 1.066617013 | BF36: 1.066617013 | BG36: 1.066617013 | BH36: 1.066617013 | BI36: 1.066617013 | BJ36: 1.066617013 | BK36: 1.066617013 | BL36: 1.066617013 | BM36: 1.066617013 | BN36: 1.066617013 | BO36: 1.066617013 | BP36: 1.066617013 | BQ36: 1.066617013
C37: Capital Cost Recovery with Degradation | E37: USD/yr | I37: =I33*I7*I36 -> 79954218.71 | J37: =J33*J7*J36 -> 35979398.42 | K37: =K33*K7*K36 -> 43974820.29 | L37: 57680338.14 | M37: 25956152.16 | N37: 31724185.97 | O37: 34266593.66 | P37: 15419967.15 | Q37: 18846626.51 | R37: 46714817.89 | S37: 21021668.05 | T37: 25693149.84 | U37: 53970918.89 | V37: 24909654.87 | W37: 29061264.02 | X37: 68690260.41 | Y37: 31703197.11 | Z37: 36987063.3 | AA37: 1257699.921 | AB37: 503079.9685 | AC37: 754619.9527 | AD37: 3138930.407 | AE37: 1412518.683 | AF37: 1726411.724 | AG37: 130786.459 | AH37: 42998.2879 | AI37: 87788.17114 | AJ37: 1540771.983 | AK37: 618100.3886 | AL37: 922671.5946 | AM37: 5643525.287 | AN37: 2642603.111 | AO37: 3000922.177 | AP37: 465024.6259 | AQ37: 251113.298 | AR37: 213911.3279 | AS37: 930049.2518 | AT37: 251113.298 | AU37: 678935.9538 | AV37: 162288.2105 | AW37: 81144.10523 | AX37: 81144.10523 | AY37: =AY33*AY7*AY36 -> 394908.7909 | AZ37: =AZ33*AZ7*AZ36 -> 161912.6043 | BA37: =BA33*BA7*BA36 -> 232996.1866 | BB37: =BB33*BB7*BB36 -> 175667.895 | BC37: =BC33*BC7*BC36 -> 66753.80012 | BD37: =BD33*BD7*BD36 -> 108914.0949 | BE37: =BE33*BE7*BE36 -> 12876035.64 | BF37: =BF33*BF7*BF36 -> 6051736.75 | BG37: =BG33*BG7*BG36 -> 6824298.888 | BH37: =BH33*BH7*BH36 -> 5213331.684 | BI37: =BI33*BI7*BI36 -> 1928932.723 | BJ37: =BJ33*BJ7*BJ36 -> 3284398.961 | BK37: =BK33*BK7*BK36 -> 6249700.324 | BL37: =BL33*BL7*BL36 -> 2812365.146 | BM37: =BM33*BM7*BM36 -> 3437335.178 | BN37: =BN33*BN7*BN36 -> 1661475.409 | BO37: =BO33*BO7*BO36 -> 830737.7043 | BP37: =BP33*BP7*BP36 -> 830737.7043 | BQ37: =BQ33*BQ7*BQ36 -> 
C39: Real IRR | E39: % p.a. | I39: =(1+I20)/(1+I22)-1 -> 0.03417475728 | J39: 0.03417475728 | K39: =(1+K20)/(1+K22)-1 -> 0.03417475728 | L39: 0.03417475728 | M39: 0.03417475728 | N39: 0.03417475728 | O39: 0.03417475728 | P39: 0.03417475728 | Q39: 0.03417475728 | R39: 0.03417475728 | S39: 0.03417475728 | T39: 0.03417475728 | U39: 0.03417475728 | V39: 0.03417475728 | W39: 0.03417475728 | X39: 0.03417475728 | Y39: 0.03417475728 | Z39: 0.03417475728 | AA39: 0.03417475728 | AB39: 0.03417475728 | AC39: 0.03417475728 | AD39: 0.03417475728 | AE39: 0.03417475728 | AF39: 0.03417475728 | AG39: 0.03417475728 | AH39: 0.03417475728 | AI39: 0.03417475728 | AJ39: 0.03417475728 | AK39: 0.03417475728 | AL39: 0.03417475728 | AM39: 0.03417475728 | AN39: 0.03417475728 | AO39: 0.03417475728 | AP39: 0.03417475728 | AQ39: 0.03417475728 | AR39: 0.03417475728 | AS39: 0.03417475728 | AT39: 0.03417475728 | AU39: 0.03417475728 | AV39: 0.03417475728 | AW39: 0.03417475728 | AX39: 0.03417475728 | AY39: =(1+AY20)/(1+AY22)-1 -> 0.03417475728 | AZ39: 0.03417475728 | BA39: 0.03417475728 | BB39: 0.03417475728 | BC39: 0.03417475728 | BD39: 0.03417475728 | BE39: 0.03417475728 | BF39: 0.03417475728 | BG39: 0.03417475728 | BH39: 0.03417475728 | BI39: 0.03417475728 | BJ39: 0.03417475728 | BK39: 0.03417475728 | BL39: 0.03417475728 | BM39: 0.03417475728 | BN39: 0.03417475728 | BO39: 0.03417475728 | BP39: 0.03417475728 | BQ39: 0.03417475728
C40: Levelizing Factor with Real IRR | E40: % p.a. | I40: =(1+I39)/(1-I23)-1 -> 0.03417475728 | J40: 0.03417475728 | K40: =(1+K39)/(1-K23)-1 -> 0.03417475728 | L40: 0.03417475728 | M40: 0.03417475728 | N40: 0.03417475728 | O40: 0.03417475728 | P40: 0.03417475728 | Q40: 0.03417475728 | R40: 0.03417475728 | S40: 0.03417475728 | T40: 0.03417475728 | U40: 0.03417475728 | V40: 0.03417475728 | W40: 0.03417475728 | X40: 0.03417475728 | Y40: 0.03417475728 | Z40: 0.03417475728 | AA40: 0.03417475728 | AB40: 0.03417475728 | AC40: 0.03417475728 | AD40: 0.03417475728 | AE40: 0.03417475728 | AF40: 0.03417475728 | AG40: 0.03417475728 | AH40: 0.03417475728 | AI40: 0.03417475728 | AJ40: 0.03417475728 | AK40: 0.03417475728 | AL40: 0.03417475728 | AM40: 0.03417475728 | AN40: 0.03417475728 | AO40: 0.03417475728 | AP40: 0.03417475728 | AQ40: 0.03417475728 | AR40: 0.03417475728 | AS40: 0.03417475728 | AT40: 0.03417475728 | AU40: 0.03417475728 | AV40: 0.03417475728 | AW40: 0.03417475728 | AX40: 0.03417475728 | AY40: =(1+AY39)/(1-AY23)-1 -> 0.03417475728 | AZ40: 0.03417475728 | BA40: 0.03417475728 | BB40: 0.03417475728 | BC40: 0.03417475728 | BD40: 0.03417475728 | BE40: 0.03417475728 | BF40: 0.03417475728 | BG40: 0.03417475728 | BH40: 0.03417475728 | BI40: 0.03417475728 | BJ40: 0.03417475728 | BK40: 0.03417475728 | BL40: 0.03417475728 | BM40: 0.03417475728 | BN40: 0.03417475728 | BO40: 0.03417475728 | BP40: 0.03417475728 | BQ40: 0.03417475728
C41: Real IRR Adjusted for Degradation | E41: % p.a. | I41: =(1+I39)/(1-I23)-1 -> 0.03417475728 | J41: 0.03417475728 | K41: =(1+K39)/(1-K23)-1 -> 0.03417475728 | L41: 0.03417475728 | M41: 0.03417475728 | N41: 0.03417475728 | O41: 0.03417475728 | P41: 0.03417475728 | Q41: 0.03417475728 | R41: 0.03417475728 | S41: 0.03417475728 | T41: 0.03417475728 | U41: 0.03417475728 | V41: 0.03417475728 | W41: 0.03417475728 | X41: 0.03417475728 | Y41: 0.03417475728 | Z41: 0.03417475728 | AA41: 0.03417475728 | AB41: 0.03417475728 | AC41: 0.03417475728 | AD41: 0.03417475728 | AE41: 0.03417475728 | AF41: 0.03417475728 | AG41: 0.03417475728 | AH41: 0.03417475728 | AI41: 0.03417475728 | AJ41: 0.03417475728 | AK41: 0.03417475728 | AL41: 0.03417475728 | AM41: 0.03417475728 | AN41: 0.03417475728 | AO41: 0.03417475728 | AP41: 0.03417475728 | AQ41: 0.03417475728 | AR41: 0.03417475728 | AS41: 0.03417475728 | AT41: 0.03417475728 | AU41: 0.03417475728 | AV41: 0.03417475728 | AW41: 0.03417475728 | AX41: 0.03417475728 | AY41: =(1+AY39)/(1-AY23)-1 -> 0.03417475728 | AZ41: 0.03417475728 | BA41: 0.03417475728 | BB41: 0.03417475728 | BC41: 0.03417475728 | BD41: 0.03417475728 | BE41: 0.03417475728 | BF41: 0.03417475728 | BG41: 0.03417475728 | BH41: 0.03417475728 | BI41: 0.03417475728 | BJ41: 0.03417475728 | BK41: 0.03417475728 | BL41: 0.03417475728 | BM41: 0.03417475728 | BN41: 0.03417475728 | BO41: 0.03417475728 | BP41: 0.03417475728 | BQ41: 0.03417475728
C42: Levelizing Factor with Real IRR and Degradation | E42: % p.a. | I42: =PMT(I41,I10,-1) -> 0.0451934579 | J42: =PMT(J41,J10,-1) -> 0.0451934579 | K42: =PMT(K41,K10,-1) -> 0.0451934579 | L42: 0.0451934579 | M42: 0.0451934579 | N42: 0.0451934579 | O42: 0.04426577647 | P42: 0.04426577647 | Q42: 0.04426577647 | R42: 0.04739177696 | S42: 0.04739177696 | T42: 0.04739177696 | U42: 0.04739177696 | V42: 0.04739177696 | W42: 0.04739177696 | X42: 0.04739177696 | Y42: 0.04739177696 | Z42: 0.04739177696 | AA42: 0.05381062121 | AB42: 0.05381062121 | AC42: 0.05381062121 | AD42: 0.04739177696 | AE42: 0.04739177696 | AF42: 0.04739177696 | AG42: 0.05381062121 | AH42: 0.05381062121 | AI42: 0.05381062121 | AJ42: 0.05381062121 | AK42: 0.05381062121 | AL42: 0.05381062121 | AM42: 0.05381062121 | AN42: 0.05381062121 | AO42: 0.05381062121 | AP42: 0.05730286876 | AQ42: 0.05730286876 | AR42: 0.05730286876 | AS42: 0.05730286876 | AT42: 0.05730286876 | AU42: 0.05730286876 | AV42: 0.04426577647 | AW42: 0.04426577647 | AX42: 0.04426577647 | AY42: =PMT(AY41,AY10,-1) -> 0.05280795715 | AZ42: =PMT(AZ41,AZ10,-1) -> 0.05280795715 | BA42: =PMT(BA41,BA10,-1) -> 0.05280795715 | BB42: =PMT(BB41,BB10,-1) -> 0.05280795715 | BC42: =PMT(BC41,BC10,-1) -> 0.05280795715 | BD42: =PMT(BD41,BD10,-1) -> 0.05280795715 | BE42: =PMT(BE41,BE10,-1) -> 0.05280795715 | BF42: =PMT(BF41,BF10,-1) -> 0.05280795715 | BG42: =PMT(BG41,BG10,-1) -> 0.05280795715 | BH42: =PMT(BH41,BH10,-1) -> 0.05280795715 | BI42: =PMT(BI41,BI10,-1) -> 0.05280795715 | BJ42: =PMT(BJ41,BJ10,-1) -> 0.05280795715 | BK42: =PMT(BK41,BK10,-1) -> 0.05280795715 | BL42: =PMT(BL41,BL10,-1) -> 0.05280795715 | BM42: =PMT(BM41,BM10,-1) -> 0.05280795715 | BN42: =PMT(BN41,BN10,-1) -> 0.05280795715 | BO42: =PMT(BO41,BO10,-1) -> 0.05280795715 | BP42: =PMT(BP41,BP10,-1) -> 0.05280795715 | BQ42: =PMT(BQ41,BQ10,-1) -> 
C44: Adj for Tax on Inc (Divide by (1-t)) | E44: % | I44: =I42/(1-I12) -> 0.06456208271 | J44: =J42/(1-J12) -> 0.06456208271 | K44: =K42/(1-K12) -> 0.06456208271 | L44: 0.06456208271 | M44: 0.06456208271 | N44: 0.06456208271 | O44: 0.06323682352 | P44: 0.06323682352 | Q44: 0.06323682352 | R44: 0.06770253851 | S44: 0.06770253851 | T44: 0.06770253851 | U44: 0.06770253851 | V44: 0.06770253851 | W44: 0.06770253851 | X44: 0.06770253851 | Y44: 0.06770253851 | Z44: 0.06770253851 | AA44: 0.07687231601 | AB44: 0.07687231601 | AC44: 0.07687231601 | AD44: 0.06770253851 | AE44: 0.06770253851 | AF44: 0.06770253851 | AG44: 0.07687231601 | AH44: 0.07687231601 | AI44: 0.07687231601 | AJ44: 0.07687231601 | AK44: 0.07687231601 | AL44: 0.07687231601 | AM44: 0.07687231601 | AN44: 0.07687231601 | AO44: 0.07687231601 | AP44: 0.08186124108 | AQ44: 0.08186124108 | AR44: 0.08186124108 | AS44: 0.08186124108 | AT44: 0.08186124108 | AU44: 0.08186124108 | AV44: 0.06323682352 | AW44: 0.06323682352 | AX44: 0.06323682352 | AY44: =AY42/(1-AY12) -> 0.07543993879 | AZ44: 0.07543993879 | BA44: 0.07543993879 | BB44: 0.07543993879 | BC44: 0.07543993879 | BD44: 0.07543993879 | BE44: 0.07543993879 | BF44: 0.07543993879 | BG44: 0.07543993879 | BH44: 0.07543993879 | BI44: 0.07543993879 | BJ44: 0.07543993879 | BK44: 0.07543993879 | BL44: 0.07543993879 | BM44: 0.07543993879 | BN44: 0.07543993879 | BO44: 0.07543993879 | BP44: 0.07543993879
C45: Adj for Tax Shield | E45: % | I45: =I44*(1-I24) -> 0.04945761995 | J45: 0.04945761995 | K45: =K44*(1-K24) -> 0.04945761995 | L45: 0.04945761995 | M45: 0.04945761995 | N45: 0.04945761995 | O45: 0.04844240851 | P45: 0.04844240851 | Q45: 0.04844240851 | R45: 0.05186335816 | S45: 0.05186335816 | T45: 0.05186335816 | U45: 0.05186335816 | V45: 0.05186335816 | W45: 0.05186335816 | X45: 0.05186335816 | Y45: 0.05186335816 | Z45: 0.05186335816 | AA45: 0.058887843 | AB45: 0.058887843 | AC45: 0.058887843 | AD45: 0.05186335816 | AE45: 0.05186335816 | AF45: 0.05186335816 | AG45: 0.058887843 | AH45: 0.058887843 | AI45: 0.058887843 | AJ45: 0.058887843 | AK45: 0.058887843 | AL45: 0.058887843 | AM45: 0.058887843 | AN45: 0.058887843 | AO45: 0.058887843 | AP45: 0.06270959641 | AQ45: 0.06270959641 | AR45: 0.06270959641 | AS45: 0.06270959641 | AT45: 0.06270959641 | AU45: 0.06270959641 | AV45: 0.04844240851 | AW45: 0.04844240851 | AX45: 0.04844240851 | AY45: =AY44*(1-AY24) -> 0.05779057405 | AZ45: 0.05779057405 | BA45: 0.05779057405 | BB45: 0.05779057405 | BC45: 0.05779057405 | BD45: 0.05779057405 | BE45: 0.05779057405 | BF45: 0.05779057405 | BG45: 0.05779057405 | BH45: 0.05779057405 | BI45: 0.05779057405 | BJ45: 0.05779057405 | BK45: 0.05779057405 | BL45: 0.05779057405 | BM45: 0.05779057405 | BN45: 0.05779057405 | BO45: 0.05779057405 | BP45: 0.05779057405
C47: Construction Real | E47: Factor | I47: 1 | J47: 1 | K47: 1 | L47: 1 | M47: 1 | N47: 1 | O47: 1 | P47: 1 | Q47: 1 | R47: 1 | S47: 1 | T47: 1 | U47: 1 | V47: 1 | W47: 1 | X47: 1 | Y47: 1 | Z47: 1 | AA47: 1 | AB47: 1 | AC47: 1 | AD47: 1 | AE47: 1 | AF47: 1 | AG47: 1 | AH47: 1 | AI47: 1 | AJ47: 1 | AK47: 1 | AL47: 1 | AM47: 1 | AN47: 1 | AO47: 1 | AP47: 1 | AQ47: 1 | AR47: 1 | AS47: 1 | AT47: 1 | AU47: 1 | AV47: 1 | AW47: 1 | AX47: 1 | AY47: 1 | AZ47: 1 | BA47: 1 | BB47: 1 | BC47: 1 | BD47: 1 | BE47: 1 | BF47: 1 | BG47: 1 | BH47: 1 | BI47: 1 | BJ47: 1 | BK47: 1 | BL47: 1 | BM47: 1 | BN47: 1 | BO47: 1 | BP47: 1 | BQ47: 1
C48: Final Real Capital Cost Recovery with Degradation | E48: USD/yr | I48: =I45*I7 -> 48298408.69 | J48: =J45*J7 -> 21734283.91 | K48: =K45*K7 -> 26564124.78 | L48: 34843296.44 | M48: 15679483.4 | N48: 19163813.04 | O48: 20457077.73 | P48: 9205684.979 | Q48: 11251392.75 | R48: 28947287.34 | S48: 13026279.3 | T48: 15921008.04 | U48: 33443600.29 | V48: 15435507.83 | W48: 18008092.47 | X48: 42564582.19 | Y48: 19645191.78 | Z48: 22919390.41 | AA48: 826867.1756 | AB48: 330746.8702 | AC48: 496120.3054 | AD48: 1945068.493 | AE48: 875280.8219 | AF48: 1069787.671 | AG48: 85984.76327 | AH48: 28268.96327 | AI48: 57715.80001 | AJ48: 1012971.184 | AK48: 406366.347 | AL48: 606604.8368 | AM48: 3710301.429 | AN48: 1737363.368 | AO48: 1972938.061 | AP48: 313550.804 | AQ48: 169317.4342 | AR48: 144233.3698 | AS48: 627101.608 | AT48: 169317.4342 | AU48: 457784.1739 | AV48: 96885.68899 | AW48: 48442.84449 | AX48: 48442.84449 | AY48: =AY45*AY7 -> 257552.0867 | AZ48: 105596.3556 | BA48: 151955.7312 | BB48: 114567.2975 | BC48: 43535.57306 | BD48: 71031.72446 | BE48: 8397508.295 | BF48: 3946828.899 | BG48: 4450679.397 | BH48: 3400036.882 | BI48: 1258013.646 | BJ48: 2142023.236 | BK48: 4075937.019 | BL48: 1834171.659 | BM48: 2241765.36 | BN48: 1083583.016 | BO48: 541791.5078 | BP48: 541791.5078
B50: Operating Cost Analysis
C51: Total Operating Costs | E51: USD/yr | I51: ='Electrolyzer Inputs'!F59 -> 51744088.88 | J51: ='Electrolyzer Inputs (2)'!G56 -> 37095666.03 | K51: ='Electrolyzer Inputs (2)'!H56 -> 14648422.85 | L51: ='Electrolyzer Inputs (2)'!I56 -> 10567622.28 | M51: ='Electrolyzer Inputs (2)'!J56 -> 34407574.29 | N51: ='Electrolyzer Inputs (2)'!K56 -> 10567622.28 | O51: ='Electrolyzer Inputs (2)'!L56 -> 6334453.125 | P51: ='Electrolyzer Inputs (2)'!M56 -> 32082738.19 | Q51: ='Electrolyzer Inputs (2)'!N56 -> 6334453.125 | R51: ='Electrolyzer Inputs (2)'!O56 -> 69426873.27 | S51: ='Electrolyzer Inputs (2)'!P56 -> 38292300.42 | T51: ='Electrolyzer Inputs (2)'!Q56 -> 69426873.27 | U51: ='Electrolyzer Inputs (2)'!R56 -> 12896812.5 | V51: ='Electrolyzer Inputs (2)'!S56 -> 33916037.51 | W51: ='Electrolyzer Inputs (2)'!T56 -> 12896812.5 | X51: ='Electrolyzer Inputs (2)'!U56 -> 16414125 | Y51: ='Electrolyzer Inputs (2)'!V56 -> 43165865.92 | Z51: ='Electrolyzer Inputs (2)'!W56 -> 16414125 | AA51: ='Electrolyzer Inputs (2)'!X56 -> 421241.703 | AB51: ='Electrolyzer Inputs (2)'!Y56 -> 341907.8489 | AC51: ='Electrolyzer Inputs (2)'!Z56 -> 421241.703 | AD51: ='Electrolyzer Inputs (2)'!AA56 -> 2000198.02 | AE51: ='Electrolyzer Inputs (2)'!AB56 -> 1709539.245 | AF51: ='Electrolyzer Inputs (2)'!AC56 -> 2000198.02 | AG51: ='Electrolyzer Inputs (2)'!AD56 -> 21902.16832 | AH51: ='Electrolyzer Inputs (2)'!AE56 -> 34190.78489 | AI51: ='Electrolyzer Inputs (2)'!AF56 -> 21902.16832 | AJ51: ='Electrolyzer Inputs (2)'!AG56 -> 258025.5446 | AK51: ='Electrolyzer Inputs (2)'!AH56 -> 683815.6978 | AL51: ='Electrolyzer Inputs (2)'!AI56 -> 258025.5446 | AM51: ='Electrolyzer Inputs (2)'!AJ56 -> 945093.5644 | AN51: ='Electrolyzer Inputs (2)'!AK56 -> 3419078.489 | AO51: ='Electrolyzer Inputs (2)'!AL56 -> 945093.5644 | AP51: ='Electrolyzer Inputs (2)'!AM56 -> 75000.67501 | AQ51: ='Electrolyzer Inputs (2)'!AN56 -> 341877.0769 | AR51: ='Electrolyzer Inputs (2)'!AO56 -> 75000.67501 | AS51: ='Electrolyzer Inputs (2)'!AP56 -> 150001.35 | AT51: ='Electrolyzer Inputs (2)'!AQ56 -> 341877.0769 | AU51: ='Electrolyzer Inputs (2)'!AR56 -> 150001.35 | AV51: ='Electrolyzer Inputs (2)'!AS56 -> 30000.27 | AW51: ='Electrolyzer Inputs (2)'!AT56 -> 341877.0769 | AX51: ='Electrolyzer Inputs (2)'!AU56 -> 30000.27 | AY51: ='Electrolyzer Inputs (2)'!AV56 -> 133699.3572 | AZ51: ='Electrolyzer Inputs (2)'!AW56 -> 121555.3634 | BA51: ='Electrolyzer Inputs (2)'!AX56 -> 133699.3572 | BB51: ='Electrolyzer Inputs (2)'!AY56 -> 39649.12943 | BC51: ='Electrolyzer Inputs (2)'!AZ56 -> 111974.8205 | BD51: ='Electrolyzer Inputs (2)'!BA56 -> 39649.12943 | BE51: ='Electrolyzer Inputs (2)'!BB56 -> 2906186.15 | BF51: ='Electrolyzer Inputs (2)'!BC56 -> 4028992.23 | BG51: ='Electrolyzer Inputs (2)'!BD56 -> 2906186.15 | BH51: ='Electrolyzer Inputs (2)'!BE56 -> 1765012.861 | BI51: ='Electrolyzer Inputs (2)'!BF56 -> 3724765.475 | BJ51: ='Electrolyzer Inputs (2)'!BG56 -> 1765012.861 | BK51: ='Electrolyzer Inputs (2)'!BH56 -> 1410588.867 | BL51: ='Electrolyzer Inputs (2)'!BI56 -> 3709566.603 | BM51: ='Electrolyzer Inputs (2)'!BJ56 -> 1410588.867 | BN51: ='Electrolyzer Inputs (2)'!BK56 -> 562505.0626 | BO51: ='Electrolyzer Inputs (2)'!BL56 -> 3205097.596 | BP51: ='Electrolyzer Inputs (2)'!BM56 -> 562505.0626 | BQ51: ='Electrolyzer Inputs (2)'!BN56 -> 0
C53: Degradation for Input Cost (eg electricity input) | E53: % | I53: ='Electrolyzer Inputs'!$F$21 -> 0.005 | J53: ='Electrolyzer Inputs'!$F$21 -> 0.005 | K53: 0 | L53: ='Electrolyzer Inputs'!$F$21 -> 0.005 | M53: ='Electrolyzer Inputs'!$F$21 -> 0.005 | N53: 0 | O53: ='Electrolyzer Inputs'!$F$21 -> 0.005 | P53: ='Electrolyzer Inputs'!$F$21 -> 0.005 | Q53: 0 | R53: ='Electrolyzer Inputs'!$F$21 -> 0.005 | S53: ='Electrolyzer Inputs'!$F$21 -> 0.005 | T53: 0 | U53: ='Electrolyzer Inputs'!$F$21 -> 0.005 | V53: ='Electrolyzer Inputs'!$F$21 -> 0.005 | W53: 0 | X53: 0 | Y53: 0 | Z53: ='Electrolyzer Inputs'!$F$21 -> 0.005 | AA53: ='Electrolyzer Inputs'!$F$21 -> 0.005 | AB53: 0 | AC53: 0 | AD53: ='Electrolyzer Inputs'!$F$21 -> 0.005 | AE53: ='Electrolyzer Inputs'!$F$21 -> 0.005 | AF53: 0 | AG53: ='Electrolyzer Inputs'!$F$21 -> 0.005 | AH53: ='Electrolyzer Inputs'!$F$21 -> 0.005 | AI53: 0 | AJ53: ='Electrolyzer Inputs'!$F$21 -> 0.005 | AK53: ='Electrolyzer Inputs'!$F$21 -> 0.005 | AL53: 0 | AM53: ='Electrolyzer Inputs'!$F$21 -> 0.005 | AN53: ='Electrolyzer Inputs'!$F$21 -> 0.005 | AO53: 0 | AP53: ='Electrolyzer Inputs'!$F$21 -> 0.005 | AQ53: ='Electrolyzer Inputs'!$F$21 -> 0.005 | AR53: 0 | AS53: 0 | AT53: ='Electrolyzer Inputs'!$F$21 -> 0.005 | AU53: ='Electrolyzer Inputs'!$F$21 -> 0.005 | AV53: ='Electrolyzer Inputs'!$F$21 -> 0.005 | AW53: ='Electrolyzer Inputs'!$F$21 -> 0.005 | AX53: 0 | AY53: ='Electrolyzer Inputs'!$F$21 -> 0.005 | AZ53: ='Electrolyzer Inputs'!$F$21 -> 0.005 | BA53: 0 | BB53: ='Electrolyzer Inputs'!$F$21 -> 0.005 | BC53: ='Electrolyzer Inputs'!$F$21 -> 0.005 | BD53: 0 | BE53: 0.005 | BF53: 0.005 | BG53: 0 | BH53: 0.005 | BI53: 0.005 | BJ53: 0 | BK53: 0.005 | BL53: 0.005 | BM53: 0 | BN53: 0.005 | BO53: 0.005 | BP53: 0 | BQ53: 0
C55: Nominal IRR | E55: % p.a. | I55: =I20 -> 0.0652 | J55: =J20 -> 0.0652 | K55: =K20 -> 0.0652 | L55: 0.0652 | M55: 0.0652 | N55: 0.0652 | O55: 0.0652 | P55: 0.0652 | Q55: 0.0652 | R55: 0.0652 | S55: 0.0652 | T55: 0.0652 | U55: 0.0652 | V55: 0.0652 | W55: 0.0652 | X55: 0.0652 | Y55: 0.0652 | Z55: 0.0652 | AA55: 0.0652 | AB55: 0.0652 | AC55: 0.0652 | AD55: 0.0652 | AE55: 0.0652 | AF55: 0.0652 | AG55: 0.0652 | AH55: 0.0652 | AI55: 0.0652 | AJ55: 0.0652 | AK55: 0.0652 | AL55: 0.0652 | AM55: 0.0652 | AN55: 0.0652 | AO55: 0.0652 | AP55: 0.0652 | AQ55: 0.0652 | AR55: 0.0652 | AS55: 0.0652 | AT55: 0.0652 | AU55: 0.0652 | AV55: 0.0652 | AW55: 0.0652 | AX55: 0.0652 | AY55: =AY20 -> 0.0652 | AZ55: 0.0652 | BA55: 0.0652 | BB55: 0.0652 | BC55: 0.0652 | BD55: 0.0652 | BE55: 0.0652 | BF55: 0.0652 | BG55: 0.0652 | BH55: 0.0652 | BI55: 0.0652 | BJ55: 0.0652 | BK55: 0.0652 | BL55: 0.0652 | BM55: 0.0652 | BN55: 0.0652 | BO55: 0.0652 | BP55: 0.0652 | BQ55: 0.0652
C56: Real IRR | E56: % p.a. | I56: =I39 -> 0.03417475728 | J56: =J39 -> 0.03417475728 | K56: =K39 -> 0.03417475728 | L56: 0.03417475728 | M56: 0.03417475728 | N56: 0.03417475728 | O56: 0.03417475728 | P56: 0.03417475728 | Q56: 0.03417475728 | R56: 0.03417475728 | S56: 0.03417475728 | T56: 0.03417475728 | U56: 0.03417475728 | V56: 0.03417475728 | W56: 0.03417475728 | X56: 0.03417475728 | Y56: 0.03417475728 | Z56: 0.03417475728 | AA56: 0.03417475728 | AB56: 0.03417475728 | AC56: 0.03417475728 | AD56: 0.03417475728 | AE56: 0.03417475728 | AF56: 0.03417475728 | AG56: 0.03417475728 | AH56: 0.03417475728 | AI56: 0.03417475728 | AJ56: 0.03417475728 | AK56: 0.03417475728 | AL56: 0.03417475728 | AM56: 0.03417475728 | AN56: 0.03417475728 | AO56: 0.03417475728 | AP56: 0.03417475728 | AQ56: 0.03417475728 | AR56: 0.03417475728 | AS56: 0.03417475728 | AT56: 0.03417475728 | AU56: 0.03417475728 | AV56: 0.03417475728 | AW56: 0.03417475728 | AX56: 0.03417475728 | AY56: =AY39 -> 0.03417475728 | AZ56: 0.03417475728 | BA56: 0.03417475728 | BB56: 0.03417475728 | BC56: 0.03417475728 | BD56: 0.03417475728 | BE56: 0.03417475728 | BF56: 0.03417475728 | BG56: 0.03417475728 | BH56: 0.03417475728 | BI56: 0.03417475728 | BJ56: 0.03417475728 | BK56: 0.03417475728 | BL56: 0.03417475728 | BM56: 0.03417475728 | BN56: 0.03417475728 | BO56: 0.03417475728 | BP56: 0.03417475728 | BQ56: 0.03417475728
C57: Nominal Adjusted for Degradation | E57: % p.a. | I57: =(1+I55)/(1-I53)-1 -> 0.07055276382 | J57: =(1+J55)/(1-J53)-1 -> 0.07055276382 | K57: =(1+K55)/(1-K53)-1 -> 0.0652 | L57: 0.07055276382 | M57: 0.07055276382 | N57: 0.0652 | O57: 0.07055276382 | P57: 0.07055276382 | Q57: 0.0652 | R57: 0.07055276382 | S57: 0.07055276382 | T57: 0.0652 | U57: 0.07055276382 | V57: 0.07055276382 | W57: 0.0652 | X57: 0.0652 | Y57: 0.0652 | Z57: 0.07055276382 | AA57: 0.07055276382 | AB57: 0.0652 | AC57: 0.0652 | AD57: 0.07055276382 | AE57: 0.07055276382 | AF57: 0.0652 | AG57: 0.07055276382 | AH57: 0.07055276382 | AI57: 0.0652 | AJ57: 0.07055276382 | AK57: 0.07055276382 | AL57: 0.0652 | AM57: 0.07055276382 | AN57: 0.07055276382 | AO57: 0.0652 | AP57: 0.07055276382 | AQ57: 0.07055276382 | AR57: 0.0652 | AS57: 0.0652 | AT57: 0.07055276382 | AU57: 0.07055276382 | AV57: 0.07055276382 | AW57: 0.07055276382 | AX57: 0.0652 | AY57: =(1+AY55)/(1-AY53)-1 -> 0.07055276382 | AZ57: 0.07055276382 | BA57: 0.0652 | BB57: 0.07055276382 | BC57: 0.07055276382 | BD57: 0.0652 | BE57: 0.07055276382 | BF57: 0.07055276382 | BG57: 0.0652 | BH57: 0.07055276382 | BI57: 0.07055276382 | BJ57: 0.0652 | BK57: 0.07055276382 | BL57: 0.07055276382 | BM57: 0.0652 | BN57: 0.07055276382 | BO57: 0.07055276382 | BP57: 0.0652 | BQ57: 0.0652
C59: Inflation Factor for Nominal Cost | E59: Factor | I59: =PV(I56,I10,-1)/PV(I55,I10,-1) -> 1.552029798 | J59: =PV(J56,J10,-1)/PV(J55,J10,-1) -> 1.552029798 | K59: =PV(K56,K10,-1)/PV(K55,K10,-1) -> 1.552029798 | L59: 1.552029798 | M59: 1.552029798 | N59: 1.552029798 | O59: 1.570430902 | P59: 1.570430902 | Q59: 1.570430902 | R59: 1.512997747 | S59: 1.512997747 | T59: 1.512997747 | U59: 1.512997747 | V59: 1.512997747 | W59: 1.512997747 | X59: 1.512997747 | Y59: 1.512997747 | Z59: 1.512997747 | AA59: 1.426043505 | AB59: 1.426043505 | AC59: 1.426043505 | AD59: 1.512997747 | AE59: 1.512997747 | AF59: 1.512997747 | AG59: 1.426043505 | AH59: 1.426043505 | AI59: 1.426043505 | AJ59: 1.426043505 | AK59: 1.426043505 | AL59: 1.426043505 | AM59: 1.426043505 | AN59: 1.426043505 | AO59: 1.426043505 | AP59: 1.390463287 | AQ59: 1.390463287 | AR59: 1.390463287 | AS59: 1.390463287 | AT59: 1.390463287 | AU59: 1.390463287 | AV59: 1.570430902 | AW59: 1.570430902 | AX59: 1.570430902 | AY59: =PV(AY56,AY10,-1)/PV(AY55,AY10,-1) -> 1.43755087 | AZ59: 1.43755087 | BA59: 1.43755087 | BB59: 1.43755087 | BC59: 1.43755087 | BD59: 1.43755087 | BE59: 1.43755087 | BF59: 1.43755087 | BG59: 1.43755087 | BH59: 1.43755087 | BI59: 1.43755087 | BJ59: 1.43755087 | BK59: 1.43755087 | BL59: 1.43755087 | BM59: 1.43755087 | BN59: 1.43755087 | BO59: 1.43755087 | BP59: 1.43755087
C60: Degradation Factor for Nominal Cost | E60: Factor | I60: =PV(I56,I10,-1)/PV(I57,I10,-1) -> 1.655625884 | J60: =PV(J56,J10,-1)/PV(J57,J10,-1) -> 1.655625884 | K60: =PV(K56,K10,-1)/PV(K57,K10,-1) -> 1.552029798 | L60: 1.655625884 | M60: 1.655625884 | N60: 1.552029798 | O60: 1.677380998 | P60: 1.677380998 | Q60: 1.570430902 | R60: 1.609369148 | S60: 1.609369148 | T60: 1.512997747 | U60: 1.609369148 | V60: 1.609369148 | W60: 1.512997747 | X60: 1.512997747 | Y60: 1.512997747 | Z60: 1.609369148 | AA60: 1.505917299 | AB60: 1.426043505 | AC60: 1.426043505 | AD60: 1.609369148 | AE60: 1.609369148 | AF60: 1.512997747 | AG60: 1.505917299 | AH60: 1.505917299 | AI60: 1.426043505 | AJ60: 1.505917299 | AK60: 1.505917299 | AL60: 1.426043505 | AM60: 1.505917299 | AN60: 1.505917299 | AO60: 1.426043505 | AP60: 1.463483128 | AQ60: 1.463483128 | AR60: 1.390463287 | AS60: 1.390463287 | AT60: 1.463483128 | AU60: 1.463483128 | AV60: 1.677380998 | AW60: 1.677380998 | AX60: 1.570430902 | AY60: =PV(AY56,AY10,-1)/PV(AY57,AY10,-1) -> 1.519631704 | AZ60: 1.519631704 | BA60: 1.43755087 | BB60: 1.519631704 | BC60: 1.519631704 | BD60: 1.43755087 | BE60: 1.519631704 | BF60: 1.519631704 | BG60: 1.43755087 | BH60: 1.519631704 | BI60: 1.519631704 | BJ60: 1.43755087 | BK60: 1.519631704 | BL60: 1.519631704 | BM60: 1.43755087 | BN60: 1.519631704 | BO60: 1.519631704 | BP60: 1.43755087
C61: Adjusted Nominal Cost for LCOE Calc | E61: USD/yr | I61: =I60*I51 -> 85668852.91 | J61: =J60*J51 -> 61416544.87 | K61: =K60*K51 -> 22734788.75 | L61: 17496028.99 | M61: 56966070.61 | N61: 16401264.67 | O61: 10625291.31 | P61: 53814975.41 | Q61: 9947820.938 | R61: 111733467.9 | S61: 61626446.9 | T61: 105042702.8 | U61: 20755732.15 | V61: 54583424.4 | W61: 19512848.26 | X61: 24834534.14 | Y61: 65309857.89 | Z61: 26416386.37 | AA61: 634355.1677 | AB61: 487575.4673 | AC61: 600708.9947 | AD61: 3219056.983 | AE61: 2751279.717 | AF61: 3026295.097 | AG61: 32982.85416 | AH61: 51488.49444 | AI61: 31233.44488 | AJ61: 388565.1312 | AK61: 1029769.889 | AL61: 367955.652 | AM61: 1423232.748 | AN61: 5148849.444 | AO61: 1347744.539 | AP61: 109762.2224 | AQ61: 500331.3337 | AR61: 104285.6851 | AS61: 208571.3702 | AT61: 500331.3337 | AU61: 219524.4449 | AV61: 50321.88285 | AW61: 573458.1125 | AX61: 47113.35109 | AY61: =AY60*AY51 -> 203173.782 | AZ61: =AZ60*AZ51 -> 184719.384 | BA61: =BA60*BA51 -> 192199.6272 | BB61: =BB60*BB51 -> 60252.07412 | BC61: =BC60*BC51 -> 170160.4873 | BD61: =BD60*BD51 -> 56997.64051 | BE61: =BE60*BE51 -> 4416332.611 | BF61: =BF60*BF51 -> 6122584.328 | BG61: =BG60*BG51 -> 4177790.428 | BH61: =BH60*BH51 -> 2682169.502 | BI61: =BI60*BI51 -> 5660271.706 | BJ61: =BJ60*BJ51 -> 2537295.774 | BK61: =BK60*BK51 -> 2143575.564 | BL61: =BL60*BL51 -> 5637175.018 | BM61: =BM60*BM51 -> 2027793.253 | BN61: =BN60*BN51 -> 854800.5267 | BO61: =BO60*BO51 -> 4870567.921 | BP61: =BP60*BP51 -> 808629.642 | BQ61: =BQ60*BQ51 -> 
C63: Real IRR without Degradation | E63: % p.a. | I63: =I39 -> 0.03417475728 | J63: =(1+J39)/(1-J53)-1 -> 0.03937161536 | K63: =(1+K39)/(1-K53)-1 -> 0.03417475728 | L63: 0.03937161536 | M63: 0.03937161536 | N63: 0.03417475728 | O63: 0.03937161536 | P63: 0.03937161536 | Q63: 0.03417475728 | R63: 0.03937161536 | S63: 0.03937161536 | T63: 0.03417475728 | U63: 0.03937161536 | V63: 0.03937161536 | W63: 0.03417475728 | X63: 0.03417475728 | Y63: 0.03417475728 | Z63: 0.03937161536 | AA63: 0.03937161536 | AB63: 0.03417475728 | AC63: 0.03417475728 | AD63: 0.03937161536 | AE63: 0.03937161536 | AF63: 0.03417475728 | AG63: 0.03937161536 | AH63: 0.03937161536 | AI63: 0.03417475728 | AJ63: 0.03937161536 | AK63: 0.03937161536 | AL63: 0.03417475728 | AM63: 0.03937161536 | AN63: 0.03937161536 | AO63: 0.03417475728 | AP63: 0.03937161536 | AQ63: 0.03937161536 | AR63: 0.03417475728 | AS63: 0.03417475728 | AT63: 0.03937161536 | AU63: 0.03937161536 | AV63: 0.03937161536 | AW63: 0.03937161536 | AX63: 0.03417475728 | AY63: =(1+AY39)/(1-AY53)-1 -> 0.03937161536 | AZ63: 0.03937161536 | BA63: 0.03417475728 | BB63: 0.03937161536 | BC63: 0.03937161536 | BD63: 0.03417475728 | BE63: 0.03937161536 | BF63: 0.03937161536 | BG63: 0.03417475728 | BH63: 0.03937161536 | BI63: 0.03937161536 | BJ63: 0.03417475728 | BK63: 0.03937161536 | BL63: 0.03937161536 | BM63: 0.03417475728 | BN63: 0.03937161536 | BO63: 0.03937161536 | BP63: 0.03417475728 | BQ63: 0.03417475728
C64: Real IRR with Degradation | E64: % p.a. | I64: =(1+I63)/(1-I53)-1 -> 0.03937161536 | J64: =(1+J63)/(1-J53)-1 -> 0.0445945883 | K64: =(1+K63)/(1-K53)-1 -> 0.03417475728 | L64: 0.0445945883 | M64: 0.0445945883 | N64: 0.03417475728 | O64: 0.0445945883 | P64: 0.0445945883 | Q64: 0.03417475728 | R64: 0.0445945883 | S64: 0.0445945883 | T64: 0.03417475728 | U64: 0.0445945883 | V64: 0.0445945883 | W64: 0.03417475728 | X64: 0.03417475728 | Y64: 0.03417475728 | Z64: 0.0445945883 | AA64: 0.0445945883 | AB64: 0.03417475728 | AC64: 0.03417475728 | AD64: 0.0445945883 | AE64: 0.0445945883 | AF64: 0.03417475728 | AG64: 0.0445945883 | AH64: 0.0445945883 | AI64: 0.03417475728 | AJ64: 0.0445945883 | AK64: 0.0445945883 | AL64: 0.03417475728 | AM64: 0.0445945883 | AN64: 0.0445945883 | AO64: 0.03417475728 | AP64: 0.0445945883 | AQ64: 0.0445945883 | AR64: 0.03417475728 | AS64: 0.03417475728 | AT64: 0.0445945883 | AU64: 0.0445945883 | AV64: 0.0445945883 | AW64: 0.0445945883 | AX64: 0.03417475728 | AY64: =(1+AY63)/(1-AY53)-1 -> 0.0445945883 | AZ64: =(1+AZ63)/(1-AZ53)-1 -> 0.0445945883 | BA64: =(1+BA63)/(1-BA53)-1 -> 0.03417475728 | BB64: =(1+BB63)/(1-BB53)-1 -> 0.0445945883 | BC64: =(1+BC63)/(1-BC53)-1 -> 0.0445945883 | BD64: =(1+BD63)/(1-BD53)-1 -> 0.03417475728 | BE64: =(1+BE63)/(1-BE53)-1 -> 0.0445945883 | BF64: =(1+BF63)/(1-BF53)-1 -> 0.0445945883 | BG64: =(1+BG63)/(1-BG53)-1 -> 0.03417475728 | BH64: =(1+BH63)/(1-BH53)-1 -> 0.0445945883 | BI64: =(1+BI63)/(1-BI53)-1 -> 0.0445945883 | BJ64: =(1+BJ63)/(1-BJ53)-1 -> 0.03417475728 | BK64: =(1+BK63)/(1-BK53)-1 -> 0.0445945883 | BL64: =(1+BL63)/(1-BL53)-1 -> 0.0445945883 | BM64: =(1+BM63)/(1-BM53)-1 -> 0.03417475728 | BN64: =(1+BN63)/(1-BN53)-1 -> 0.0445945883 | BO64: =(1+BO63)/(1-BO53)-1 -> 0.0445945883 | BP64: =(1+BP63)/(1-BP53)-1 -> 0.03417475728 | BQ64: =(1+BQ63)/(1-BQ53)-1 -> 0.03417475728
C65: Degradation Factor for Real Cost | E65: Factor | I65: =PV(I63,I10,-1)/PV(I64,I10,-1) -> 1.085617099 | J65: =PV(J63,J10,-1)/PV(J64,J10,-1) -> 1.082093151 | K65: =PV(K63,K10,-1)/PV(K64,K10,-1) -> 1 | L65: 1.082093151 | M65: 1.082093151 | N65: 1 | O65: 1.08462361 | P65: 1.08462361 | Q65: 1 | R65: 1.076715139 | S65: 1.076715139 | T65: 1 | U65: 1.076715139 | V65: 1.076715139 | W65: 1 | X65: 1 | Y65: 1 | Z65: 1.076715139 | AA65: 1.064634638 | AB65: 1 | AC65: 1 | AD65: 1.076715139 | AE65: 1.076715139 | AF65: 1 | AG65: 1.064634638 | AH65: 1.064634638 | AI65: 1 | AJ65: 1.064634638 | AK65: 1.064634638 | AL65: 1 | AM65: 1.064634638 | AN65: 1.064634638 | AO65: 1 | AP65: 1.059631574 | AQ65: 1.059631574 | AR65: 1 | AS65: 1 | AT65: 1.059631574 | AU65: 1.059631574 | AV65: 1.08462361 | AW65: 1.08462361 | AX65: 1 | AY65: =PV(AY63,AY10,-1)/PV(AY64,AY10,-1) -> 1.066244138 | AZ65: =PV(AZ63,AZ10,-1)/PV(AZ64,AZ10,-1) -> 1.066244138 | BA65: =PV(BA63,BA10,-1)/PV(BA64,BA10,-1) -> 1 | BB65: =PV(BB63,BB10,-1)/PV(BB64,BB10,-1) -> 1.066244138 | BC65: =PV(BC63,BC10,-1)/PV(BC64,BC10,-1) -> 1.066244138 | BD65: =PV(BD63,BD10,-1)/PV(BD64,BD10,-1) -> 1 | BE65: =PV(BE63,BE10,-1)/PV(BE64,BE10,-1) -> 1.066244138 | BF65: =PV(BF63,BF10,-1)/PV(BF64,BF10,-1) -> 1.066244138 | BG65: =PV(BG63,BG10,-1)/PV(BG64,BG10,-1) -> 1 | BH65: =PV(BH63,BH10,-1)/PV(BH64,BH10,-1) -> 1.066244138 | BI65: =PV(BI63,BI10,-1)/PV(BI64,BI10,-1) -> 1.066244138 | BJ65: =PV(BJ63,BJ10,-1)/PV(BJ64,BJ10,-1) -> 1 | BK65: =PV(BK63,BK10,-1)/PV(BK64,BK10,-1) -> 1.066244138 | BL65: =PV(BL63,BL10,-1)/PV(BL64,BL10,-1) -> 1.066244138 | BM65: =PV(BM63,BM10,-1)/PV(BM64,BM10,-1) -> 1 | BN65: =PV(BN63,BN10,-1)/PV(BN64,BN10,-1) -> 1.066244138 | BO65: =PV(BO63,BO10,-1)/PV(BO64,BO10,-1) -> 1.066244138 | BP65: =PV(BP63,BP10,-1)/PV(BP64,BP10,-1) -> 1 | BQ65: =PV(BQ63,BQ10,-1)/PV(BQ64,BQ10,-1) -> 
C66: Adjusted Real Cost of LOCE | E66: USD/yr | I66: =I51*I65 -> 56174267.67 | J66: =J51*J65 -> 40140966.16 | K66: =K51*K65 -> 14648422.85 | L66: 11435151.7 | M66: 37232200.5 | N66: 10567622.28 | O66: 6870497.416 | P66: 34797695.31 | Q66: 6334453.125 | R66: 74752965.53 | S66: 41229899.58 | T66: 69426873.27 | U66: 13886193.27 | V66: 36517911.06 | W66: 12896812.5 | X66: 16414125 | Y66: 43165865.92 | Z66: 17673336.89 | AA66: 448468.5081 | AB66: 341907.8489 | AC66: 421241.703 | AD66: 2153643.49 | AE66: 1840686.786 | AF66: 2000198.02 | AG66: 23317.80705 | AH66: 36400.69391 | AI66: 21902.16832 | AJ66: 274702.9323 | AK66: 728013.8782 | AL66: 258025.5446 | AM66: 1006179.345 | AN66: 3640069.391 | AO66: 945093.5644 | AP66: 79473.08331 | AQ66: 362263.7451 | AR66: 75000.67501 | AS66: 150001.35 | AT66: 362263.7451 | AU66: 158946.1666 | AV66: 32539.00115 | AW66: 370807.9493 | AX66: 30000.27 | AY66: =AY51*AY65 -> 142556.1558 | AZ66: =AZ51*AZ65 -> 129607.6936 | BA66: =BA51*BA65 -> 133699.3572 | BB66: =BB51*BB65 -> 42275.65183 | BC66: =BC51*BC65 -> 119392.496 | BD66: =BD51*BD65 -> 39649.12943 | BE66: =BE51*BE65 -> 3098703.946 | BF66: =BF51*BF65 -> 4295889.347 | BG66: =BG51*BG65 -> 2906186.15 | BH66: =BH51*BH65 -> 1881934.617 | BI66: =BI51*BI65 -> 3971509.353 | BJ66: =BJ51*BJ65 -> 1765012.861 | BK66: =BK51*BK65 -> 1504032.111 | BL66: =BL51*BL65 -> 3955303.645 | BM66: =BM51*BM65 -> 1410588.867 | BN66: =BN51*BN65 -> 599767.7255 | BO66: =BO51*BO65 -> 3417416.523 | BP66: =BP51*BP65 -> 562505.0626 | BQ66: =BQ51*BQ65 -> 
B68: LCOE Calculation
C69: Nominal Capital Recovery | E69: USD/yr | I69: =I37 -> 79954218.71 | J69: =J37 -> 35979398.42 | K69: =K37 -> 43974820.29 | L69: 57680338.14 | M69: 25956152.16 | N69: 31724185.97 | O69: 34266593.66 | P69: 15419967.15 | Q69: 18846626.51 | R69: 46714817.89 | S69: 21021668.05 | T69: 25693149.84 | U69: 53970918.89 | V69: 24909654.87 | W69: 29061264.02 | X69: 68690260.41 | Y69: 31703197.11 | Z69: 36987063.3 | AA69: 1257699.921 | AB69: 503079.9685 | AC69: 754619.9527 | AD69: 3138930.407 | AE69: 1412518.683 | AF69: 1726411.724 | AG69: 130786.459 | AH69: 42998.2879 | AI69: 87788.17114 | AJ69: 1540771.983 | AK69: 618100.3886 | AL69: 922671.5946 | AM69: 5643525.287 | AN69: 2642603.111 | AO69: 3000922.177 | AP69: 465024.6259 | AQ69: 251113.298 | AR69: 213911.3279 | AS69: 930049.2518 | AT69: 251113.298 | AU69: 678935.9538 | AV69: 162288.2105 | AW69: 81144.10523 | AX69: 81144.10523 | AY69: =AY37 -> 394908.7909 | AZ69: 161912.6043 | BA69: 232996.1866 | BB69: 175667.895 | BC69: 66753.80012 | BD69: 108914.0949 | BE69: 12876035.64 | BF69: 6051736.75 | BG69: 6824298.888 | BH69: 5213331.684 | BI69: 1928932.723 | BJ69: 3284398.961 | BK69: 6249700.324 | BL69: 2812365.146 | BM69: 3437335.178 | BN69: 1661475.409 | BO69: 830737.7043 | BP69: 830737.7043
C70: Nominal O&M Cost | E70: USD/yr | I70: =I61 -> 85668852.91 | J70: =J61 -> 61416544.87 | K70: =K61 -> 22734788.75 | L70: 17496028.99 | M70: 56966070.61 | N70: 16401264.67 | O70: 10625291.31 | P70: 53814975.41 | Q70: 9947820.938 | R70: 111733467.9 | S70: 61626446.9 | T70: 105042702.8 | U70: 20755732.15 | V70: 54583424.4 | W70: 19512848.26 | X70: 24834534.14 | Y70: 65309857.89 | Z70: 26416386.37 | AA70: 634355.1677 | AB70: 487575.4673 | AC70: 600708.9947 | AD70: 3219056.983 | AE70: 2751279.717 | AF70: 3026295.097 | AG70: 32982.85416 | AH70: 51488.49444 | AI70: 31233.44488 | AJ70: 388565.1312 | AK70: 1029769.889 | AL70: 367955.652 | AM70: 1423232.748 | AN70: 5148849.444 | AO70: 1347744.539 | AP70: 109762.2224 | AQ70: 500331.3337 | AR70: 104285.6851 | AS70: 208571.3702 | AT70: 500331.3337 | AU70: 219524.4449 | AV70: 50321.88285 | AW70: 573458.1125 | AX70: 47113.35109 | AY70: =AY61 -> 203173.782 | AZ70: 184719.384 | BA70: 192199.6272 | BB70: 60252.07412 | BC70: 170160.4873 | BD70: 56997.64051 | BE70: 4416332.611 | BF70: 6122584.328 | BG70: 4177790.428 | BH70: 2682169.502 | BI70: 5660271.706 | BJ70: 2537295.774 | BK70: 2143575.564 | BL70: 5637175.018 | BM70: 2027793.253 | BN70: 854800.5267 | BO70: 4870567.921 | BP70: 808629.642
C71: Total Nominal Cost | E71: USD/yr | I71: =SUM(I69:I70) -> 165623071.6 | J71: =SUM(J69:J70) -> 97395943.29 | K71: =SUM(K69:K70) -> 66709609.04 | L71: 75176367.12 | M71: 82922222.77 | N71: 48125450.65 | O71: 44891884.97 | P71: 69234942.56 | Q71: 28794447.45 | R71: 158448285.8 | S71: 82648114.95 | T71: 130735852.7 | U71: 74726651.04 | V71: 79493079.27 | W71: 48574112.27 | X71: 93524794.55 | Y71: 97013055 | Z71: 63403449.66 | AA71: 1892055.089 | AB71: 990655.4358 | AC71: 1355328.947 | AD71: 6357987.39 | AE71: 4163798.401 | AF71: 4752706.821 | AG71: 163769.3132 | AH71: 94486.78235 | AI71: 119021.616 | AJ71: 1929337.114 | AK71: 1647870.277 | AL71: 1290627.247 | AM71: 7066758.035 | AN71: 7791452.555 | AO71: 4348666.716 | AP71: 574786.8483 | AQ71: 751444.6317 | AR71: 318197.013 | AS71: 1138620.622 | AT71: 751444.6317 | AU71: 898460.3987 | AV71: 212610.0933 | AW71: 654602.2178 | AX71: 128257.4563 | AY71: =SUM(AY69:AY70) -> 598082.5729 | AZ71: =SUM(AZ69:AZ70) -> 346631.9882 | BA71: =SUM(BA69:BA70) -> 425195.8139 | BB71: =SUM(BB69:BB70) -> 235919.9692 | BC71: =SUM(BC69:BC70) -> 236914.2874 | BD71: =SUM(BD69:BD70) -> 165911.7354 | BE71: =SUM(BE69:BE70) -> 17292368.25 | BF71: =SUM(BF69:BF70) -> 12174321.08 | BG71: =SUM(BG69:BG70) -> 11002089.32 | BH71: =SUM(BH69:BH70) -> 7895501.186 | BI71: =SUM(BI69:BI70) -> 7589204.429 | BJ71: =SUM(BJ69:BJ70) -> 5821694.736 | BK71: =SUM(BK69:BK70) -> 8393275.888 | BL71: =SUM(BL69:BL70) -> 8449540.164 | BM71: =SUM(BM69:BM70) -> 5465128.431 | BN71: =SUM(BN69:BN70) -> 2516275.935 | BO71: =SUM(BO69:BO70) -> 5701305.625 | BP71: =SUM(BP69:BP70) -> 1639367.346 | BQ71: =SUM(BQ69:BQ70) -> 
C73: Total Production | E73: Units per Year | I73: =I6 -> 47482500 | J73: =J6 -> 47482500 | K73: =K6 -> 47482500 | L73: 47482500 | M73: 47482500 | N73: 47482500 | O73: 47482500 | P73: 47482500 | Q73: 47482500 | R73: 47482500 | S73: 47482500 | T73: 47482500 | U73: 47482500 | V73: 47482500 | W73: 47482500 | X73: 47482500 | Y73: 47482500 | Z73: 47482500 | AA73: 392958.6207 | AB73: 392958.6207 | AC73: 392958.6207 | AD73: 2279160 | AE73: 2279160 | AF73: 2279160 | AG73: 45815.69757 | AH73: 45815.69757 | AI73: 45815.69757 | AJ73: 916313.9514 | AK73: 916313.9514 | AL73: 916313.9514 | AM73: 4581569.757 | AN73: 4581569.757 | AO73: 4581569.757 | AP73: 455832 | AQ73: 455832 | AR73: 455832 | AS73: 292200 | AT73: 292200 | AU73: 292200 | AV73: 506480 | AW73: 506480 | AX73: 506480 | AY73: =AY6 -> 142447.5 | AZ73: 142447.5 | BA73: 142447.5 | BB73: 142447.5 | BC73: 142447.5 | BD73: 142447.5 | BE73: 4748250 | BF73: 4748250 | BG73: 4748250 | BH73: 4748250 | BI73: 4748250 | BJ73: 4748250 | BK73: 4748250 | BL73: 4748250 | BM73: 4748250 | BN73: 4748250 | BO73: 4748250 | BP73: 4748250 | BQ73: 0
C74: LCOE - Nominal | E74: USD/Unit Year | I74: =IFERROR(I71/I73,FALSE) -> 3.488086592 | J74: =IFERROR(J71/J73,FALSE) -> 2.051196615 | K74: =IFERROR(K71/K73,FALSE) -> 1.404930428 | L74: 1.583243661 | M74: 1.746374407 | N74: 1.013540792 | O74: 0.9454406353 | P74: 1.458114938 | Q74: 0.6064223124 | R74: 3.336982799 | S74: 1.740601589 | T74: 2.753348132 | U74: 1.573772464 | V74: 1.674155305 | W74: 1.022989781 | X74: 1.969668711 | Y74: 2.043132838 | Z74: 1.33530142 | AA74: 4.814896504 | AB74: 2.521017185 | AC74: 3.449037318 | AD74: 2.789618715 | AE74: 1.826900437 | AF74: 2.0852888 | AG74: 3.574524058 | AH74: 2.062323338 | AI74: 2.597834854 | AJ74: 2.105541568 | AK74: 1.798368643 | AL74: 1.408498959 | AM74: 1.542431614 | AN74: 1.700607645 | AO74: 0.9491652308 | AP74: 1.260962039 | AQ74: 1.648512241 | AR74: 0.6980576463 | AS74: 3.896716708 | AT74: 2.571679096 | AU74: 3.074813137 | AV74: 0.4197798399 | AW74: 1.292454229 | AX74: 0.2532330128 | AY74: =IFERROR(AY71/AY73,FALSE) -> 4.198617546 | AZ74: =IFERROR(AZ71/AZ73,FALSE) -> 2.433401697 | BA74: =IFERROR(BA71/BA73,FALSE) -> 2.984929984 | BB74: =IFERROR(BB71/BB73,FALSE) -> 1.656188906 | BC74: =IFERROR(BC71/BC73,FALSE) -> 1.663169149 | BD74: =IFERROR(BD71/BD73,FALSE) -> 1.164721988 | BE74: =IFERROR(BE71/BE73,FALSE) -> 3.64184031 | BF74: =IFERROR(BF71/BF73,FALSE) -> 2.56395958 | BG74: =IFERROR(BG71/BG73,FALSE) -> 2.317082992 | BH74: =IFERROR(BH71/BH73,FALSE) -> 1.662823395 | BI74: =IFERROR(BI71/BI73,FALSE) -> 1.598316102 | BJ74: =IFERROR(BJ71/BJ73,FALSE) -> 1.226071655 | BK74: =IFERROR(BK71/BK73,FALSE) -> 1.767656692 | BL74: =IFERROR(BL71/BL73,FALSE) -> 1.779506168 | BM74: =IFERROR(BM71/BM73,FALSE) -> 1.150977398 | BN74: =IFERROR(BN71/BN73,FALSE) -> 0.5299375423 | BO74: =IFERROR(BO71/BO73,FALSE) -> 1.200717238 | BP74: =IFERROR(BP71/BP73,FALSE) -> 0.3452571677 | BQ74: =IFERROR(BQ71/BQ73,FALSE) -> FALSE
C75: LCOE - Nominal | E75: USD/Unit Year x 1000 | I75: =I74*1000 -> 3488.086592 | J75: =J74*1000 -> 2051.196615 | K75: =K74*1000 -> 1404.930428 | L75: 1583.243661 | M75: 1746.374407 | N75: 1013.540792 | O75: 945.4406353 | P75: 1458.114938 | Q75: 606.4223124 | R75: 3336.982799 | S75: 1740.601589 | T75: 2753.348132 | U75: 1573.772464 | V75: 1674.155305 | W75: 1022.989781 | X75: 1969.668711 | Y75: 2043.132838 | Z75: 1335.30142 | AA75: 4814.896504 | AB75: 2521.017185 | AC75: 3449.037318 | AD75: 2789.618715 | AE75: 1826.900437 | AF75: 2085.2888 | AG75: 3574.524058 | AH75: 2062.323338 | AI75: 2597.834854 | AJ75: 2105.541568 | AK75: 1798.368643 | AL75: 1408.498959 | AM75: 1542.431614 | AN75: 1700.607645 | AO75: 949.1652308 | AP75: 1260.962039 | AQ75: 1648.512241 | AR75: 698.0576463 | AS75: 3896.716708 | AT75: 2571.679096 | AU75: 3074.813137 | AV75: 419.7798399 | AW75: 1292.454229 | AX75: 253.2330128 | AY75: =AY74*1000 -> 4198.617546 | AZ75: =AZ74*1000 -> 2433.401697 | BA75: =BA74*1000 -> 2984.929984 | BB75: =BB74*1000 -> 1656.188906 | BC75: =BC74*1000 -> 1663.169149 | BD75: =BD74*1000 -> 1164.721988 | BE75: =BE74*1000 -> 3641.84031 | BF75: =BF74*1000 -> 2563.95958 | BG75: =BG74*1000 -> 2317.082992 | BH75: =BH74*1000 -> 1662.823395 | BI75: =BI74*1000 -> 1598.316102 | BJ75: =BJ74*1000 -> 1226.071655 | BK75: =BK74*1000 -> 1767.656692 | BL75: =BL74*1000 -> 1779.506168 | BM75: =BM74*1000 -> 1150.977398 | BN75: =BN74*1000 -> 529.9375423 | BO75: =BO74*1000 -> 1200.717238 | BP75: =BP74*1000 -> 345.2571677 | BQ75: =BQ74*1000 -> 0
C77: Capital Recovery - Real | E77: USD/yr | I77: =I48 -> 48298408.69 | J77: =J48 -> 21734283.91 | K77: =K48 -> 26564124.78 | L77: 34843296.44 | M77: 15679483.4 | N77: 19163813.04 | O77: 20457077.73 | P77: 9205684.979 | Q77: 11251392.75 | R77: 28947287.34 | S77: 13026279.3 | T77: 15921008.04 | U77: 33443600.29 | V77: 15435507.83 | W77: 18008092.47 | X77: 42564582.19 | Y77: 19645191.78 | Z77: 22919390.41 | AA77: 826867.1756 | AB77: 330746.8702 | AC77: 496120.3054 | AD77: 1945068.493 | AE77: 875280.8219 | AF77: 1069787.671 | AG77: 85984.76327 | AH77: 28268.96327 | AI77: 57715.80001 | AJ77: 1012971.184 | AK77: 406366.347 | AL77: 606604.8368 | AM77: 3710301.429 | AN77: 1737363.368 | AO77: 1972938.061 | AP77: 313550.804 | AQ77: 169317.4342 | AR77: 144233.3698 | AS77: 627101.608 | AT77: 169317.4342 | AU77: 457784.1739 | AV77: 96885.68899 | AW77: 48442.84449 | AX77: 48442.84449 | AY77: =AY48 -> 257552.0867 | AZ77: 105596.3556 | BA77: 151955.7312 | BB77: 114567.2975 | BC77: 43535.57306 | BD77: 71031.72446 | BE77: 8397508.295 | BF77: 3946828.899 | BG77: 4450679.397 | BH77: 3400036.882 | BI77: 1258013.646 | BJ77: 2142023.236 | BK77: 4075937.019 | BL77: 1834171.659 | BM77: 2241765.36 | BN77: 1083583.016 | BO77: 541791.5078 | BP77: 541791.5078
C78: O&M Cost | E78: USD/yr | I78: =I66 -> 56174267.67 | J78: =J66 -> 40140966.16 | K78: =K66 -> 14648422.85 | L78: 11435151.7 | M78: 37232200.5 | N78: 10567622.28 | O78: 6870497.416 | P78: 34797695.31 | Q78: 6334453.125 | R78: 74752965.53 | S78: 41229899.58 | T78: 69426873.27 | U78: 13886193.27 | V78: 36517911.06 | W78: 12896812.5 | X78: 16414125 | Y78: 43165865.92 | Z78: 17673336.89 | AA78: 448468.5081 | AB78: 341907.8489 | AC78: 421241.703 | AD78: 2153643.49 | AE78: 1840686.786 | AF78: 2000198.02 | AG78: 23317.80705 | AH78: 36400.69391 | AI78: 21902.16832 | AJ78: 274702.9323 | AK78: 728013.8782 | AL78: 258025.5446 | AM78: 1006179.345 | AN78: 3640069.391 | AO78: 945093.5644 | AP78: 79473.08331 | AQ78: 362263.7451 | AR78: 75000.67501 | AS78: 150001.35 | AT78: 362263.7451 | AU78: 158946.1666 | AV78: 32539.00115 | AW78: 370807.9493 | AX78: 30000.27 | AY78: =AY66 -> 142556.1558 | AZ78: 129607.6936 | BA78: 133699.3572 | BB78: 42275.65183 | BC78: 119392.496 | BD78: 39649.12943 | BE78: 3098703.946 | BF78: 4295889.347 | BG78: 2906186.15 | BH78: 1881934.617 | BI78: 3971509.353 | BJ78: 1765012.861 | BK78: 1504032.111 | BL78: 3955303.645 | BM78: 1410588.867 | BN78: 599767.7255 | BO78: 3417416.523 | BP78: 562505.0626
C79: Total Cost | E79: USD/yr | I79: =SUM(I77:I78) -> 104472676.4 | J79: =SUM(J77:J78) -> 61875250.07 | K79: =SUM(K77:K78) -> 41212547.63 | L79: 46278448.14 | M79: 52911683.9 | N79: 29731435.33 | O79: 27327575.15 | P79: 44003380.29 | Q79: 17585845.88 | R79: 103700252.9 | S79: 54256178.89 | T79: 85347881.31 | U79: 47329793.56 | V79: 51953418.89 | W79: 30904904.97 | X79: 58978707.19 | Y79: 62811057.71 | Z79: 40592727.3 | AA79: 1275335.684 | AB79: 672654.7191 | AC79: 917362.0083 | AD79: 4098711.983 | AE79: 2715967.608 | AF79: 3069985.691 | AG79: 109302.5703 | AH79: 64669.65718 | AI79: 79617.96832 | AJ79: 1287674.116 | AK79: 1134380.225 | AL79: 864630.3813 | AM79: 4716480.774 | AN79: 5377432.759 | AO79: 2918031.626 | AP79: 393023.8873 | AQ79: 531581.1793 | AR79: 219234.0449 | AS79: 777102.958 | AT79: 531581.1793 | AU79: 616730.3405 | AV79: 129424.6901 | AW79: 419250.7938 | AX79: 78443.1145 | AY79: =SUM(AY77:AY78) -> 400108.2426 | AZ79: =SUM(AZ77:AZ78) -> 235204.0492 | BA79: =SUM(BA77:BA78) -> 285655.0884 | BB79: =SUM(BB77:BB78) -> 156842.9494 | BC79: =SUM(BC77:BC78) -> 162928.069 | BD79: =SUM(BD77:BD78) -> 110680.8539 | BE79: =SUM(BE77:BE78) -> 11496212.24 | BF79: =SUM(BF77:BF78) -> 8242718.246 | BG79: =SUM(BG77:BG78) -> 7356865.547 | BH79: =SUM(BH77:BH78) -> 5281971.499 | BI79: =SUM(BI77:BI78) -> 5229523 | BJ79: =SUM(BJ77:BJ78) -> 3907036.097 | BK79: =SUM(BK77:BK78) -> 5579969.13 | BL79: =SUM(BL77:BL78) -> 5789475.303 | BM79: =SUM(BM77:BM78) -> 3652354.228 | BN79: =SUM(BN77:BN78) -> 1683350.741 | BO79: =SUM(BO77:BO78) -> 3959208.031 | BP79: =SUM(BP77:BP78) -> 1104296.57 | BQ79: =SUM(BQ77:BQ78) -> 
C81: Total Production | E81: Units per Year | I81: =I73 -> 47482500 | J81: =J73 -> 47482500 | K81: =K73 -> 47482500 | L81: 47482500 | M81: 47482500 | N81: 47482500 | O81: 47482500 | P81: 47482500 | Q81: 47482500 | R81: 47482500 | S81: 47482500 | T81: 47482500 | U81: 47482500 | V81: 47482500 | W81: 47482500 | X81: 47482500 | Y81: 47482500 | Z81: 47482500 | AA81: 392958.6207 | AB81: 392958.6207 | AC81: 392958.6207 | AD81: 2279160 | AE81: 2279160 | AF81: 2279160 | AG81: 45815.69757 | AH81: 45815.69757 | AI81: 45815.69757 | AJ81: 916313.9514 | AK81: 916313.9514 | AL81: 916313.9514 | AM81: 4581569.757 | AN81: 4581569.757 | AO81: 4581569.757 | AP81: 455832 | AQ81: 455832 | AR81: 455832 | AS81: 292200 | AT81: 292200 | AU81: 292200 | AV81: 506480 | AW81: 506480 | AX81: 506480 | AY81: =AY73 -> 142447.5 | AZ81: 142447.5 | BA81: 142447.5 | BB81: 142447.5 | BC81: 142447.5 | BD81: 142447.5 | BE81: 4748250 | BF81: 4748250 | BG81: 4748250 | BH81: 4748250 | BI81: 4748250 | BJ81: 4748250 | BK81: 4748250 | BL81: 4748250 | BM81: 4748250 | BN81: 4748250 | BO81: 4748250 | BP81: 4748250 | BQ81: 0
C82: LCOE - Real | E82: USD/Units Year | I82: =IFERROR(I79/I81,FALSE) -> 2.200235378 | J82: =IFERROR(J79/J81,FALSE) -> 1.303116939 | K82: =IFERROR(K79/K81,FALSE) -> 0.8679523536 | L82: 0.9746421975 | M82: 1.114340734 | N82: 0.6261556432 | O82: 0.5755294086 | P82: 0.9267283797 | Q82: 0.3703647844 | R82: 2.183967838 | S82: 1.142656324 | T82: 1.797459723 | U82: 0.9967839428 | V82: 1.094159298 | W82: 0.6508693722 | X82: 1.242114615 | Y82: 1.322825414 | Z82: 0.8548986953 | AA82: 3.245470685 | AB82: 1.71176985 | AC82: 2.334500276 | AD82: 1.798343242 | AE82: 1.191652893 | AF82: 1.346981208 | AG82: 2.385701323 | AH82: 1.411517463 | AI82: 1.737787975 | AJ82: 1.405276122 | AK82: 1.237982051 | AL82: 0.9435962205 | AM82: 1.029446461 | AN82: 1.173709677 | AO82: 0.6369065147 | AP82: 0.8622121469 | AQ82: 1.166177845 | AR82: 0.4809536076 | AS82: 2.659489932 | AT82: 1.819237438 | AU82: 2.11064456 | AV82: 0.2555376128 | AW82: 0.8277736412 | AX82: 0.1548789972 | AY82: =IFERROR(AY79/AY81,FALSE) -> 2.808811966 | AZ82: =IFERROR(AZ79/AZ81,FALSE) -> 1.651163054 | BA82: =IFERROR(BA79/BA81,FALSE) -> 2.005335919 | BB82: =IFERROR(BB79/BB81,FALSE) -> 1.101057929 | BC82: =IFERROR(BC79/BC81,FALSE) -> 1.143776262 | BD82: =IFERROR(BD79/BD81,FALSE) -> 0.7769940076 | BE82: =IFERROR(BE79/BE81,FALSE) -> 2.42114721 | BF82: =IFERROR(BF79/BF81,FALSE) -> 1.735948664 | BG82: =IFERROR(BG79/BG81,FALSE) -> 1.549384625 | BH82: =IFERROR(BH79/BH81,FALSE) -> 1.112403833 | BI82: =IFERROR(BI79/BI81,FALSE) -> 1.101357974 | BJ82: =IFERROR(BJ79/BJ81,FALSE) -> 0.8228370657 | BK82: =IFERROR(BK79/BK81,FALSE) -> 1.175163298 | BL82: =IFERROR(BL79/BL81,FALSE) -> 1.219286117 | BM82: =IFERROR(BM79/BM81,FALSE) -> 0.769200069 | BN82: =IFERROR(BN79/BN81,FALSE) -> 0.3545202424 | BO82: =IFERROR(BO79/BO81,FALSE) -> 0.8338246788 | BP82: =IFERROR(BP79/BP81,FALSE) -> 0.2325691719 | BQ82: =IFERROR(BQ79/BQ81,FALSE) -> FALSE
C83: LCOE - Real | E83: USD/Units Year x 1000 | I83: =I82 -> 2.200235378 | J83: =J82 -> 1.303116939 | K83: =K82 -> 0.8679523536 | L83: 0.9746421975 | M83: 1.114340734 | N83: 0.6261556432 | O83: 0.5755294086 | P83: 0.9267283797 | Q83: 0.3703647844 | R83: 2.183967838 | S83: 1.142656324 | T83: 1.797459723 | U83: 0.9967839428 | V83: 1.094159298 | W83: 0.6508693722 | X83: 1.242114615 | Y83: 1.322825414 | Z83: 0.8548986953 | AA83: 3.245470685 | AB83: 1.71176985 | AC83: 2.334500276 | AD83: 1.798343242 | AE83: 1.191652893 | AF83: 1.346981208 | AG83: 2.385701323 | AH83: 1.411517463 | AI83: 1.737787975 | AJ83: 1.405276122 | AK83: 1.237982051 | AL83: 0.9435962205 | AM83: 1.029446461 | AN83: 1.173709677 | AO83: 0.6369065147 | AP83: 0.8622121469 | AQ83: 1.166177845 | AR83: 0.4809536076 | AS83: 2.659489932 | AT83: 1.819237438 | AU83: 2.11064456 | AV83: 0.2555376128 | AW83: 0.8277736412 | AX83: 0.1548789972 | AY83: =AY82 -> 2.808811966 | AZ83: 1.651163054 | BA83: 2.005335919 | BB83: 1.101057929 | BC83: 1.143776262 | BD83: 0.7769940076 | BE83: 2.42114721 | BF83: 1.735948664 | BG83: 1.549384625 | BH83: 1.112403833 | BI83: 1.101357974 | BJ83: 0.8228370657 | BK83: 1.175163298 | BL83: 1.219286117 | BM83: 0.769200069 | BN83: 0.3545202424 | BO83: 0.8338246788 | BP83: 0.2325691719 | BQ83: FALSE
B86: Financing Assumptions
C87: Max Debt to Capital | I87: 0.85 | J87: 0.85 | K87: 0.85 | L87: 0.85 | M87: 0.85 | N87: 0.85 | O87: 0.85 | P87: 0.85 | Q87: 0.85 | R87: 0.85 | S87: 0.85 | T87: 0.85 | U87: 0.85 | V87: 0.85 | W87: 0.85 | X87: 0.85 | Y87: 0.85 | Z87: 0.85 | AA87: 0.85 | AB87: 0.85 | AC87: 0.85 | AD87: 0.85 | AE87: 0.85 | AF87: 0.85 | AG87: 0.85 | AH87: 0.85 | AI87: 0.85 | AJ87: 0.85 | AK87: 0.85 | AL87: 0.85 | AM87: 0.85 | AN87: 0.85 | AO87: 0.85 | AP87: 0.85 | AQ87: 0.85 | AR87: 0.85 | AS87: 0.85 | AT87: 0.85 | AU87: 0.85 | AV87: 0.85 | AW87: 0.85 | AX87: 0.85 | AY87: 0.85 | AZ87: 0.85 | BA87: 0.85 | BB87: 0.85 | BC87: 0.85 | BD87: 0.85 | BE87: 0.85 | BF87: 0.85 | BG87: 0.85 | BH87: 0.85 | BI87: 0.85 | BJ87: 0.85 | BK87: 0.85 | BL87: 0.85 | BM87: 0.85 | BN87: 0.85 | BO87: 0.85 | BP87: 0.85 | BQ87: 0.85
C88: Interest Rate | I88: 0.03 | J88: 0.03 | K88: 0.03 | L88: 0.03 | M88: 0.03 | N88: 0.03 | O88: 0.03 | P88: 0.03 | Q88: 0.03 | R88: 0.03 | S88: 0.03 | T88: 0.03 | U88: 0.03 | V88: 0.03 | W88: 0.03 | X88: 0.03 | Y88: 0.03 | Z88: 0.03 | AA88: 0.03 | AB88: 0.03 | AC88: 0.03 | AD88: 0.03 | AE88: 0.03 | AF88: 0.03 | AG88: 0.03 | AH88: 0.03 | AI88: 0.03 | AJ88: 0.03 | AK88: 0.03 | AL88: 0.03 | AM88: 0.03 | AN88: 0.03 | AO88: 0.03 | AP88: 0.03 | AQ88: 0.03 | AR88: 0.03 | AS88: 0.03 | AT88: 0.03 | AU88: 0.03 | AV88: 0.03 | AW88: 0.03 | AX88: 0.03 | AY88: 0.03 | AZ88: 0.03 | BA88: 0.03 | BB88: 0.03 | BC88: 0.03 | BD88: 0.03 | BE88: 0.03 | BF88: 0.03 | BG88: 0.03 | BH88: 0.03 | BI88: 0.03 | BJ88: 0.03 | BK88: 0.03 | BL88: 0.03 | BM88: 0.03 | BN88: 0.03 | BO88: 0.03 | BP88: 0.03 | BQ88: 0.03
C89: Debt Tenor | I89: 20 | J89: 20 | K89: 20 | L89: 20 | M89: 20 | N89: 20 | O89: 20 | P89: 20 | Q89: 20 | R89: 20 | S89: 20 | T89: 20 | U89: 20 | V89: 20 | W89: 20 | X89: 20 | Y89: 20 | Z89: 20 | AA89: 20 | AB89: 20 | AC89: 20 | AD89: 20 | AE89: 20 | AF89: 20 | AG89: 20 | AH89: 20 | AI89: 20 | AJ89: 20 | AK89: 20 | AL89: 20 | AM89: 20 | AN89: 20 | AO89: 20 | AP89: 20 | AQ89: 20 | AR89: 20 | AS89: 20 | AT89: 20 | AU89: 20 | AV89: 20 | AW89: 20 | AX89: 20 | AY89: 20 | AZ89: 20 | BA89: 20 | BB89: 20 | BC89: 20 | BD89: 20 | BE89: 20 | BF89: 20 | BG89: 20 | BH89: 20 | BI89: 20 | BJ89: 20 | BK89: 20 | BL89: 20 | BM89: 20 | BN89: 20 | BO89: 20 | BP89: 20 | BQ89: 20
C90: P50 DSCR | I90: 1.2 | J90: 1.2 | K90: 1.2 | L90: 1.2 | M90: 1.2 | N90: 1.2 | O90: 1.2 | P90: 1.2 | Q90: 1.2 | R90: 1.2 | S90: 1.2 | T90: 1.2 | U90: 1.2 | V90: 1.2 | W90: 1.2 | X90: 1.2 | Y90: 1.2 | Z90: 1.2 | AA90: 1.2 | AB90: 1.2 | AC90: 1.2 | AD90: 1.2 | AE90: 1.2 | AF90: 1.2 | AG90: 1.2 | AH90: 1.2 | AI90: 1.2 | AJ90: 1.2 | AK90: 1.2 | AL90: 1.2 | AM90: 1.2 | AN90: 1.2 | AO90: 1.2 | AP90: 1.2 | AQ90: 1.2 | AR90: 1.2 | AS90: 1.2 | AT90: 1.2 | AU90: 1.2 | AV90: 1.2 | AW90: 1.2 | AX90: 1.2 | AY90: 1.2 | AZ90: 1.2 | BA90: 1.2 | BB90: 1.2 | BC90: 1.2 | BD90: 1.2 | BE90: 1.2 | BF90: 1.2 | BG90: 1.2 | BH90: 1.2 | BI90: 1.2 | BJ90: 1.2 | BK90: 1.2 | BL90: 1.2 | BM90: 1.2 | BN90: 1.2 | BO90: 1.2 | BP90: 1.2 | BQ90: 1.2
C91: P99 DSCR | I91: 1 | J91: 1 | K91: 1 | L91: 1 | M91: 1 | N91: 1 | O91: 1 | P91: 1 | Q91: 1 | R91: 1 | S91: 1 | T91: 1 | U91: 1 | V91: 1 | W91: 1 | X91: 1 | Y91: 1 | Z91: 1 | AA91: 1 | AB91: 1 | AC91: 1 | AD91: 1 | AE91: 1 | AF91: 1 | AG91: 1 | AH91: 1 | AI91: 1 | AJ91: 1 | AK91: 1 | AL91: 1 | AM91: 1 | AN91: 1 | AO91: 1 | AP91: 1 | AQ91: 1 | AR91: 1 | AS91: 1 | AT91: 1 | AU91: 1 | AV91: 1 | AW91: 1 | AX91: 1 | AY91: 1 | AZ91: 1 | BA91: 1 | BB91: 1 | BC91: 1 | BD91: 1 | BE91: 1 | BF91: 1 | BG91: 1 | BH91: 1 | BI91: 1 | BJ91: 1 | BK91: 1 | BL91: 1 | BM91: 1 | BN91: 1 | BO91: 1 | BP91: 1 | BQ91: 1
C93: Target Equity IRR | I93: 0.08 | J93: 0.08 | K93: 0.08 | L93: 0.08 | M93: 0.08 | N93: 0.08 | O93: 0.08 | P93: 0.08 | Q93: 0.08 | R93: 0.08 | S93: 0.08 | T93: 0.08 | U93: 0.08 | V93: 0.08 | W93: 0.08 | X93: 0.08 | Y93: 0.08 | Z93: 0.08 | AA93: 0.08 | AB93: 0.08 | AC93: 0.08 | AD93: 0.08 | AE93: 0.08 | AF93: 0.08 | AG93: 0.08 | AH93: 0.08 | AI93: 0.08 | AJ93: 0.08 | AK93: 0.08 | AL93: 0.08 | AM93: 0.08 | AN93: 0.08 | AO93: 0.08 | AP93: 0.08 | AQ93: 0.08 | AR93: 0.08 | AS93: 0.08 | AT93: 0.08 | AU93: 0.08 | AV93: 0.08 | AW93: 0.08 | AX93: 0.08 | AY93: 0.08 | AZ93: 0.08 | BA93: 0.08 | BB93: 0.08 | BC93: 0.08 | BD93: 0.08 | BE93: 0.08 | BF93: 0.08 | BG93: 0.08 | BH93: 0.08 | BI93: 0.08 | BJ93: 0.08 | BK93: 0.08 | BL93: 0.08 | BM93: 0.08 | BN93: 0.08 | BO93: 0.08 | BP93: 0.08 | BQ93: 0.08

Sheet Summary
L1: LCOH
E2: Electricity Price | F2: ='Electrolyzer Inputs'!F10 -> 15 | I2: =D26 -> IEA | J2: =E26 -> Today | K2: =I2&" "&J2 -> IEA Today | L2: =F26 -> 2.171069293
E3: Utilization | F3: ='Electrolyzer Inputs'!F11 -> 0.26 | I3: =D29 -> IEA | J3: 2030 | K3: =I3&" "&J3 -> IEA 2030 | L3: =F29 -> 1.740496377
I4: =D32 -> IEA | J4: Long-term | K4: IEA Long-term | L4: =F32 -> 1.297093164
C5: =E2 -> Electricity Price | D5: =F2 -> 15 | E5: =E3 -> Utilization | F5: =F3 -> 0.26 | I5: =D35 -> Norway | J5: Electrolyzer | K5: Norway Electrolyzer | L5: =F35 -> 2.940116047
I6: =D38 -> Middle East | J6: Best | K6: Middle East Best | L6: =F38 -> 1.745028671
I7: =D41 -> Middle East | J7: Worst | K7: Middle East Worst | L7: =F41 -> 2.177724109
I8: =D44 -> Actual Case | J8: 0 | K8: Actual Case 0 | L8: =F44 -> 4.046270126
I9: =D47 -> Australia | J9: 0 | K9: Australia 0 | L9: =F47 -> 2.538634102
I10: =D50 -> Lazard | J10: Small | K10: Lazard Small | L10: =F50 -> 3.149305438
I11: =D53 -> Lazard | J11: Medium | K11: Lazard Medium | L11: =F53 -> 2.181578272
I12: =D56 -> Lazard | J12: Large | K12: Lazard Large | L12: =F56 -> 1.810616191
I13: =D59 -> IRENA | J13: =E59 -> Current Best | K13: IRENA Current Best | L13: =F59 -> 1.647131452
I14: =D62 -> IRENA | J14: =E62 -> Current Worst | K14: IRENA Current Worst | L14: =F62 -> 3.929881998
I15: =D65 -> IRENA | J15: =E65 -> Future | K15: IRENA Future | L15: =F65 -> 0.9826526384
I16: =D68 -> NREL Forecort | J16: =E68 -> Current | K16: NREL Forecort Current | L16: =F68 -> 3.656498974
I17: =D71 -> NREL Forecort | J17: =E71 -> Future | K17: NREL Forecort Future | L17: =F71 -> 1.920770269
I18: =D74 -> NREL Central | J18: =E74 -> Current | K18: NREL Central Current | L18: =F74 -> 3.28533329
I19: =D77 -> NREL Central | J19: =E77 -> Future | K19: NREL Central Future | L19: =F77 -> 1.92419504
I20: =D80 -> Applied Case | J20: =E80 -> Current | K20: Applied Case Current | L20: =F80 -> 1.988486186
I21: =D83 -> Best Future | J21: Case | K21: Best Future Case | L21: =F83 -> 1.066393851
D26: IEA | E26: Today | F26: =TRANSPOSE('Electrolyzer LCOH'!I4:BQ4) -> 2.171069293
D27: Stack | E27: Portion | F27: 1.303116939
D28: Non-Stack | E28: Portion | F28: 0.8679523536
D29: IEA | E29: 2030 | F29: 1.740496377
D30: Stack | E30: Portion | F30: 1.114340734
D31: Non-Stack | E31: Portion | F31: 0.6261556432
D32: IEA | E32: Long-term | F32: 1.297093164
D33: Stack | E33: Portion | F33: 0.9267283797
D34: Non-Stack | E34: Portion | F34: 0.3703647844
D35: Norway | E35: Electrolyzer | F35: 2.940116047
D36: Stack | E36: Portion | F36: 1.142656324
D37: Non-Stack | E37: Portion | F37: 1.797459723
D38: Middle East | E38: Best | F38: 1.745028671
D39: Stack | E39: Portion | F39: 1.094159298
D40: Non-Stack | E40: Portion | F40: 0.6508693722
D41: Middle East | E41: Worst | F41: 2.177724109
D42: Stack | E42: Portion | F42: 1.322825414
D43: Non-Stack | E43: Portion | F43: 0.8548986953
D44: Actual Case | E44: 0 | F44: 4.046270126
D45: Stack | E45: Portion | F45: 1.71176985
D46: Non-Stack | E46: Portion | F46: 2.334500276
D47: Australia | E47: 0 | F47: 2.538634102
D48: Stack | E48: Portion | F48: 1.191652893
D49: Non-Stack | E49: Portion | F49: 1.346981208
D50: Lazard | E50: Small | F50: 3.149305438
D51: Stack | E51: Portion | F51: 1.411517463
D52: Non-Stack | E52: Portion | F52: 1.737787975
D53: Lazard | E53: Medium | F53: 2.181578272
D54: Stack | E54: Portion | F54: 1.237982051
D55: Non-Stack | E55: Portion | F55: 0.9435962205
D56: Lazard | E56: Large | F56: 1.810616191
D57: Stack | E57: Portion | F57: 1.173709677
D58: Non-Stack | E58: Portion | F58: 0.6369065147
D59: IRENA | E59: Current Best | F59: 1.647131452
D60: Stack | E60: Portion | F60: 1.166177845
D61: Non-Stack | E61: Portion | F61: 0.4809536076
D62: IRENA | E62: Current Worst | F62: 3.929881998
D63: Stack | E63: Portion | F63: 1.819237438
D64: Non-Stack | E64: Portion | F64: 2.11064456
D65: IRENA | E65: Future | F65: 0.9826526384
D66: Stack | E66: Portion | F66: 0.8277736412
D67: Non-Stack | E67: Portion | F67: 0.1548789972
D68: NREL Forecort | E68: Current | F68: 3.656498974
D69: Stack | E69: Portion | F69: 1.651163054
D70: Non-Stack | E70: Portion | F70: 2.005335919
D71: NREL Forecort | E71: Future | F71: 1.920770269
D72: Stack | E72: Portion | F72: 1.143776262
D73: Non-Stack | E73: Portion | F73: 0.7769940076
D74: NREL Central | E74: Current | F74: 3.28533329
D75: Stack | E75: Portion | F75: 1.735948664
D76: Non-Stack | E76: Portion | F76: 1.549384625
D77: NREL Central | E77: Future | F77: 1.92419504
D78: Stack | E78: Portion | F78: 1.101357974
D79: Non-Stack | E79: Portion | F79: 0.8228370657
D80: Applied Case | E80: Current | F80: 1.988486186
D81: Stack | E81: Portion | F81: 1.219286117
D82: Non-Stack | E82: Portion | F82: 0.769200069
D83: Best Future | E83: Case | F83: 1.066393851
D84: Stack | E84: Portion | F84: 0.8338246788
D85: Non-Stack | E85: Portion | F85: 0.2325691719

Sheet Norway Operating Cost
B1: SMR | C1: SMR+ | D1: ATR | E1: Electrolysis | F1: CRE
A2: Specific cost of electricity: /kgH | B2: 0.002 | C2: 0.002 | D2: 0.026 | E2: 1.081 | F2: 0.324
A3: Cost of electricity: M/year | B3: 0.3 | C3: 0.4 | D3: 4.5 | E3: 187.5 | F3: 56.1
A4: H Prod grid connection cost: M/year | B4: 0.1 | C4: 0.1 | D4: 0.7 | E4: 24.3 | F4: 8.5
A5: Cost of natural gas: M/year | B5: 114.1 | C5: 119.9 | D5: 111.1 | E5: 0 | F5: 80.5
A6: CO tax: M/year | B6: 3.2 | C6: 1.5 | D6: 0.9 | F6: 0.7
A7: System OPEX rate: of CAPEX/Year | B7: 0.05 | C7: 0.05 | D7: 0.05 | E7: 0.05 | F7: 0.05
A8: System OPEX: M/year | B8: 25.4 | C8: 30.8 | D8: 26.3 | E8: 29.1 | F8: 25.3
A9: Total OPEX H Production: M/year | B9: 143.1 | C9: 152.6 | D9: 143.5 | E9: 240.9 | F9: 171.1
A10: Carbon capture and storage Prefix SMR SMR+ ATR Electrolysis CRE
A11: CCS cost of electricity: M/year | B11: 2.12 | C11: 2.72 | D11: 2.65 | F11: 1.91
A12: CCS grid connection cost: M/year | B12: 0.32 | C12: 0.41 | D12: 0.4 | F12: 0.29
A13: CCS System OPEX: of CAPEX/Year | B13: 0.05 | C13: 0.05 | D13: 0.05 | E13: 0 | F13: 0.05
A14: M/year | B14: 19.1 | C14: 22.7 | D14: 22.3 | F14: 17.8
A15: Total OPEX CCS: M/year | B15: 21.5 | C15: 25.9 | D15: 25.4 | E15: 0 | F15: 20
A16: Total System OPEX: M/year | B16: 164.6 | C16: 178.5 | D16: 168.9 | E16: 240.9 | F16: 191
A18: Costs other than Natural Gas and Emissions | B18: =B16-B6-B5 -> 47.3 | C18: =C16-C6-C5 -> 57.1 | D18: 56.9 | E18: =E16-E6-E5-E3 -> 53.4 | F18: 109.8

Sheet SMR Sensitivity
